Ref No,Fund Type,Dept,Cost Centre Description    ,Description    ,Creditor Name    ,GL Code Net Amount,Payment date        
2,Revenue,CAHD,Central - Commissioned Services,Permanent Residential,1 St Georges House,13333.52, 28-Jul-2020
3,Revenue,CAHD,CSC - LAC Housing Support Grants,Grants to Voluntary Bodies,1625 Independent People,3343.00, 24-Jul-2020
4,Revenue,CAHD,CSC - LAC Housing Support Grants,Grants to Voluntary Bodies,1625 Independent People,31094.00, 15-Jul-2020
5,Revenue,CAHD,CSC - LAC Housing Support Grants,Grants to Voluntary Bodies,1625 Independent People,22313.00, 15-Jul-2020
6,Revenue,CAHD,Supporting People Programme,Grants to Voluntary Bodies,1625 Independent People,15167.00, 01-Jul-2020
7,Revenue,CAHD,Supporting People Programme,Grants to Voluntary Bodies,1625 Independent People,10541.50, 01-Jul-2020
8,Revenue,CAHD,Supporting People Programme,Grants to Voluntary Bodies,1625 Independent People,15167.00, 31-Jul-2020
9,Revenue,CAHD,South - Commissioned Services,Permanent Residential,2Nd Floor Building,5630.76, 28-Jul-2020
10,Revenue,CAHD,South - Commissioned Services,Permanent Residential,2Nd Floor Building,2806.12, 28-Jul-2020
11,Revenue,CAHD,Central - Commissioned Services,Other Small Contracts,3 Trees Community Support Ltd,5131.84, 02-Jul-2020
12,Revenue,CAHD,Central - Commissioned Services,Supported Living,3 Trees Community Support Ltd,4950.56, 02-Jul-2020
13,Revenue,CAHD,Central - Commissioned Services,Other Small Contracts,3 Trees Community Support Ltd,5135.33, 09-Jul-2020
14,Revenue,CAHD,Central - Commissioned Services,Supported Living,3 Trees Community Support Ltd,4963.02, 09-Jul-2020
15,Revenue,CAHD,Central - Commissioned Services,Other Small Contracts,3 Trees Community Support Ltd,5128.35, 22-Jul-2020
16,Revenue,CAHD,Central - Commissioned Services,Supported Living,3 Trees Community Support Ltd,5065.10, 22-Jul-2020
17,Revenue,CAHD,Central - Commissioned Services,Other Small Contracts,3 Trees Community Support Ltd,5131.84, 29-Jul-2020
18,Revenue,CAHD,Central - Commissioned Services,Supported Living,3 Trees Community Support Ltd,5177.20, 29-Jul-2020
19,Revenue,CAHD,Additional Payments to providers - COVID,Other Small Contracts,3 Trees Community Support Ltd,766.60, 06-Jul-2020
20,Revenue,CAHD,Additional Payments to providers - COVID,Other Small Contracts,3 Trees Community Support Ltd,783.65, 17-Jul-2020
21,Revenue,CAHD,South - Commissioned Services,Permanent Nursing,3Rd Floor  The Aspect,3593.88, 28-Jul-2020
22,Revenue,CAHD,North - Community based support,Permanent Nursing,3Rd Floor  The Aspect,3234.72, 28-Jul-2020
23,Revenue,CAHD,Covid 19- Spend on behalf of NHS,Respite Emergency - Residential,3Rd Floor  The Aspect,4457.14, 28-Jul-2020
24,Revenue,CAHD,South - Commissioned Services,Respite Planned - Residential,3Rd Floor  The Aspect,3264.32, 28-Jul-2020
25,Revenue,CAHD,South - Commissioned Services,Permanent Nursing,3Rd Floor  The Aspect,2287.36, 28-Jul-2020
26,Revenue,CAHD,Covid 19 -Adult Social Care,Respite Planned - Residential,3Rd Floor  The Aspect,10200.00, 28-Jul-2020
27,Revenue,CAHD,South - Commissioned Services,Permanent Residential,5Th Floor Harlech Court,17000.48, 28-Jul-2020
28,Revenue,CAHD,South - Commissioned Services,Permanent Residential,5Th Floor Harlech Court,10627.92, 28-Jul-2020
29,Revenue,CAHD,S28A cases,Permanent Residential,5Th Floor Harlech Court,11122.76, 28-Jul-2020
30,Revenue,CAHD,South - Commissioned Services,Permanent Residential,5Th Floor Harlech Court,11665.12, 28-Jul-2020
31,Revenue,CAHD,North - Community based support,Permanent Residential,5Th Floor Harlech Court,12498.56, 28-Jul-2020
32,Revenue,CAHD,North - Community based support,Permanent Residential,5Th Floor Harlech Court,10537.24, 28-Jul-2020
33,Revenue,CAHD,North - Community based support,Permanent Residential,5Th Floor Harlech Court,9071.12, 28-Jul-2020
34,Revenue,CAHD,CSC - Section 17 0-25,Preventative Assistance,A+bility Ltd,834.00, 30-Jul-2020
35,Revenue,CAHD,Training Budget - Children`s Social Serv,Training Expenses,AC Education Ltd,550.00, 09-Jul-2020
36,Revenue,CAHD,South - Commissioned Services,Permanent Nursing,Acacia House,2996.00, 28-Jul-2020
37,Revenue,CAHD,Post 16 High Needs Placements,Other Private Contractors,Access To Music Ltd,2213.33, 29-Jul-2020
38,Revenue,CAHD,Post 16 High Needs Placements,Other Private Contractors,Access To Music Ltd,2213.33, 30-Jul-2020
39,Revenue,CAHD,Jointly Funded H&SC Packages,Permanent Residential,Acorn Care Providers,2310.92, 28-Jul-2020
40,Revenue,CAHD,Section 117 Placements MH Younger,Permanent Residential,Acorn Care Providers,5481.28, 28-Jul-2020
41,Revenue,CAHD,North - S117,Permanent Residential,Acorn Care Providers,3978.00, 28-Jul-2020
42,Revenue,CAHD,Jointly Funded H&SC Packages,Permanent Residential,Acorn Care Providers,2142.00, 28-Jul-2020
43,Revenue,CAHD,MH Purchasing - Younger,Permanent Residential,Acorn Care Providers,6382.04, 28-Jul-2020
44,Revenue,CAHD,Jointly Funded H&SC Packages,Permanent Residential,Acorn Care Providers,3436.48, 28-Jul-2020
45,Revenue,CAHD,MH Purchasing - Younger,Permanent Residential,Acorn Care Providers,6266.88, 28-Jul-2020
46,Revenue,CAHD,Training Budget - Children`s Social Serv,Training Expenses,Acorn Health & Safety Limited,449.00, 14-Jul-2020
47,Revenue,CAHD,Training Budget - Children`s Social Serv,Training Expenses,Acorn Health & Safety Limited,449.00, 23-Jul-2020
48,Revenue,CAHD,Training - Adult Services,Training Expenses,Acorn Health & Safety Limited,477.00, 23-Jul-2020
49,Revenue,CAHD,Training - Adult Services,Training Expenses,Acorn Health & Safety Limited,477.00, 30-Jul-2020
50,Revenue,CAHD,Training - Adult Services,Training Expenses,Acorn Health & Safety Limited,477.00, 30-Jul-2020
51,Revenue,CAHD,CSC - Agency Fostering,Foster Parent Allowances,Action for Children,6750.00, 09-Jul-2020
52,Revenue,CAHD,CSC - Agency Fostering,Foster Parent Allowances,Action for Children,3542.10, 13-Jul-2020
53,Revenue,CAHD,CSC - Agency Fostering,Foster Parent Allowances,Action for Children,3542.10, 13-Jul-2020
54,Revenue,CAHD,CSC - Agency Fostering,Foster Parent Allowances,Action for Children,7714.20, 09-Jul-2020
55,Revenue,CAHD,South - Commissioned Services,Permanent Nursing,Administration And Revenue Centre,2789.80, 28-Jul-2020
56,Revenue,CAHD,South Glos Users in South Glos Homes,Permanent Nursing,Administration And Revenue Centre,735.68, 28-Jul-2020
57,Revenue,CAHD,South - Commissioned Services,Permanent Nursing,Administration And Revenue Centre,2445.96, 28-Jul-2020
58,Revenue,CAHD,South - Commissioned Services,Permanent Nursing,Administration And Revenue Centre,2445.96, 28-Jul-2020
59,Revenue,CAHD,South Glos Users in South Glos Homes,Permanent Nursing,Administration And Revenue Centre,735.68, 28-Jul-2020
60,Revenue,CAHD,South - Commissioned Services,Permanent Nursing,Administration And Revenue Centre,2445.96, 28-Jul-2020
61,Revenue,CAHD,South Glos Users in South Glos Homes,Permanent Nursing,Administration And Revenue Centre,735.68, 28-Jul-2020
62,Revenue,CAHD,South - Commissioned Services,Permanent Residential,Administration And Revenue Centre,2511.80, 28-Jul-2020
63,Revenue,CAHD,South Glos Users in South Glos Homes,Permanent Nursing,Administration And Revenue Centre,735.68, 28-Jul-2020
64,Revenue,CAHD,North - Community based support,Permanent Nursing,Administration And Revenue Centre,2949.60, 28-Jul-2020
65,Revenue,CAHD,South Glos Users in South Glos Homes,Permanent Nursing,Administration And Revenue Centre,735.68, 28-Jul-2020
66,Revenue,CAHD,South Glos Users in South Glos Homes,Permanent Nursing,Administration And Revenue Centre,735.68, 28-Jul-2020
67,Revenue,CAHD,South Glos Users in South Glos Homes,Permanent Nursing,Administration And Revenue Centre,3039.51, 28-Jul-2020
68,Revenue,CAHD,South Glos Users in South Glos Homes,Permanent Nursing,Administration And Revenue Centre,735.68, 28-Jul-2020
69,Revenue,CAHD,South Glos Users in South Glos Homes,Permanent Nursing,Administration And Revenue Centre,3039.51, 28-Jul-2020
70,Revenue,CAHD,South Glos Users in South Glos Homes,Permanent Nursing,Administration And Revenue Centre,735.68, 28-Jul-2020
71,Revenue,CAHD,South Glos Users in South Glos Homes,Permanent Nursing,Administration And Revenue Centre,3039.51, 28-Jul-2020
72,Revenue,CAHD,South - Commissioned Services,Permanent Nursing,Administration And Revenue Centre,2949.60, 28-Jul-2020
73,Revenue,CAHD,South - Commissioned Services,Permanent Residential,Administration And Revenue Centre,3203.04, 28-Jul-2020
74,Revenue,CAHD,South Glos Users in South Glos Homes,Permanent Nursing,Administration And Revenue Centre,735.68, 28-Jul-2020
75,Revenue,CAHD,South Glos Users in South Glos Homes,Permanent Nursing,Administration And Revenue Centre,3039.51, 28-Jul-2020
76,Revenue,CAHD,South Glos Users in South Glos Homes,Permanent Nursing,Administration And Revenue Centre,735.68, 28-Jul-2020
77,Revenue,CAHD,South - Commissioned Services,Permanent Residential,Administration And Revenue Centre,3366.00, 28-Jul-2020
78,Revenue,CAHD,South - Commissioned Services,Permanent Nursing,Administration And Revenue Centre,2924.56, 28-Jul-2020
79,Revenue,CAHD,South - Commissioned Services,Permanent Nursing,Administration And Revenue Centre,2511.80, 28-Jul-2020
80,Revenue,CAHD,South Glos Users in South Glos Homes,Permanent Nursing,Administration And Revenue Centre,735.68, 28-Jul-2020
81,Revenue,CAHD,South - Commissioned Services,Permanent Nursing,Administration And Revenue Centre,2445.96, 28-Jul-2020
82,Revenue,CAHD,South Glos Users in South Glos Homes,Permanent Nursing,Administration And Revenue Centre,735.68, 28-Jul-2020
83,Revenue,CAHD,South - Commissioned Services,Permanent Nursing,Administration And Revenue Centre,2445.96, 28-Jul-2020
84,Revenue,CAHD,South Glos Users in South Glos Homes,Permanent Nursing,Administration And Revenue Centre,735.68, 28-Jul-2020
85,Revenue,CAHD,South Glos Users in South Glos Homes,Permanent Nursing,Administration And Revenue Centre,3039.51, 28-Jul-2020
86,Revenue,CAHD,South - S117,Permanent Residential,Administration And Revenue Centre,3190.56, 28-Jul-2020
87,Revenue,CAHD,South - Commissioned Services,Permanent Nursing,Administration And Revenue Centre,2445.96, 28-Jul-2020
88,Revenue,CAHD,South Glos Users in South Glos Homes,Permanent Nursing,Administration And Revenue Centre,735.68, 28-Jul-2020
89,Revenue,CAHD,South Glos Users in South Glos Homes,Permanent Nursing,Administration And Revenue Centre,3039.51, 28-Jul-2020
90,Revenue,CAHD,South - Commissioned Services,Permanent Nursing,Administration And Revenue Centre,2991.68, 28-Jul-2020
91,Revenue,CAHD,North - Community based support,Permanent Residential,Administration And Revenue Centre,2949.60, 28-Jul-2020
92,Revenue,CAHD,South Glos Users in South Glos Homes,Permanent Nursing,Administration And Revenue Centre,735.68, 28-Jul-2020
93,Revenue,CAHD,South - Commissioned Services,Other Small Contracts,Advantedge Commercial Finance Limited,714.42, 17-Jul-2020
94,Revenue,CAHD,South - Commissioned Services,Other Small Contracts,Advantedge Commercial Finance Limited,1224.72, 17-Jul-2020
95,Revenue,CAHD,South - Commissioned Services,Other Small Contracts,Advantedge Commercial Finance Limited,816.48, 22-Jul-2020
96,Revenue,CAHD,South - Commissioned Services,Other Small Contracts,Advantedge Commercial Finance Limited,1069.20, 17-Jul-2020
97,Revenue,CAHD,South - Commissioned Services,Other Small Contracts,Advantedge Commercial Finance Limited,680.40, 15-Jul-2020
98,Revenue,CAHD,South - Commissioned Services,Other Small Contracts,Advantedge Commercial Finance Limited,2177.28, 15-Jul-2020
99,Revenue,CAHD,South - Commissioned Services,Other Small Contracts,Advantedge Commercial Finance Limited,991.44, 17-Jul-2020
100,Revenue,CAHD,North - Community based support,Other Small Contracts,Advantedge Commercial Finance Limited,952.56, 17-Jul-2020
101,Revenue,CAHD,South - Commissioned Services,Other Small Contracts,Advantedge Commercial Finance Limited,1632.96, 15-Jul-2020
102,Revenue,CAHD,South - Commissioned Services,Other Small Contracts,Advantedge Commercial Finance Limited,1355.94, 15-Jul-2020
103,Revenue,CAHD,South - Commissioned Services,Day Care / Social Activities,Age Concern,634.08, 28-Jul-2020
104,Revenue,CAHD,Central - Commissioned Services,Day Care / Social Activities,Age Concern,546.72, 28-Jul-2020
105,Revenue,CAHD,North - Community based support,Day Care / Social Activities,Age Concern,734.40, 28-Jul-2020
106,Revenue,CAHD,Central - Commissioned Services,Day Care / Social Activities,Age Concern,546.72, 28-Jul-2020
107,Revenue,CAHD,Central - Commissioned Services,Day Care / Social Activities,Age Concern,634.08, 28-Jul-2020
108,Revenue,CAHD,Central - Commissioned Services,Day Care / Social Activities,Age Concern,634.08, 28-Jul-2020
109,Revenue,CAHD,Mental Health and Emotional Wellbeing,Grants to Voluntary Bodies,Age UK South Gloucestershire,13725.00, 01-Jul-2020
110,Revenue,CAHD,Covid 19 -Adult Social Care,Other Supplies & Services,Age UK South Gloucestershire,22750.00, 06-Jul-2020
111,Revenue,CAHD,Pathway 1 - Re-Ablement Home Care,Other Small Contracts,Agincare UK Limited,700.35, 24-Jul-2020
112,Revenue,CAHD,South - Commissioned Services,Other Small Contracts,Agincare UK Limited,1719.48, 02-Jul-2020
113,Revenue,CAHD,Younger MH non-res purchasing,Other Small Contracts,Agincare UK Limited,77.28, 02-Jul-2020
114,Revenue,CAHD,South - Commissioned Services,Other Small Contracts,Agincare UK Limited,1328.25, 09-Jul-2020
115,Revenue,CAHD,Younger MH non-res purchasing,Other Small Contracts,Agincare UK Limited,77.28, 09-Jul-2020
116,Revenue,CAHD,South - Commissioned Services,Other Small Contracts,Agincare UK Limited,1313.76, 07-Jul-2020
117,Revenue,CAHD,Younger MH non-res purchasing,Other Small Contracts,Agincare UK Limited,77.28, 07-Jul-2020
118,Revenue,CAHD,South - Commissioned Services,Other Small Contracts,Agincare UK Limited,1415.19, 22-Jul-2020
119,Revenue,CAHD,Younger MH non-res purchasing,Other Small Contracts,Agincare UK Limited,77.28, 22-Jul-2020
120,Revenue,CAHD,South - Commissioned Services,Other Small Contracts,Agincare UK Limited,1492.47, 22-Jul-2020
121,Revenue,CAHD,Younger MH non-res purchasing,Other Small Contracts,Agincare UK Limited,77.28, 22-Jul-2020
122,Revenue,CAHD,South - Commissioned Services,Other Small Contracts,Agincare UK Limited,1473.15, 29-Jul-2020
123,Revenue,CAHD,Younger MH non-res purchasing,Other Small Contracts,Agincare UK Limited,77.28, 29-Jul-2020
124,Revenue,CAHD,Extra Care Housing,Private & Voluntary Home Care,Agincare UK Limited,24391.34, 01-Jul-2020
125,Revenue,CAHD,Extra Care Housing,Private & Voluntary Home Care,Agincare UK Limited,24391.34, 31-Jul-2020
126,Revenue,CAHD,Extra Care Housing,Private & Voluntary Home Care,Agincare UK Limited,11734.93, 01-Jul-2020
127,Revenue,CAHD,Extra Care Housing,Private & Voluntary Home Care,Agincare UK Limited,11734.93, 31-Jul-2020
128,Revenue,CAHD,Extra Care Housing,Private & Voluntary Home Care,Agincare UK Limited,28508.53, 03-Jul-2020
129,Revenue,CAHD,Extra Care Housing,Private & Voluntary Home Care,Agincare UK Limited,2590.87, 06-Jul-2020
130,Revenue,CAHD,Extra Care Housing,Private & Voluntary Home Care,Agincare UK Limited,936.23, 01-Jul-2020
131,Revenue,CAHD,Prison Assessments & Costs,Other Supplies & Services,Agincare UK Limited,2580.00, 08-Jul-2020
132,Revenue,CAHD,Prison Assessments & Costs,Other Supplies & Services,Agincare UK Limited,2730.50, 08-Jul-2020
133,Revenue,CAHD,Prison Assessments & Costs,Other Supplies & Services,Agincare UK Limited,2773.50, 03-Jul-2020
134,Revenue,CAHD,Central - Commissioned Services,Permanent Residential,Alexander House,12155.16, 28-Jul-2020
135,Revenue,CAHD,Covid 19 -Adult Social Care,Other Small Contracts,AliMo Care Ltd,9.56, 03-Jul-2020
136,Revenue,CAHD,South - Commissioned Services,Other Small Contracts,AliMo Care Ltd,975.12, 03-Jul-2020
137,Revenue,CAHD,North - Community based support,Other Small Contracts,AliMo Care Ltd,430.20, 03-Jul-2020
138,Revenue,CAHD,Covid 19 -Adult Social Care,Other Small Contracts,AliMo Care Ltd,9.56, 09-Jul-2020
139,Revenue,CAHD,South - Commissioned Services,Other Small Contracts,AliMo Care Ltd,975.12, 09-Jul-2020
140,Revenue,CAHD,North - Community based support,Other Small Contracts,AliMo Care Ltd,449.32, 09-Jul-2020
141,Revenue,CAHD,Covid 19 -Adult Social Care,Other Small Contracts,AliMo Care Ltd,4.78, 09-Jul-2020
142,Revenue,CAHD,South - Commissioned Services,Other Small Contracts,AliMo Care Ltd,726.56, 09-Jul-2020
143,Revenue,CAHD,North - Community based support,Other Small Contracts,AliMo Care Ltd,458.88, 09-Jul-2020
144,Revenue,CAHD,Covid 19 -Adult Social Care,Other Small Contracts,AliMo Care Ltd,9.56, 15-Jul-2020
145,Revenue,CAHD,South - Commissioned Services,Other Small Contracts,AliMo Care Ltd,1013.36, 15-Jul-2020
146,Revenue,CAHD,North - Community based support,Other Small Contracts,AliMo Care Ltd,492.34, 15-Jul-2020
147,Revenue,CAHD,North - Community based support,Permanent Nursing,Allambie Court,2320.44, 28-Jul-2020
148,Revenue,CAHD,Central - Commissioned Services,Permanent Residential,Alvony House Residential Care Home,3000.00, 28-Jul-2020
149,Revenue,CAHD,Mental Health and Emotional Wellbeing,Grants to Voluntary Bodies,Alzheimers Society,11142.75, 01-Jul-2020
150,Revenue,CAHD,CSC - Residential Placements,Permanent Residential,Amberleigh Care Ltd,16877.14, 02-Jul-2020
151,Revenue,CAHD,CSC - Residential Placements,Permanent Residential,Amberleigh Care Ltd,16877.14, 02-Jul-2020
152,Revenue,CAHD,Schools Specific Grant Income,Other Public Bodies,Amberleigh Care Ltd,630.00, 07-Jul-2020
153,Revenue,CAHD,CSC - Residential Placements,Permanent Residential,Ambito Care and Education,20358.67, 07-Jul-2020
154,Revenue,CAHD,CSC - Residential Placements,Permanent Residential,Ambito Care and Education,19701.94, 07-Jul-2020
155,Revenue,CAHD,CSC - Residential Placements,Permanent Residential,Ambito Care and Education,19930.88, 07-Jul-2020
156,Revenue,CAHD,North - Community based support,Permanent Nursing,Amerind Grove Nursing Home,2706.32, 28-Jul-2020
157,Revenue,CAHD,A & CL - Employability 19/20,Computer Equipment - Purchase,Amey Computer Services,2792.00, 28-Jul-2020
158,Revenue,CAHD,Supporting People Programme,Grants to Voluntary Bodies,Anchor Hanover Group,1039.00, 01-Jul-2020
159,Revenue,CAHD,Supporting People Programme,Grants to Voluntary Bodies,Anchor Hanover Group,1039.00, 31-Jul-2020
160,Revenue,CAHD,Supporting People Programme,Grants to Voluntary Bodies,Anchor Hanover Group,847.00, 01-Jul-2020
161,Revenue,CAHD,Supporting People Programme,Grants to Voluntary Bodies,Anchor Hanover Group,847.00, 31-Jul-2020
162,Revenue,CAHD,Younger MH non-res purchasing,Supported Living,Archcare Rehab Limited,1957.40, 31-Jul-2020
163,Revenue,CAHD,North - Community based support,Permanent Nursing,Argentum Lodge,5428.57, 28-Jul-2020
164,Revenue,CAHD,North - Community based support,Permanent Nursing,Argentum Lodge,4857.14, 28-Jul-2020
165,Revenue,CAHD,South - Commissioned Services,Permanent Residential,Ash View House,5529.44, 28-Jul-2020
166,Revenue,CAHD,Jointly Funded H&SC Packages,Permanent Residential,Ash View House,1133.64, 28-Jul-2020
167,Revenue,CAHD,S117 Placements PCT,Permanent Residential,Ash View House,7707.44, 28-Jul-2020
168,Revenue,CAHD,North - Community based support,Permanent Residential,Ash View House,7099.52, 28-Jul-2020
169,Revenue,CAHD,North - Community based support,Permanent Residential,Ash View House,7120.00, 28-Jul-2020
170,Revenue,CAHD,Section 117 Placements MH Younger,Permanent Residential,Ash View House,5022.60, 28-Jul-2020
171,Revenue,CAHD,Jointly Funded H&SC Packages,Permanent Residential,Ash View House,2152.60, 28-Jul-2020
172,Revenue,CAHD,South - S117,Permanent Residential,Ash View House,6826.64, 28-Jul-2020
173,Revenue,CAHD,South - Commissioned Services,Permanent Residential,Ash View House,6747.84, 28-Jul-2020
174,Revenue,CAHD,CSC - Legal Fees,Legal Fees,Individual,800.00, 06-Jul-2020
175,Revenue,CAHD,North - Community based support,Permanent Residential,Aspects 2 Limited,7231.88, 28-Jul-2020
176,Revenue,CAHD,Supporting People Programme,Grants to Voluntary Bodies,Aspects and Milestones Trust,3441.00, 01-Jul-2020
177,Revenue,CAHD,Supporting People Programme,Grants to Voluntary Bodies,Aspects and Milestones Trust,1725.00, 01-Jul-2020
178,Revenue,CAHD,Supporting People Programme,Grants to Voluntary Bodies,Aspects and Milestones Trust,3441.00, 31-Jul-2020
179,Revenue,CAHD,Supporting People Programme,Grants to Voluntary Bodies,Aspects and Milestones Trust,1725.00, 31-Jul-2020
180,Revenue,CAHD,CSC - Care Leavers Independent Living,Adults - Family Support,Aspirations Support Bristol Limited,15419.68, 24-Jul-2020
181,Revenue,CAHD,CSC - Care Leavers Independent Living,Adults - Family Support,Aspirations Support Bristol Limited,15419.68, 24-Jul-2020
182,Revenue,CAHD,CSC - Vinney Green Secure Unit,R & M by Departments,Assa Abloy Limited,1269.31, 07-Jul-2020
183,Revenue,CAHD,South - Commissioned Services,Permanent Residential,Astbury Manor,3632.43, 28-Jul-2020
184,Revenue,CAHD,South - Commissioned Services,Permanent Residential,Astbury Manor,3980.00, 28-Jul-2020
185,Revenue,CAHD,South - Commissioned Services,Adults - Family Support,Ategi Limited,1254.40, 31-Jul-2020
186,Revenue,CAHD,South - Commissioned Services,Adults - Family Support,Ategi Limited,1747.68, 24-Jul-2020
187,Revenue,CAHD,South - Commissioned Services,Adults - Family Support,Ategi Limited,828.08, 27-Jul-2020
188,Revenue,CAHD,South - Commissioned Services,Adults - Family Support,Ategi Limited,16210.88, 22-Jul-2020
189,Revenue,CAHD,South - Commissioned Services,Permanent Residential,Autism Specialised Care Homes,6506.88, 28-Jul-2020
190,Revenue,CAHD,CSC - Adoption Support Fund,Post Adoption,Avalon Thomas,614.00, 08-Jul-2020
191,Revenue,CAHD,CSC - Therapeutic Foster Care Programm,Professional Fees,Avon & Wiltshire Mental Health,2965.00, 10-Jul-2020
192,Revenue,CAHD,CSC - LAC - Counselling & Therapy,Other Supplies & Services,Avon & Wiltshire Mental Health,15000.00, 14-Jul-2020
193,Revenue,CAHD,Younger Adult Mental Health,Health Services (Third Party Payments),Avon & Wiltshire Mental Health,1693.33, 24-Jul-2020
194,Revenue,CAHD,Homeless - Private Sector Leasing,Prop.Serv. General Repairs,Avon Armour Limited,848.00, 09-Jul-2020
195,Revenue,CAHD,South - Commissioned Services,Permanent Nursing,Avon Lodge Care Centre,4341.36, 28-Jul-2020
196,Revenue,CAHD,South Glos Users in South Glos Homes,Permanent Nursing,Avon Lodge Care Centre,735.68, 28-Jul-2020
197,Revenue,CAHD,South Glos Users in South Glos Homes,Permanent Nursing,Avon Lodge Care Centre,735.68, 28-Jul-2020
198,Revenue,CAHD,South - Commissioned Services,Permanent Nursing,Avon Lodge Care Centre,4311.16, 28-Jul-2020
199,Revenue,CAHD,South Glos Users in South Glos Homes,Permanent Nursing,Avon Lodge Care Centre,735.68, 28-Jul-2020
200,Revenue,CAHD,South Glos Users in South Glos Homes,Permanent Nursing,Avon Lodge Care Centre,735.68, 28-Jul-2020
201,Revenue,CAHD,South - Commissioned Services,Permanent Nursing,Avon Lodge Care Centre,3885.48, 28-Jul-2020
202,Revenue,CAHD,South Glos Users in South Glos Homes,Permanent Nursing,Avon Lodge Care Centre,735.68, 28-Jul-2020
203,Revenue,CAHD,South - Commissioned Services,Permanent Nursing,Avon Lodge Care Centre,4537.76, 28-Jul-2020
204,Revenue,CAHD,South Glos Users in South Glos Homes,Permanent Nursing,Avon Lodge Care Centre,735.68, 28-Jul-2020
205,Revenue,CAHD,Central - Commissioned Services,Permanent Nursing,Avon Lodge Care Centre,4311.16, 28-Jul-2020
206,Revenue,CAHD,South Glos Users in South Glos Homes,Permanent Nursing,Avon Lodge Care Centre,735.68, 28-Jul-2020
207,Revenue,CAHD,South Glos Users in South Glos Homes,Permanent Nursing,Avon Lodge Care Centre,735.68, 28-Jul-2020
208,Revenue,CAHD,South Glos Users in South Glos Homes,Permanent Nursing,Avon Lodge Care Centre,1030.34, 28-Jul-2020
209,Revenue,CAHD,South Glos Users in South Glos Homes,Permanent Nursing,Avon Lodge Care Centre,735.68, 28-Jul-2020
210,Revenue,CAHD,South - Commissioned Services,Permanent Nursing,Avon Lodge Care Centre,3448.20, 28-Jul-2020
211,Revenue,CAHD,South Glos Users in South Glos Homes,Permanent Nursing,Avon Lodge Care Centre,735.68, 28-Jul-2020
212,Revenue,CAHD,South - Commissioned Services,Permanent Nursing,Avon Lodge Care Centre,4311.16, 28-Jul-2020
213,Revenue,CAHD,South Glos Users in South Glos Homes,Permanent Nursing,Avon Lodge Care Centre,735.68, 28-Jul-2020
214,Revenue,CAHD,South - Commissioned Services,Permanent Nursing,Avon Lodge Care Centre,4347.88, 28-Jul-2020
215,Revenue,CAHD,South Glos Users in South Glos Homes,Permanent Nursing,Avon Lodge Care Centre,1828.86, 28-Jul-2020
216,Revenue,CAHD,South Glos Users in South Glos Homes,Permanent Nursing,Avon Lodge Care Centre,735.68, 28-Jul-2020
217,Revenue,CAHD,South Glos Users in South Glos Homes,Permanent Nursing,Avon Lodge Care Centre,735.68, 28-Jul-2020
218,Revenue,CAHD,South Glos Users in South Glos Homes,Permanent Nursing,Avon Lodge Care Centre,1210.65, 28-Jul-2020
219,Revenue,CAHD,South Glos Users in South Glos Homes,Permanent Nursing,Avon Lodge Care Centre,735.68, 28-Jul-2020
220,Revenue,CAHD,South - Commissioned Services,Permanent Nursing,Avon Lodge Care Centre,4403.84, 28-Jul-2020
221,Revenue,CAHD,South Glos Users in South Glos Homes,Permanent Nursing,Avon Lodge Care Centre,735.68, 28-Jul-2020
222,Revenue,CAHD,South - Commissioned Services,Permanent Nursing,Avon Lodge Care Centre,4311.16, 28-Jul-2020
223,Revenue,CAHD,South Glos Users in South Glos Homes,Permanent Nursing,Avon Lodge Care Centre,735.68, 28-Jul-2020
224,Revenue,CAHD,South Glos Users in South Glos Homes,Permanent Nursing,Avon Lodge Care Centre,735.68, 28-Jul-2020
225,Revenue,CAHD,South Glos Users in South Glos Homes,Permanent Nursing,Avon Lodge Care Centre,1674.31, 28-Jul-2020
226,Revenue,CAHD,Central - Commissioned Services,Permanent Nursing,Avon Lodge Care Centre,3884.80, 28-Jul-2020
227,Revenue,CAHD,South Glos Users in South Glos Homes,Permanent Nursing,Avon Lodge Care Centre,735.68, 28-Jul-2020
228,Revenue,CAHD,South Glos Users in South Glos Homes,Permanent Nursing,Avon Lodge Care Centre,2678.89, 28-Jul-2020
229,Revenue,CAHD,South - Commissioned Services,Permanent Nursing,Avon Lodge Care Centre,4530.04, 28-Jul-2020
230,Revenue,CAHD,South Glos Users in South Glos Homes,Permanent Nursing,Avon Lodge Care Centre,735.68, 28-Jul-2020
231,Revenue,CAHD,South - S117,Permanent Nursing,Avon Lodge Care Centre,3885.48, 28-Jul-2020
232,Revenue,CAHD,South Glos Users in South Glos Homes,Permanent Nursing,Avon Lodge Care Centre,735.68, 28-Jul-2020
233,Revenue,CAHD,South Glos Users in South Glos Homes,Permanent Nursing,Avon Lodge Care Centre,735.68, 28-Jul-2020
234,Revenue,CAHD,South Glos Users in South Glos Homes,Permanent Nursing,Avon Lodge Care Centre,735.68, 28-Jul-2020
235,Revenue,CAHD,South - Commissioned Services,Permanent Residential,Avon Valley Care Home,3960.00, 28-Jul-2020
236,Revenue,CAHD,South - Commissioned Services,Permanent Residential,Avon Valley Care Home,4000.00, 28-Jul-2020
237,Revenue,CAHD,South - Commissioned Services,Permanent Residential,Avon Valley Care Home,4000.00, 28-Jul-2020
238,Revenue,CAHD,South - Commissioned Services,Permanent Residential,Avon Valley Care Home,3960.00, 28-Jul-2020
239,Revenue,CAHD,South - Commissioned Services,Permanent Residential,Avon Valley Care Home,9085.71, 28-Jul-2020
240,Revenue,CAHD,South - Commissioned Services,Permanent Residential,Avon Valley Care Home,4800.00, 28-Jul-2020
241,Revenue,CAHD,Central - Commissioned Services,Respite Planned - Residential,Avon Valley Care Home,4000.00, 28-Jul-2020
242,Revenue,CAHD,South - Commissioned Services,Permanent Residential,Avon Valley Care Home,4000.00, 28-Jul-2020
243,Revenue,CAHD,South - Commissioned Services,Permanent Residential,Avon Valley Care Home,4800.00, 28-Jul-2020
244,Revenue,CAHD,South - Commissioned Services,Permanent Residential,Avon Valley Care Home,13860.00, 28-Jul-2020
245,Revenue,CAHD,South - Commissioned Services,Permanent Residential,Avon Valley Care Home,12587.14, 28-Jul-2020
246,Revenue,CAHD,South - Commissioned Services,Permanent Residential,Avon Valley Care Home,3960.00, 28-Jul-2020
247,Revenue,CAHD,Central - Commissioned Services,Permanent Residential,Avon Valley Care Home,9714.29, 28-Jul-2020
248,Revenue,CAHD,Central - Commissioned Services,Permanent Residential,Avon Valley Care Home,4000.00, 28-Jul-2020
249,Revenue,CAHD,North - Community based support,Permanent Residential,Avonmere Care Home,6852.86, 28-Jul-2020
250,Revenue,CAHD,North - Community based support,Permanent Residential,Avonmere Care Home,4680.00, 28-Jul-2020
251,Revenue,CAHD,North - Community based support,Fees & Charges Income - General,Avonmere Care Home,669.22, 28-Jul-2020
252,Revenue,CAHD,Covid 19- Spend on behalf of NHS,Respite Planned - Residential,Avonmere Care Home,3142.86, 28-Jul-2020
253,Revenue,CAHD,North - Community based support,Permanent Residential,Avonmere Care Home,4386.80, 28-Jul-2020
254,Revenue,CAHD,Covid 19- Spend on behalf of NHS,Respite Planned - Residential,Avonmere Care Home,1728.57, 28-Jul-2020
255,Revenue,CAHD,North - Community based support,Permanent Residential,Avonmere Care Home,5420.00, 28-Jul-2020
256,Revenue,CAHD,North - Community based support,Permanent Residential,Avonmere Care Home,4420.00, 28-Jul-2020
257,Revenue,CAHD,North - Community based support,Permanent Residential,Avonmere Care Home,4620.00, 28-Jul-2020
258,Revenue,CAHD,Covid 19- Spend on behalf of NHS,Respite Planned - Residential,Avonmere Care Home,942.86, 28-Jul-2020
259,Revenue,CAHD,North - Community based support,Permanent Residential,Avonmere Care Home,22678.57, 28-Jul-2020
260,Revenue,CAHD,North - Community based support,Permanent Residential,Avonmere Care Home,17500.00, 28-Jul-2020
261,Revenue,CAHD,North - Community based support,Permanent Residential,Avonmere Care Home,5000.00, 28-Jul-2020
262,Revenue,CAHD,CSC - Family Group Conferencing,Grants to Voluntary Bodies,Barnardo Services Limited,5422.75, 22-Jul-2020
263,Revenue,CAHD,Children & Young People�s Health,Other Small Contracts,Barnardos,7650.00, 08-Jul-2020
264,Revenue,CAHD,Pensions - Non DSG,Annual Pension,Bath & North East Somerset Council,107119.43, 28-Jul-2020
265,Revenue,CAHD,North - Community based support,Permanent Nursing,Beacher Hall Care Home,21482.16, 28-Jul-2020
266,Revenue,CAHD,North - Community based support,Permanent Nursing,Beacher Hall Care Home,6137.76, 28-Jul-2020
267,Revenue,CAHD,North - Community based support,Permanent Nursing,Beacher Hall Care Home,3068.88, 28-Jul-2020
268,Revenue,CAHD,CSC - Adoption Support Fund,Post Adoption,Individual,805.00, 30-Jul-2020
269,Revenue,CAHD,Pathway 3 - (Complex Beds),Permanent Nursing,Beaufort Care Ltd,5682.72, 13-Jul-2020
270,Revenue,CAHD,South Glos Users in South Glos Homes,Permanent Nursing,Beaufort Grange Care Home,540.93, 28-Jul-2020
271,Revenue,CAHD,South Glos Users in South Glos Homes,Permanent Nursing,Beaufort Grange Care Home,735.68, 28-Jul-2020
272,Revenue,CAHD,South Glos Users in South Glos Homes,Permanent Nursing,Beaufort Grange Care Home,735.68, 28-Jul-2020
273,Revenue,CAHD,South Glos Users in South Glos Homes,Permanent Nursing,Beaufort Grange Care Home,1210.65, 28-Jul-2020
274,Revenue,CAHD,South Glos Users in South Glos Homes,Permanent Nursing,Beaufort Grange Care Home,735.68, 28-Jul-2020
275,Revenue,CAHD,South Glos Users in South Glos Homes,Permanent Nursing,Beaufort Grange Care Home,735.68, 28-Jul-2020
276,Revenue,CAHD,South Glos Users in South Glos Homes,Permanent Nursing,Beaufort Grange Care Home,735.68, 28-Jul-2020
277,Revenue,CAHD,South Glos Users in South Glos Homes,Permanent Nursing,Beaufort Grange Care Home,515.17, 28-Jul-2020
278,Revenue,CAHD,South Glos Users in South Glos Homes,Permanent Nursing,Beaufort Grange Care Home,735.68, 28-Jul-2020
279,Revenue,CAHD,South Glos Users in South Glos Homes,Permanent Nursing,Beaufort Grange Care Home,735.68, 28-Jul-2020
280,Revenue,CAHD,South Glos Users in South Glos Homes,Permanent Nursing,Beaufort Grange Care Home,735.68, 28-Jul-2020
281,Revenue,CAHD,Central - Commissioned Services,Respite Planned - Nursing,Beaufort Grange Care Home,2100.00, 28-Jul-2020
282,Revenue,CAHD,North - S117,Permanent Nursing,Beaufort Grange Care Home,4877.04, 28-Jul-2020
283,Revenue,CAHD,South Glos Users in South Glos Homes,Permanent Nursing,Beaufort Grange Care Home,735.68, 28-Jul-2020
284,Revenue,CAHD,South Glos Users in South Glos Homes,Permanent Nursing,Beaufort Grange Care Home,735.68, 28-Jul-2020
285,Revenue,CAHD,South Glos Users in South Glos Homes,Permanent Nursing,Beaufort Grange Care Home,735.68, 28-Jul-2020
286,Revenue,CAHD,Central - Commissioned Services,Permanent Nursing,Beaufort Grange Care Home,4517.86, 28-Jul-2020
287,Revenue,CAHD,Central - Commissioned Services,Respite Planned - Nursing,Beaufort Grange Care Home,2834.00, 28-Jul-2020
288,Revenue,CAHD,South Glos Users in South Glos Homes,Permanent Nursing,Beaufort Grange Care Home,1030.34, 28-Jul-2020
289,Revenue,CAHD,South - Commissioned Services,Respite Planned - Nursing,Beaufort Grange Care Home,3846.14, 28-Jul-2020
290,Revenue,CAHD,South - Commissioned Services,Respite Planned - Nursing,Beaufort Grange Care Home,2024.29, 28-Jul-2020
291,Revenue,CAHD,South - Commissioned Services,Respite Planned - Nursing,Beaufort Grange Care Home,1417.00, 28-Jul-2020
292,Revenue,CAHD,South - Commissioned Services,Respite Planned - Nursing,Beaufort Grange Care Home,1417.00, 28-Jul-2020
293,Revenue,CAHD,Central - Commissioned Services,Permanent Nursing,Beaufort Grange Care Home,4428.00, 28-Jul-2020
294,Revenue,CAHD,South Glos Users in South Glos Homes,Permanent Nursing,Beaufort Grange Care Home,735.68, 28-Jul-2020
295,Revenue,CAHD,South Glos Users in South Glos Homes,Permanent Nursing,Beaufort Grange Care Home,735.68, 28-Jul-2020
296,Revenue,CAHD,South Glos Users in South Glos Homes,Permanent Nursing,Beaufort Grange Care Home,735.68, 28-Jul-2020
297,Revenue,CAHD,South Glos Users in South Glos Homes,Permanent Nursing,Beaufort Grange Care Home,735.68, 28-Jul-2020
298,Revenue,CAHD,South Glos Users in South Glos Homes,Permanent Nursing,Beaufort Grange Care Home,6104.78, 28-Jul-2020
299,Revenue,CAHD,North - S117,Permanent Nursing,Beaufort Grange Care Home,5005.76, 28-Jul-2020
300,Revenue,CAHD,South Glos Users in South Glos Homes,Permanent Nursing,Beaufort Grange Care Home,735.68, 28-Jul-2020
301,Revenue,CAHD,Central - Commissioned Services,Respite Planned - Residential,Beaufort Grange Care Home,8631.56, 28-Jul-2020
302,Revenue,CAHD,Central - Commissioned Services,Respite Planned - Residential,Beaufort Grange Care Home,4932.32, 28-Jul-2020
303,Revenue,CAHD,South Glos Users in South Glos Homes,Permanent Nursing,Beaufort Grange Care Home,1494.00, 28-Jul-2020
304,Revenue,CAHD,South Glos Users in South Glos Homes,Permanent Nursing,Beaufort Grange Care Home,735.68, 28-Jul-2020
305,Revenue,CAHD,South Glos Users in South Glos Homes,Permanent Nursing,Beaufort Grange Care Home,735.68, 28-Jul-2020
306,Revenue,CAHD,South Glos Users in South Glos Homes,Permanent Nursing,Beaufort Grange Care Home,735.68, 28-Jul-2020
307,Revenue,CAHD,South Glos Users in South Glos Homes,Permanent Nursing,Beaufort Grange Care Home,735.68, 28-Jul-2020
308,Revenue,CAHD,South Glos Users in South Glos Homes,Permanent Nursing,Beaufort Grange Care Home,735.68, 28-Jul-2020
309,Revenue,CAHD,South Glos Users in South Glos Homes,Permanent Nursing,Beaufort Grange Care Home,735.68, 28-Jul-2020
310,Revenue,CAHD,South Glos Users in South Glos Homes,Permanent Nursing,Beaufort Grange Care Home,4997.16, 28-Jul-2020
311,Revenue,CAHD,South Glos Users in South Glos Homes,Permanent Nursing,Beaufort Grange Care Home,735.68, 28-Jul-2020
312,Revenue,CAHD,South Glos Users in South Glos Homes,Permanent Nursing,Beaufort Grange Care Home,735.68, 28-Jul-2020
313,Revenue,CAHD,South Glos Users in South Glos Homes,Permanent Nursing,Beaufort Grange Care Home,735.68, 28-Jul-2020
314,Revenue,CAHD,South Glos Users in South Glos Homes,Permanent Nursing,Beaufort Grange Care Home,735.68, 28-Jul-2020
315,Revenue,CAHD,South Glos Users in South Glos Homes,Permanent Nursing,Beaufort Grange Care Home,735.68, 28-Jul-2020
316,Revenue,CAHD,South Glos Users in South Glos Homes,Permanent Nursing,Beaufort Grange Care Home,735.68, 28-Jul-2020
317,Revenue,CAHD,South Glos Users in South Glos Homes,Permanent Nursing,Beaufort Grange Care Home,735.68, 28-Jul-2020
318,Revenue,CAHD,South Glos Users in South Glos Homes,Permanent Nursing,Beaufort Grange Care Home,735.68, 28-Jul-2020
319,Revenue,CAHD,South Glos Users in South Glos Homes,Permanent Nursing,Beaufort Grange Care Home,735.68, 28-Jul-2020
320,Revenue,CAHD,South Glos Users in South Glos Homes,Permanent Nursing,Beaufort Grange Care Home,735.68, 28-Jul-2020
321,Revenue,CAHD,South Glos Users in South Glos Homes,Permanent Nursing,Beaufort Grange Care Home,735.68, 28-Jul-2020
322,Revenue,CAHD,South Glos Users in South Glos Homes,Permanent Nursing,Beaufort Grange Care Home,735.68, 28-Jul-2020
323,Revenue,CAHD,South Glos Users in South Glos Homes,Permanent Nursing,Beaufort Grange Care Home,735.68, 28-Jul-2020
324,Revenue,CAHD,South Glos Users in South Glos Homes,Permanent Nursing,Beaufort Grange Care Home,3631.96, 28-Jul-2020
325,Revenue,CAHD,South Glos Users in South Glos Homes,Permanent Nursing,Beaufort Grange Care Home,735.68, 28-Jul-2020
326,Revenue,CAHD,South Glos Users in South Glos Homes,Permanent Nursing,Beaufort Grange Care Home,3219.82, 28-Jul-2020
327,Revenue,CAHD,South Glos Users in South Glos Homes,Permanent Nursing,Beaufort Grange Care Home,735.68, 28-Jul-2020
328,Revenue,CAHD,South Glos Users in South Glos Homes,Permanent Nursing,Beaufort Grange Care Home,1931.89, 28-Jul-2020
329,Revenue,CAHD,South Glos Users in South Glos Homes,Permanent Nursing,Beaufort Grange Care Home,735.68, 28-Jul-2020
330,Revenue,CAHD,South Glos Users in South Glos Homes,Permanent Nursing,Beaufort Grange Care Home,1648.55, 28-Jul-2020
331,Revenue,CAHD,South Glos Users in South Glos Homes,Permanent Nursing,Beaufort Grange Care Home,540.93, 28-Jul-2020
332,Revenue,CAHD,South Glos Users in South Glos Homes,Permanent Nursing,Beaufort Grange Care Home,2884.96, 28-Jul-2020
333,Revenue,CAHD,South Glos Users in South Glos Homes,Permanent Nursing,Beaufort Grange Care Home,735.68, 28-Jul-2020
334,Revenue,CAHD,South Glos Users in South Glos Homes,Permanent Nursing,Beaufort Grange Care Home,735.68, 28-Jul-2020
335,Revenue,CAHD,South Glos Users in South Glos Homes,Permanent Nursing,Beaufort Grange Care Home,735.68, 28-Jul-2020
336,Revenue,CAHD,South Glos Users in South Glos Homes,Permanent Nursing,Beaufort Grange Care Home,3194.06, 28-Jul-2020
337,Revenue,CAHD,South Glos Users in South Glos Homes,Permanent Nursing,Beaufort Grange Care Home,735.68, 28-Jul-2020
338,Revenue,CAHD,South Glos Users in South Glos Homes,Permanent Nursing,Beaufort Grange Care Home,5718.40, 28-Jul-2020
339,Revenue,CAHD,North - Community based support,Permanent Nursing,Beaufort Grange Care Home,5405.76, 28-Jul-2020
340,Revenue,CAHD,South Glos Users in South Glos Homes,Permanent Nursing,Beaufort Grange Care Home,735.68, 28-Jul-2020
341,Revenue,CAHD,South Glos Users in South Glos Homes,Permanent Nursing,Beaufort Grange Care Home,735.68, 28-Jul-2020
342,Revenue,CAHD,North - Community based support,Permanent Residential,Beaufort House,2600.56, 28-Jul-2020
343,Revenue,CAHD,Central - Commissioned Services,Permanent Residential,Beaufort House,2924.56, 28-Jul-2020
344,Revenue,CAHD,Central - Commissioned Services,Permanent Residential,Beaufort House,2831.12, 28-Jul-2020
345,Revenue,CAHD,North - Community based support,Permanent Residential,Beaufort House,2622.84, 28-Jul-2020
346,Revenue,CAHD,South - Commissioned Services,Permanent Residential,Beaufort House,2587.56, 28-Jul-2020
347,Revenue,CAHD,Central - Commissioned Services,Permanent Residential,Beaufort House,3400.00, 28-Jul-2020
348,Revenue,CAHD,South - Commissioned Services,Permanent Residential,Beaufort House,3400.00, 28-Jul-2020
349,Revenue,CAHD,Central - Commissioned Services,Respite Planned - Residential,Beaufort House,8400.00, 28-Jul-2020
350,Revenue,CAHD,North - Community based support,Respite Emergency - Residential,Beaufort House,4200.00, 28-Jul-2020
351,Revenue,CAHD,North - Community based support,Respite Emergency - Residential,Beaufort House,1500.00, 28-Jul-2020
352,Revenue,CAHD,North - Community based support,Permanent Residential,Beaufort House,2753.92, 28-Jul-2020
353,Revenue,CAHD,Bed Purchasing - Southmead Hospital,Respite Emergency - Residential,Beaufort House,6300.00, 28-Jul-2020
354,Revenue,CAHD,Central - Bed Purchasing and Direct Payments,Permanent Residential,Beaufort House,3400.00, 28-Jul-2020
355,Revenue,CAHD,South - Commissioned Services,Permanent Residential,Beech House,3018.84, 28-Jul-2020
356,Revenue,CAHD,South Glos Users in South Glos Homes,Permanent Nursing,Beech House,735.68, 28-Jul-2020
357,Revenue,CAHD,South Glos Users in South Glos Homes,Permanent Nursing,Beech House,735.68, 28-Jul-2020
358,Revenue,CAHD,South Glos Users in South Glos Homes,Permanent Nursing,Beech House,735.68, 28-Jul-2020
359,Revenue,CAHD,Bed Purchasing - Southmead Hospital,Permanent Residential,Beech House,4280.00, 28-Jul-2020
360,Revenue,CAHD,South Glos Users in South Glos Homes,Permanent Nursing,Beech House,735.68, 28-Jul-2020
361,Revenue,CAHD,South Glos Users in South Glos Homes,Permanent Nursing,Beech House,850.03, 28-Jul-2020
362,Revenue,CAHD,South Glos Users in South Glos Homes,Permanent Nursing,Beech House,735.68, 28-Jul-2020
363,Revenue,CAHD,North - Community based support,Permanent Nursing,Beech House,13680.00, 28-Jul-2020
364,Revenue,CAHD,North - Community based support,Permanent Nursing,Beech House,4560.00, 28-Jul-2020
365,Revenue,CAHD,South Glos Users in South Glos Homes,Permanent Nursing,Beech House,735.68, 28-Jul-2020
366,Revenue,CAHD,South Glos Users in South Glos Homes,Permanent Nursing,Beech House,1287.93, 28-Jul-2020
367,Revenue,CAHD,South Glos Users in South Glos Homes,Permanent Nursing,Beech House,735.68, 28-Jul-2020
368,Revenue,CAHD,North - Community based support,Permanent Nursing,Beech House,15291.08, 28-Jul-2020
369,Revenue,CAHD,North - Community based support,Permanent Nursing,Beech House,4368.88, 28-Jul-2020
370,Revenue,CAHD,North - Community based support,Fees & Charges Income - General,Beech House,5212.09, 28-Jul-2020
371,Revenue,CAHD,South Glos Users in South Glos Homes,Permanent Nursing,Beech House,735.68, 28-Jul-2020
372,Revenue,CAHD,South Glos Users in South Glos Homes,Permanent Nursing,Beech House,735.68, 28-Jul-2020
373,Revenue,CAHD,South Glos Users in South Glos Homes,Permanent Nursing,Beech House,978.83, 28-Jul-2020
374,Revenue,CAHD,South Glos Users in South Glos Homes,Permanent Nursing,Beech House,735.68, 28-Jul-2020
375,Revenue,CAHD,South Glos Users in South Glos Homes,Permanent Nursing,Beech House,735.68, 28-Jul-2020
376,Revenue,CAHD,South Glos Users in South Glos Homes,Permanent Nursing,Beech House,735.68, 28-Jul-2020
377,Revenue,CAHD,North - Community based support,Permanent Residential,Beech House,3892.86, 28-Jul-2020
378,Revenue,CAHD,North - Community based support,Permanent Nursing,Beech House,4308.04, 28-Jul-2020
379,Revenue,CAHD,South Glos Users in South Glos Homes,Permanent Nursing,Beech House,735.68, 28-Jul-2020
380,Revenue,CAHD,Covid 19- Spend on behalf of NHS,Respite Planned - Residential,Beech House,778.57, 28-Jul-2020
381,Revenue,CAHD,Covid 19- Spend on behalf of NHS,Respite Planned - Residential,Beech House,934.29, 28-Jul-2020
382,Revenue,CAHD,South Glos Users in South Glos Homes,Permanent Nursing,Beech House,735.68, 28-Jul-2020
383,Revenue,CAHD,Covid 19- Spend on behalf of NHS,Respite Planned - Residential,Beech House,1090.00, 28-Jul-2020
384,Revenue,CAHD,South Glos Users in South Glos Homes,Permanent Nursing,Beech House,735.68, 28-Jul-2020
385,Revenue,CAHD,South Glos Users in South Glos Homes,Permanent Nursing,Beech House,735.68, 28-Jul-2020
386,Revenue,CAHD,Covid 19- Spend on behalf of NHS,Respite Planned - Residential,Beech House,1090.00, 28-Jul-2020
387,Revenue,CAHD,South Glos Users in South Glos Homes,Permanent Nursing,Beech House,735.68, 28-Jul-2020
388,Revenue,CAHD,Covid 19- Spend on behalf of NHS,Respite Planned - Residential,Beech House,778.57, 28-Jul-2020
389,Revenue,CAHD,South Glos Users in South Glos Homes,Permanent Nursing,Beechwood Care Home,1028.00, 28-Jul-2020
390,Revenue,CAHD,Central - Commissioned Services,Permanent Residential,Beechwood Court,15254.92, 28-Jul-2020
391,Revenue,CAHD,CSC - Residential Placements,Permanent Residential,Beechwood Court Ltd,21794.66, 02-Jul-2020
392,Revenue,CAHD,CSC - Residential Placements,Permanent Residential,Beechwood Court Ltd,21794.66, 17-Jul-2020
393,Revenue,CAHD,South - S117,Permanent Residential,Bidna House,3692.64, 28-Jul-2020
394,Revenue,CAHD,Statemented Support Payments to OLAs,Other L.A.'s - General,Blaise High School,907.83, 24-Jul-2020
395,Revenue,CAHD,Pathway 1 - Re-Ablement Home Care,Other Small Contracts,Blakehill Healthcare Ltd,1355.00, 10-Jul-2020
396,Revenue,CAHD,South - Commissioned Services,Other Small Contracts,Blakehill Healthcare Ltd,11109.36, 09-Jul-2020
397,Revenue,CAHD,Central - Commissioned Services,Other Small Contracts,Blakehill Healthcare Ltd,3474.26, 30-Jul-2020
398,Revenue,CAHD,North - Community based support,Other Small Contracts,Blakehill Healthcare Ltd,3137.50, 02-Jul-2020
399,Revenue,CAHD,Central - Commissioned Services,Other Small Contracts,Blakehill Healthcare Ltd,1682.50, 02-Jul-2020
400,Revenue,CAHD,Central - Commissioned Services,Other Small Contracts,Blakehill Healthcare Ltd,500.00, 02-Jul-2020
401,Revenue,CAHD,Central - Commissioned Services,Other Small Contracts,Blakehill Healthcare Ltd,687.50, 02-Jul-2020
402,Revenue,CAHD,Central - Commissioned Services,Other Small Contracts,Blakehill Healthcare Ltd,1131.25, 03-Jul-2020
403,Revenue,CAHD,Central - Commissioned Services,Other Small Contracts,Blakehill Healthcare Ltd,1050.00, 02-Jul-2020
404,Revenue,CAHD,South - Commissioned Services,Other Small Contracts,Blakehill Healthcare Ltd,700.00, 02-Jul-2020
405,Revenue,CAHD,South - Commissioned Services,Other Small Contracts,Blakehill Healthcare Ltd,3137.50, 02-Jul-2020
406,Revenue,CAHD,South - Commissioned Services,Other Small Contracts,Blakehill Healthcare Ltd,11069.92, 03-Jul-2020
407,Revenue,CAHD,Central - Commissioned Services,Other Small Contracts,Blakehill Healthcare Ltd,825.00, 03-Jul-2020
408,Revenue,CAHD,South Glos Users in South Glos Homes,Permanent Nursing,Blossom Field,1392.54, 28-Jul-2020
409,Revenue,CAHD,South Glos Users in South Glos Homes,Permanent Nursing,Blossom Field,735.68, 28-Jul-2020
410,Revenue,CAHD,North - Community based support,Permanent Nursing,Blossom Field,11107.80, 28-Jul-2020
411,Revenue,CAHD,North - Community based support,Permanent Nursing,Blossom Field,4039.20, 28-Jul-2020
412,Revenue,CAHD,South Glos Users in South Glos Homes,Permanent Nursing,Blossom Field,735.68, 28-Jul-2020
413,Revenue,CAHD,South - Commissioned Services,Permanent Nursing,Blossom Field,4780.36, 28-Jul-2020
414,Revenue,CAHD,South Glos Users in South Glos Homes,Permanent Nursing,Blossom Field,735.68, 28-Jul-2020
415,Revenue,CAHD,South Glos Users in South Glos Homes,Permanent Nursing,Blossom Field,735.68, 28-Jul-2020
416,Revenue,CAHD,North - Community based support,Permanent Nursing,Blossom Field,4770.40, 28-Jul-2020
417,Revenue,CAHD,South Glos Users in South Glos Homes,Permanent Nursing,Blossom Field,735.68, 28-Jul-2020
418,Revenue,CAHD,North - Community based support,Permanent Nursing,Blossom Field,4352.80, 28-Jul-2020
419,Revenue,CAHD,South Glos Users in South Glos Homes,Permanent Nursing,Blossom Field,735.68, 28-Jul-2020
420,Revenue,CAHD,North - Community based support,Permanent Nursing,Blossom Field,4039.20, 28-Jul-2020
421,Revenue,CAHD,South Glos Users in South Glos Homes,Permanent Nursing,Blossom Field,1210.65, 28-Jul-2020
422,Revenue,CAHD,South Glos Users in South Glos Homes,Permanent Nursing,Blossom Field,735.68, 28-Jul-2020
423,Revenue,CAHD,South Glos Users in South Glos Homes,Permanent Nursing,Blossom Field,814.50, 28-Jul-2020
424,Revenue,CAHD,South Glos Users in South Glos Homes,Permanent Nursing,Blossom Field,735.68, 28-Jul-2020
425,Revenue,CAHD,South Glos Users in South Glos Homes,Permanent Nursing,Blossom Field,735.68, 28-Jul-2020
426,Revenue,CAHD,South - Commissioned Services,Permanent Nursing,Blossom Field,4501.36, 28-Jul-2020
427,Revenue,CAHD,South Glos Users in South Glos Homes,Permanent Nursing,Blossom Field,735.68, 28-Jul-2020
428,Revenue,CAHD,South Glos Users in South Glos Homes,Permanent Nursing,Blossom Field,735.68, 28-Jul-2020
429,Revenue,CAHD,North - Community based support,Permanent Nursing,Blossom Field,3604.60, 28-Jul-2020
430,Revenue,CAHD,South Glos Users in South Glos Homes,Permanent Nursing,Blossom Field,735.68, 28-Jul-2020
431,Revenue,CAHD,South Glos Users in South Glos Homes,Permanent Nursing,Blossom Field,735.68, 28-Jul-2020
432,Revenue,CAHD,North - Community based support,Permanent Nursing,Blossom Field,4799.88, 28-Jul-2020
433,Revenue,CAHD,South Glos Users in South Glos Homes,Permanent Nursing,Blossom Field,735.68, 28-Jul-2020
434,Revenue,CAHD,South Glos Users in South Glos Homes,Permanent Nursing,Blossom Field,735.68, 28-Jul-2020
435,Revenue,CAHD,North - Community based support,Permanent Nursing,Blossom Field,4800.00, 28-Jul-2020
436,Revenue,CAHD,South Glos Users in South Glos Homes,Permanent Nursing,Blossom Field,735.68, 28-Jul-2020
437,Revenue,CAHD,Central - Commissioned Services,Permanent Nursing,Blossom Field,4352.72, 28-Jul-2020
438,Revenue,CAHD,South Glos Users in South Glos Homes,Permanent Nursing,Blossom Field,735.68, 28-Jul-2020
439,Revenue,CAHD,South Glos Users in South Glos Homes,Permanent Nursing,Blossom Field,735.68, 28-Jul-2020
440,Revenue,CAHD,South - Commissioned Services,Permanent Nursing,Blossom Field,4039.20, 28-Jul-2020
441,Revenue,CAHD,South Glos Users in South Glos Homes,Permanent Nursing,Blossom Field,735.68, 28-Jul-2020
442,Revenue,CAHD,South Glos Users in South Glos Homes,Permanent Nursing,Blossom Field,735.68, 28-Jul-2020
443,Revenue,CAHD,Central - Commissioned Services,Permanent Nursing,Blossom Field,4039.20, 28-Jul-2020
444,Revenue,CAHD,South Glos Users in South Glos Homes,Permanent Nursing,Blossom Field,735.68, 28-Jul-2020
445,Revenue,CAHD,North - Community based support,Permanent Nursing,Blossom Field,20714.29, 28-Jul-2020
446,Revenue,CAHD,North - Community based support,Permanent Nursing,Blossom Field,17500.00, 28-Jul-2020
447,Revenue,CAHD,North - Community based support,Fees & Charges Income - General,Blossom Field,2496.90, 28-Jul-2020
448,Revenue,CAHD,North - Community based support,Permanent Nursing,Blossom Field,5000.00, 28-Jul-2020
449,Revenue,CAHD,South Glos Users in South Glos Homes,Permanent Nursing,Blossom Field,735.68, 28-Jul-2020
450,Revenue,CAHD,North - Community based support,Fees & Charges Income - General,Blossom Field,845.03, 28-Jul-2020
451,Revenue,CAHD,North - Community based support,Fees & Charges Income - General,Blossom Field,2244.44, 28-Jul-2020
452,Revenue,CAHD,South Glos Users in South Glos Homes,Permanent Nursing,Blossom Field,735.68, 28-Jul-2020
453,Revenue,CAHD,Central - Commissioned Services,Permanent Nursing,Blossom Field,15400.00, 28-Jul-2020
454,Revenue,CAHD,Central - Commissioned Services,Permanent Nursing,Blossom Field,4400.00, 28-Jul-2020
455,Revenue,CAHD,South Glos Users in South Glos Homes,Permanent Nursing,Blossom Field,735.68, 28-Jul-2020
456,Revenue,CAHD,Central - Commissioned Services,Fees & Charges Income - General,Blossom Field,2364.17, 28-Jul-2020
457,Revenue,CAHD,North - Community based support,Permanent Nursing,Blossom Field,4039.20, 28-Jul-2020
458,Revenue,CAHD,South Glos Users in South Glos Homes,Permanent Nursing,Blossom Field,735.68, 28-Jul-2020
459,Revenue,CAHD,South Glos Users in South Glos Homes,Permanent Nursing,Blossom Field,735.68, 28-Jul-2020
460,Revenue,CAHD,North - Community based support,Permanent Nursing,Blossom Field,3707.64, 28-Jul-2020
461,Revenue,CAHD,South Glos Users in South Glos Homes,Permanent Nursing,Blossom Field,735.68, 28-Jul-2020
462,Revenue,CAHD,North - Community based support,Permanent Residential,Bluebells,3699.60, 28-Jul-2020
463,Revenue,CAHD,Pathway 1 - Re-Ablement Home Care,Other Small Contracts,Bluebird Care (South Gloucestershire),770.10, 22-Jul-2020
464,Revenue,CAHD,Pathway 1 - Re-Ablement Home Care,Other Small Contracts,Bluebird Care (South Gloucestershire),528.50, 31-Jul-2020
465,Revenue,CAHD,Pathway 1 - Re-Ablement Home Care,Other Small Contracts,Bluebird Care (South Gloucestershire),656.85, 24-Jul-2020
466,Revenue,CAHD,Pathway 1 - Re-Ablement Home Care,Other Small Contracts,Bluebird Care (South Gloucestershire),943.75, 22-Jul-2020
467,Revenue,CAHD,Pathway 1 - Re-Ablement Home Care,Other Small Contracts,Bluebird Care (South Gloucestershire),936.20, 30-Jul-2020
468,Revenue,CAHD,Covid 19 -Adult Social Care,Other Small Contracts,Bluebird Care (South Gloucestershire),15.10, 06-Jul-2020
469,Revenue,CAHD,Central - Commissioned Services,Other Small Contracts,Bluebird Care (South Gloucestershire),7197.62, 06-Jul-2020
470,Revenue,CAHD,South - Commissioned Services,Other Small Contracts,Bluebird Care (South Gloucestershire),4804.22, 06-Jul-2020
471,Revenue,CAHD,North - Community based support,Other Small Contracts,Bluebird Care (South Gloucestershire),5892.54, 06-Jul-2020
472,Revenue,CAHD,Covid 19 -Adult Social Care,Other Small Contracts,Bluebird Care (South Gloucestershire),15.10, 07-Jul-2020
473,Revenue,CAHD,Covid 19- Spend on behalf of NHS,Other Small Contracts,Bluebird Care (South Gloucestershire),807.85, 07-Jul-2020
474,Revenue,CAHD,Central - Commissioned Services,Other Small Contracts,Bluebird Care (South Gloucestershire),6893.15, 07-Jul-2020
475,Revenue,CAHD,South - Commissioned Services,Other Small Contracts,Bluebird Care (South Gloucestershire),4166.04, 07-Jul-2020
476,Revenue,CAHD,North - Community based support,Other Small Contracts,Bluebird Care (South Gloucestershire),5810.69, 07-Jul-2020
477,Revenue,CAHD,Resilience Team,Other Small Contracts,Bluebird Care (South Gloucestershire),53.90, 07-Jul-2020
478,Revenue,CAHD,Covid 19- Spend on behalf of NHS,Other Small Contracts,Bluebird Care (South Gloucestershire),981.50, 10-Jul-2020
479,Revenue,CAHD,Central - Commissioned Services,Other Small Contracts,Bluebird Care (South Gloucestershire),7135.93, 10-Jul-2020
480,Revenue,CAHD,South - Commissioned Services,Other Small Contracts,Bluebird Care (South Gloucestershire),5127.70, 10-Jul-2020
481,Revenue,CAHD,North - Community based support,Other Small Contracts,Bluebird Care (South Gloucestershire),4323.19, 10-Jul-2020
482,Revenue,CAHD,Resilience Team,Other Small Contracts,Bluebird Care (South Gloucestershire),123.20, 10-Jul-2020
483,Revenue,CAHD,Covid 19- Spend on behalf of NHS,Other Small Contracts,Bluebird Care (South Gloucestershire),1011.70, 10-Jul-2020
484,Revenue,CAHD,Central - Commissioned Services,Other Small Contracts,Bluebird Care (South Gloucestershire),6848.36, 10-Jul-2020
485,Revenue,CAHD,South - Commissioned Services,Other Small Contracts,Bluebird Care (South Gloucestershire),4836.25, 10-Jul-2020
486,Revenue,CAHD,North - Community based support,Other Small Contracts,Bluebird Care (South Gloucestershire),4163.59, 10-Jul-2020
487,Revenue,CAHD,Resilience Team,Other Small Contracts,Bluebird Care (South Gloucestershire),130.90, 10-Jul-2020
488,Revenue,CAHD,Covid 19- Spend on behalf of NHS,Other Small Contracts,Bluebird Care (South Gloucestershire),83.05, 22-Jul-2020
489,Revenue,CAHD,Central - Commissioned Services,Other Small Contracts,Bluebird Care (South Gloucestershire),7187.60, 22-Jul-2020
490,Revenue,CAHD,South - Commissioned Services,Other Small Contracts,Bluebird Care (South Gloucestershire),5027.64, 22-Jul-2020
491,Revenue,CAHD,North - Community based support,Other Small Contracts,Bluebird Care (South Gloucestershire),4208.89, 22-Jul-2020
492,Revenue,CAHD,Resilience Team,Other Small Contracts,Bluebird Care (South Gloucestershire),138.60, 22-Jul-2020
493,Revenue,CAHD,Covid 19 -Adult Social Care,Training Expenses,Bond Solon Training Limited,895.00, 30-Jul-2020
494,Revenue,CAHD,S28A cases,Permanent Residential,Bradbury House,6505.16, 28-Jul-2020
495,Revenue,CAHD,North - Community based support,Permanent Residential,Bradbury House,9917.08, 28-Jul-2020
496,Revenue,CAHD,North - S117,Permanent Residential,Bradbury House,5740.24, 28-Jul-2020
497,Revenue,CAHD,Jointly Funded H&SC Packages,Permanent Residential,Bradbury House,7927.00, 28-Jul-2020
498,Revenue,CAHD,South - Commissioned Services,Permanent Residential,Bradbury House,9777.00, 28-Jul-2020
499,Revenue,CAHD,Sexual Health,Other Small Contracts,Bradley Stoke Surgery,1610.00, 20-Jul-2020
500,Revenue,CAHD,Sexual Health,Other Small Contracts,Bradley Stoke Surgery,2890.60, 20-Jul-2020
501,Revenue,CAHD,CSC - Residential Placements,Permanent Residential,Branas ISAF Ltd,21035.71, 17-Jul-2020
502,Revenue,CAHD,CSC - Residential Placements,Permanent Residential,Branas ISAF Ltd,19285.71, 14-Jul-2020
503,Revenue,CAHD,North - Community based support,Permanent Residential,Breadstone House Care Centre,2088.68, 28-Jul-2020
504,Revenue,CAHD,Social Lettings Agency,Rent,Individual,766.10, 03-Jul-2020
505,Revenue,CAHD,Social Lettings Agency,Fees - General,Individual,8.15, 03-Jul-2020
506,Revenue,CAHD,North - bed purchasing and direct  payments,Permanent Residential,Bridge House Care Home,2740.00, 28-Jul-2020
507,Revenue,CAHD,North - Community based support,Permanent Residential,Bridge House Care Home,2848.00, 28-Jul-2020
508,Revenue,CAHD,North - Community based support,Permanent Residential,Bridge House Care Home,2678.04, 28-Jul-2020
509,Revenue,CAHD,North - Community based support,Permanent Residential,Bridge House Care Home,2034.29, 28-Jul-2020
510,Revenue,CAHD,North - Community based support,Permanent Residential,Bridge House Care Home,1220.57, 28-Jul-2020
511,Revenue,CAHD,North - Community based support,Permanent Residential,Bridge House Care Home,1627.43, 28-Jul-2020
512,Revenue,CAHD,North - Community based support,Permanent Residential,Bridgwater Court Care Home,10773.64, 28-Jul-2020
513,Revenue,CAHD,Early Years Inclusion Fund,Other Public Bodies,Bright Sparks Pre-School,1800.00, 07-Jul-2020
514,Revenue,CAHD,Health Inequalities,Grants to Voluntary Bodies,Bristol & Avon Chinese Womens Group,500.00, 01-Jul-2020
515,Revenue,CAHD,Older People`s Commissioned Se,Grants to Voluntary Bodies,Bristol Area Stroke Foundation,19052.75, 01-Jul-2020
516,Revenue,CAHD,Transport OLA Special Schools and RB,Client Transport,Bristol City Council,1791.21, 29-Jul-2020
517,Revenue,CAHD,Schools Specific Grant Income,Other Public Bodies,Bristol City Council,630.00, 09-Jul-2020
518,Revenue,CAHD,Placements OLA Special Schools and RB,Other L.A.'s - General,Bristol City Council - Schools,2578.00, 28-Jul-2020
519,Revenue,CAHD,Placements OLA Special Schools and RB,Other L.A.'s - General,Bristol City Council - Schools,1381.00, 28-Jul-2020
520,Revenue,CAHD,Statemented Support Payments to OLAs,Other L.A.'s - General,Bristol City Council - Schools,1379.43, 24-Jul-2020
521,Revenue,CAHD,Placements OLA Special Schools and RB,Other L.A.'s - General,Bristol City Council - Schools,914.33, 28-Jul-2020
522,Revenue,CAHD,Placements OLA Special Schools and RB,Other L.A.'s - General,Bristol City Council - Schools,1305.58, 28-Jul-2020
523,Revenue,CAHD,Statemented Support Payments to OLAs,Other L.A.'s - General,Bristol City Council - Schools,554.13, 24-Jul-2020
524,Revenue,CAHD,Statemented Support Payments to OLAs,Other L.A.'s - General,Bristol City Council - Schools,660.24, 24-Jul-2020
525,Revenue,CAHD,Placements OLA Special Schools and RB,Other L.A.'s - General,Bristol City Council - Schools,3356.33, 28-Jul-2020
526,Revenue,CAHD,Placements OLA Special Schools and RB,Other L.A.'s - General,Bristol City Council - Schools,2722.50, 28-Jul-2020
527,Revenue,CAHD,Placements OLA Special Schools and RB,Other L.A.'s - General,Bristol City Council - Schools,1275.67, 28-Jul-2020
528,Revenue,CAHD,Placements OLA Special Schools and RB,Other L.A.'s - General,Bristol City Council - Schools,2578.00, 28-Jul-2020
529,Revenue,CAHD,Placements OLA Special Schools and RB,Other L.A.'s - General,Bristol City Council - Schools,1381.00, 28-Jul-2020
530,Revenue,CAHD,Placements OLA Special Schools and RB,Other L.A.'s - General,Bristol City Council - Schools,2050.17, 28-Jul-2020
531,Revenue,CAHD,Placements OLA Special Schools and RB,Other L.A.'s - General,Bristol City Council - Schools,1381.00, 28-Jul-2020
532,Revenue,CAHD,Placements OLA Special Schools and RB,Other L.A.'s - General,Bristol City Council - Schools,1381.00, 28-Jul-2020
533,Revenue,CAHD,Placements OLA Special Schools and RB,Other L.A.'s - General,Bristol City Council - Schools,2050.17, 28-Jul-2020
534,Revenue,CAHD,Placements OLA Special Schools and RB,Other L.A.'s - General,Bristol City Council - Schools,1675.30, 28-Jul-2020
535,Revenue,CAHD,Placements OLA Special Schools and RB,Other L.A.'s - General,Bristol City Council - Schools,1976.78, 28-Jul-2020
536,Revenue,CAHD,Placements OLA Special Schools and RB,Other L.A.'s - General,Bristol City Council - Schools,20929.59, 28-Jul-2020
537,Revenue,CAHD,Placements OLA Special Schools and RB,Other L.A.'s - General,Bristol City Council - Schools,2722.50, 28-Jul-2020
538,Revenue,CAHD,Placements OLA Special Schools and RB,Other L.A.'s - General,Bristol City Council - Schools,1975.67, 28-Jul-2020
539,Revenue,CAHD,Placements OLA Special Schools and RB,Other L.A.'s - General,Bristol City Council - Schools,2722.50, 28-Jul-2020
540,Revenue,CAHD,Placements OLA Special Schools and RB,Other L.A.'s - General,Bristol City Council - Schools,883.50, 28-Jul-2020
541,Revenue,CAHD,Placements OLA Special Schools and RB,Other L.A.'s - General,Bristol City Council - Schools,4107.54, 28-Jul-2020
542,Revenue,CAHD,Placements OLA Special Schools and RB,Other L.A.'s - General,Bristol City Council - Schools,777.50, 28-Jul-2020
543,Revenue,CAHD,Placements OLA Special Schools and RB,Other L.A.'s - General,Bristol City Council - Schools,1031.20, 28-Jul-2020
544,Revenue,CAHD,Placements OLA Special Schools and RB,Other L.A.'s - General,Bristol City Council - Schools,2783.92, 28-Jul-2020
545,Revenue,CAHD,Placements OLA Special Schools and RB,Other L.A.'s - General,Bristol City Council - Schools,2578.00, 28-Jul-2020
546,Revenue,CAHD,Placements OLA Special Schools and RB,Other L.A.'s - General,Bristol City Council - Schools,809.00, 28-Jul-2020
547,Revenue,CAHD,Placements OLA Special Schools and RB,Other L.A.'s - General,Bristol City Council - Schools,3356.33, 28-Jul-2020
548,Revenue,CAHD,Placements OLA Special Schools and RB,Other L.A.'s - General,Bristol City Council - Schools,3405.92, 28-Jul-2020
549,Revenue,CAHD,Placements OLA Special Schools and RB,Other L.A.'s - General,Bristol City Council - Schools,2062.40, 28-Jul-2020
550,Revenue,CAHD,Placements OLA Special Schools and RB,Other L.A.'s - General,Bristol City Council - Schools,2578.00, 28-Jul-2020
551,Revenue,CAHD,Placements OLA Special Schools and RB,Other L.A.'s - General,Bristol City Council - Schools,2828.50, 28-Jul-2020
552,Revenue,CAHD,Placements OLA Special Schools and RB,Other L.A.'s - General,Bristol City Council - Schools,15191.00, 28-Jul-2020
553,Revenue,CAHD,Placements OLA Special Schools and RB,Other L.A.'s - General,Bristol City Council - Schools,1305.58, 28-Jul-2020
554,Revenue,CAHD,Schools Specific Grant Income,Other Public Bodies,Bristol City Council - Schools,630.00, 07-Jul-2020
555,Revenue,CAHD,Statemented Support Payments to OLAs,Other L.A.'s - General,Broadlands Academy,1332.27, 24-Jul-2020
556,Revenue,CAHD,Supporting People Programme,Grants to Voluntary Bodies,Bromford  :  Merlin Housing Society,15637.00, 01-Jul-2020
557,Revenue,CAHD,Supporting People Programme,Grants to Voluntary Bodies,Bromford  :  Merlin Housing Society,2741.00, 01-Jul-2020
558,Revenue,CAHD,Supporting People Programme,Grants to Voluntary Bodies,Bromford  :  Merlin Housing Society,22940.00, 01-Jul-2020
559,Revenue,CAHD,Supporting People Programme,Grants to Voluntary Bodies,Bromford  :  Merlin Housing Society,1113.00, 01-Jul-2020
560,Revenue,CAHD,Supporting People Programme,Grants to Voluntary Bodies,Bromford  :  Merlin Housing Society,15637.00, 31-Jul-2020
561,Revenue,CAHD,Supporting People Programme,Grants to Voluntary Bodies,Bromford  :  Merlin Housing Society,2741.00, 31-Jul-2020
562,Revenue,CAHD,Supporting People Programme,Grants to Voluntary Bodies,Bromford  :  Merlin Housing Society,22940.00, 31-Jul-2020
563,Revenue,CAHD,Supporting People Programme,Grants to Voluntary Bodies,Bromford  :  Merlin Housing Society,1113.00, 31-Jul-2020
564,Revenue,CAHD,Parent Partnership,Fees - General,Individual,952.00, 03-Jul-2020
565,Revenue,CAHD,Parent Partnership,Fees - General,Individual,2200.00, 30-Jul-2020
566,Revenue,CAHD,South Glos Users in South Glos Homes,Permanent Nursing,Brunelcare,788.23, 27-Jul-2020
567,Revenue,CAHD,South - Commissioned Services,Permanent Nursing,Brunelcare,3621.73, 27-Jul-2020
568,Revenue,CAHD,South Glos Users in South Glos Homes,Permanent Nursing,Brunelcare,788.23, 27-Jul-2020
569,Revenue,CAHD,North - S117,Permanent Nursing,Brunelcare,3621.73, 27-Jul-2020
570,Revenue,CAHD,South Glos Users in South Glos Homes,Permanent Nursing,Brunelcare,788.23, 27-Jul-2020
571,Revenue,CAHD,North - S117,Permanent Nursing,Brunelcare,3621.73, 27-Jul-2020
572,Revenue,CAHD,South Glos Users in South Glos Homes,Permanent Nursing,Brunelcare,788.23, 27-Jul-2020
573,Revenue,CAHD,South - Commissioned Services,Permanent Nursing,Brunelcare,2629.93, 27-Jul-2020
574,Revenue,CAHD,South Glos Users in South Glos Homes,Permanent Nursing,Brunelcare,788.23, 27-Jul-2020
575,Revenue,CAHD,South - Commissioned Services,Permanent Nursing,Brunelcare,2796.04, 27-Jul-2020
576,Revenue,CAHD,South Glos Users in South Glos Homes,Permanent Nursing,Brunelcare,788.23, 27-Jul-2020
577,Revenue,CAHD,North - Community based support,Permanent Nursing,Brunelcare,3621.73, 27-Jul-2020
578,Revenue,CAHD,South Glos Users in South Glos Homes,Permanent Nursing,Brunelcare,788.23, 27-Jul-2020
579,Revenue,CAHD,North - Community based support,Permanent Nursing,Brunelcare,2897.53, 27-Jul-2020
580,Revenue,CAHD,South Glos Users in South Glos Homes,Permanent Nursing,Brunelcare,788.23, 27-Jul-2020
581,Revenue,CAHD,South - Commissioned Services,Permanent Nursing,Brunelcare,2913.64, 27-Jul-2020
582,Revenue,CAHD,South Glos Users in South Glos Homes,Permanent Nursing,Brunelcare,788.23, 27-Jul-2020
583,Revenue,CAHD,North - Community based support,Permanent Nursing,Brunelcare,2886.81, 27-Jul-2020
584,Revenue,CAHD,South Glos Users in South Glos Homes,Permanent Nursing,Brunelcare,788.23, 27-Jul-2020
585,Revenue,CAHD,Central - Commissioned Services,Permanent Nursing,Brunelcare,2971.41, 27-Jul-2020
586,Revenue,CAHD,South Glos Users in South Glos Homes,Permanent Nursing,Brunelcare,788.23, 27-Jul-2020
587,Revenue,CAHD,South - Commissioned Services,Permanent Nursing,Brunelcare,2617.24, 27-Jul-2020
588,Revenue,CAHD,South Glos Users in South Glos Homes,Permanent Nursing,Brunelcare,788.23, 27-Jul-2020
589,Revenue,CAHD,South - Commissioned Services,Permanent Nursing,Brunelcare,3016.89, 27-Jul-2020
590,Revenue,CAHD,South Glos Users in South Glos Homes,Permanent Nursing,Brunelcare,788.23, 27-Jul-2020
591,Revenue,CAHD,South - Commissioned Services,Permanent Nursing,Brunelcare,2085.47, 27-Jul-2020
592,Revenue,CAHD,South - Commissioned Services,Other Small Contracts,Brunelcare,15176.80, 10-Jul-2020
593,Revenue,CAHD,North - Community based support,Other Small Contracts,Brunelcare,346.48, 10-Jul-2020
594,Revenue,CAHD,South - Commissioned Services,Other Small Contracts,Brunelcare,15298.80, 17-Jul-2020
595,Revenue,CAHD,North - Community based support,Other Small Contracts,Brunelcare,370.88, 17-Jul-2020
596,Revenue,CAHD,Additional Payments to providers - COVID,Other Small Contracts,Brunelcare,4612.53, 06-Jul-2020
597,Revenue,CAHD,Additional Payments to providers - COVID,Other Small Contracts,Brunelcare,4206.51, 06-Jul-2020
598,Revenue,CAHD,Additional Payments to providers - COVID,Other Small Contracts,Brunelcare,4450.51, 17-Jul-2020
599,Revenue,CAHD,Additional Payments to providers - COVID,Other Small Contracts,Brunelcare,2586.93, 17-Jul-2020
600,Revenue,CAHD,North - S117,Permanent Residential,Buckland Care,3600.00, 28-Jul-2020
601,Revenue,CAHD,Central - Commissioned Services,Permanent Nursing,Bupa Care Services  Bridge House,3600.00, 28-Jul-2020
602,Revenue,CAHD,CSC - Vinney Green Secure Unit,R & M by Departments,BWS Standfast Fire & Security Systems,894.00, 27-Jul-2020
603,Revenue,CAHD,Social Lettings Agency,Rent,Individual,710.96, 24-Jul-2020
604,Revenue,CAHD,Social Lettings Agency,Fees - General,Individual,16.16, 24-Jul-2020
605,Revenue,CAHD,Statemented Support Payments to OLAs,Other L.A.'s - General,Cabot Learning Federation,1544.49, 24-Jul-2020
606,Revenue,CAHD,Schools Specific Grant Income,Other Public Bodies,Cabot Learning Federation,630.00, 07-Jul-2020
607,Revenue,CAHD,Statemented Support Academies,Other Public Bodies,Cabot Learning Federation,918.71, 27-Jul-2020
608,Revenue,CAHD,Statemented Support Academies,Other Public Bodies,Cabot Learning Federation,1202.39, 27-Jul-2020
609,Revenue,CAHD,Statemented Support Academies,Other Public Bodies,Cabot Learning Federation,908.00, 27-Jul-2020
610,Revenue,CAHD,Statemented Support Academies,Other Public Bodies,Cabot Learning Federation,518.76, 27-Jul-2020
611,Revenue,CAHD,Statemented Support Academies,Other Public Bodies,Cabot Learning Federation,907.83, 27-Jul-2020
612,Revenue,CAHD,Statemented Support Academies,Other Public Bodies,Cabot Learning Federation,554.13, 27-Jul-2020
613,Revenue,CAHD,Statemented Support Academies,Other Public Bodies,Cabot Learning Federation,565.92, 27-Jul-2020
614,Revenue,CAHD,Statemented Support Academies,Other Public Bodies,Cabot Learning Federation,1048.67, 27-Jul-2020
615,Revenue,CAHD,Statemented Support Academies,Other Public Bodies,Cabot Learning Federation,2616.63, 27-Jul-2020
616,Revenue,CAHD,Schools Specific Grant Income,Other Public Bodies,Cabot Learning Federation,630.00, 07-Jul-2020
617,Revenue,CAHD,Statemented Support Payments to OLAs,Other L.A.'s - General,Cabot Learning Federation,1013.94, 24-Jul-2020
618,Revenue,CAHD,Schools Specific Grant Income,Other Public Bodies,Cabot Learning Federation,630.00, 07-Jul-2020
619,Revenue,CAHD,Statemented Support Academies,Other Public Bodies,Cabot Learning Federation,695.61, 27-Jul-2020
620,Revenue,CAHD,Statemented Support Academies,Other Public Bodies,Cabot Learning Federation,530.55, 27-Jul-2020
621,Revenue,CAHD,Statemented Support Academies,Other Public Bodies,Cabot Learning Federation,918.75, 27-Jul-2020
622,Revenue,CAHD,Statemented Support Academies,Other Public Bodies,Cabot Learning Federation,975.58, 27-Jul-2020
623,Revenue,CAHD,Academy Resource Base Funding,Other Public Bodies,Cabot Learning Federation,5095.92, 03-Jul-2020
624,Revenue,CAHD,Academy Resource Base Funding,Other Public Bodies,Cabot Learning Federation,4931.52, 03-Jul-2020
625,Revenue,CAHD,Academy Resource Base Funding,Other Public Bodies,Cabot Learning Federation,1175.88, 28-Jul-2020
626,Revenue,CAHD,Academy Resource Base Funding,Other Public Bodies,Cabot Learning Federation,1702.96, 28-Jul-2020
627,Revenue,CAHD,Academy Resource Base Funding,Other Public Bodies,Cabot Learning Federation,1540.83, 28-Jul-2020
628,Revenue,CAHD,Academy Resource Base Funding,Other Public Bodies,Cabot Learning Federation,1175.88, 28-Jul-2020
629,Revenue,CAHD,Academy Resource Base Funding,Other Public Bodies,Cabot Learning Federation,1175.88, 28-Jul-2020
630,Revenue,CAHD,Academy Resource Base Funding,Other Public Bodies,Cabot Learning Federation,1702.96, 28-Jul-2020
631,Revenue,CAHD,Academy Resource Base Funding,Other Public Bodies,Cabot Learning Federation,1540.83, 28-Jul-2020
632,Revenue,CAHD,Academy Resource Base Funding,Other Public Bodies,Cabot Learning Federation,1175.88, 28-Jul-2020
633,Revenue,CAHD,Academy Resource Base Funding,Other Public Bodies,Cabot Learning Federation,1540.83, 28-Jul-2020
634,Revenue,CAHD,Academy Resource Base Funding,Other Public Bodies,Cabot Learning Federation,1175.88, 28-Jul-2020
635,Revenue,CAHD,Academy Resource Base Funding,Other Public Bodies,Cabot Learning Federation,1175.88, 28-Jul-2020
636,Revenue,CAHD,Academy Resource Base Funding,Other Public Bodies,Cabot Learning Federation,1702.96, 28-Jul-2020
637,Revenue,CAHD,Academy Resource Base Funding,Other Public Bodies,Cabot Learning Federation,648.70, 28-Jul-2020
638,Revenue,CAHD,Academy Resource Base Funding,Other Public Bodies,Cabot Learning Federation,1013.75, 28-Jul-2020
639,Revenue,CAHD,Academy Resource Base Funding,Other Public Bodies,Cabot Learning Federation,648.70, 28-Jul-2020
640,Revenue,CAHD,Academy Resource Base Funding,Other Public Bodies,Cabot Learning Federation,1540.83, 28-Jul-2020
641,Revenue,CAHD,Academy Resource Base Funding,Other Public Bodies,Cabot Learning Federation,2189.53, 28-Jul-2020
642,Revenue,CAHD,Academy Resource Base Funding,Other Public Bodies,Cabot Learning Federation,2189.53, 28-Jul-2020
643,Revenue,CAHD,Academy Resource Base Funding,Other Public Bodies,Cabot Learning Federation,1175.88, 28-Jul-2020
644,Revenue,CAHD,Statemented Support Payments to OLAs,Other L.A.'s - General,Cabot Learning Federation,872.46, 24-Jul-2020
645,Revenue,CAHD,Statemented Support Academies,Other Public Bodies,Cabot Learning Federation,804.08, 27-Jul-2020
646,Revenue,CAHD,Statemented Support Academies,Other Public Bodies,Cabot Learning Federation,554.13, 27-Jul-2020
647,Revenue,CAHD,Statemented Support Academies,Other Public Bodies,Cabot Learning Federation,742.77, 27-Jul-2020
648,Revenue,CAHD,Statemented Support Academies,Other Public Bodies,Cabot Learning Federation,778.14, 27-Jul-2020
649,Revenue,CAHD,Statemented Support Academies,Other Public Bodies,Cabot Learning Federation,943.20, 27-Jul-2020
650,Revenue,CAHD,Statemented Support Academies,Other Public Bodies,Cabot Learning Federation,813.51, 27-Jul-2020
651,Revenue,CAHD,Schools Block Growth Contingency,Other Public Bodies,Cabot Learning Federation,23889.63, 14-Jul-2020
652,Revenue,CAHD,Schools Specific Grant Income,Other Public Bodies,Cabot Learning Federation,840.00, 24-Jul-2020
653,Revenue,CAHD,Schools Block Growth Contingency,Other Public Bodies,Cabot Learning Federation,54250.50, 14-Jul-2020
654,Revenue,CAHD,Statemented Support Payments to OLAs,Other L.A.'s - General,Cabot Learning Federation,601.29, 24-Jul-2020
655,Revenue,CAHD,Statemented Support Academies,Other Public Bodies,Cabot Learning Federation,860.67, 27-Jul-2020
656,Revenue,CAHD,Statemented Support Academies,Other Public Bodies,Cabot Learning Federation,589.50, 27-Jul-2020
657,Revenue,CAHD,Statemented Support Academies,Other Public Bodies,Cabot Learning Federation,801.72, 27-Jul-2020
658,Revenue,CAHD,Statemented Support Academies,Other Public Bodies,Cabot Learning Federation,1096.47, 27-Jul-2020
659,Revenue,CAHD,Statemented Support Academies,Other Public Bodies,Cabot Learning Federation,730.98, 27-Jul-2020
660,Revenue,CAHD,Statemented Support Academies,Other Public Bodies,Cabot Learning Federation,907.83, 27-Jul-2020
661,Revenue,CAHD,Statemented Support Academies,Other Public Bodies,Cabot Learning Federation,530.55, 27-Jul-2020
662,Revenue,CAHD,Statemented Support Academies,Other Public Bodies,Cabot Learning Federation,907.83, 27-Jul-2020
663,Revenue,CAHD,Statemented Support Payments to OLAs,Other L.A.'s - General,Cabot Learning Federation,1072.89, 24-Jul-2020
664,Revenue,CAHD,Schools Specific Grant Income,Other Public Bodies,Cabot Learning Federation,630.00, 07-Jul-2020
665,Revenue,CAHD,Schools Specific Grant Income,Other Public Bodies,Cabot Learning Federation,630.00, 07-Jul-2020
666,Revenue,CAHD,Schools Specific Grant Income,Other Public Bodies,Cabot Learning Federation,630.00, 07-Jul-2020
667,Revenue,CAHD,Statemented Support Academies,Other Public Bodies,Cabot Learning Federation,1296.90, 27-Jul-2020
668,Revenue,CAHD,Statemented Support Academies,Other Public Bodies,Cabot Learning Federation,872.46, 27-Jul-2020
669,Revenue,CAHD,Schools Specific Grant Income,Other Public Bodies,Cabot Learning Federation,630.00, 07-Jul-2020
670,Revenue,CAHD,Schools Specific Grant Income,Other Public Bodies,Cabot Learning Federation,630.00, 07-Jul-2020
671,Revenue,CAHD,Schools Specific Grant Income,Other Public Bodies,Cabot Learning Federation,630.00, 07-Jul-2020
672,Revenue,CAHD,Schools Specific Grant Income,Other Public Bodies,Cabot Learning Federation,630.00, 07-Jul-2020
673,Revenue,CAHD,Sexual Health,Other Small Contracts,Cadbury Heath Healthcare,966.00, 20-Jul-2020
674,Revenue,CAHD,Sexual Health,Other Small Contracts,Cadbury Heath Healthcare,1434.98, 20-Jul-2020
675,Revenue,CAHD,Early Years High Needs Support,Other Private Contractors,Caerleon Childcare,515.71, 27-Jul-2020
676,Revenue,CAHD,North - Community based support,Permanent Nursing,Caernarvon House,4800.00, 28-Jul-2020
677,Revenue,CAHD,North - Community based support,Permanent Nursing,Caernarvon House,4710.40, 28-Jul-2020
678,Revenue,CAHD,South - Commissioned Services,Permanent Nursing,Caernarvon House,4710.40, 28-Jul-2020
679,Revenue,CAHD,North - S117,Permanent Nursing,Caernarvon House,3990.24, 28-Jul-2020
680,Revenue,CAHD,South - Commissioned Services,Permanent Nursing,Caernarvon House,4915.20, 28-Jul-2020
681,Revenue,CAHD,South - Commissioned Services,Permanent Nursing,Caernarvon House,4800.00, 28-Jul-2020
682,Revenue,CAHD,South - Commissioned Services,Permanent Nursing,Caernarvon House,4300.80, 28-Jul-2020
683,Revenue,CAHD,South - S117,Permanent Nursing,Caernarvon House,4915.20, 28-Jul-2020
684,Revenue,CAHD,North - Community based support,Fees & Charges Income - General,Caernarvon House,1362.15, 28-Jul-2020
685,Revenue,CAHD,North - Community based support,Fees & Charges Income - General,Caernarvon House,2209.90, 28-Jul-2020
686,Revenue,CAHD,South - Commissioned Services,Respite Emergency - Residential,Caernarvon House,4800.00, 28-Jul-2020
687,Revenue,CAHD,Schools Specific Grant Income,Other Public Bodies,Caerphilly County Borough Council,630.00, 07-Jul-2020
688,Revenue,CAHD,North - Community based support,Day Care / Social Activities,Camphill Communities Thornbury Limited,1178.52, 09-Jul-2020
689,Revenue,CAHD,North - Community based support,Other Small Contracts,Camphill Communities Thornbury Limited,671.37, 09-Jul-2020
690,Revenue,CAHD,North - Community based support,Supported Living,Camphill Communities Thornbury Limited,1057.77, 09-Jul-2020
691,Revenue,CAHD,North - Community based support,Day Care / Social Activities,Camphill Communities Thornbury Limited,1173.69, 09-Jul-2020
692,Revenue,CAHD,North - Community based support,Other Small Contracts,Camphill Communities Thornbury Limited,676.20, 09-Jul-2020
693,Revenue,CAHD,North - Community based support,Supported Living,Camphill Communities Thornbury Limited,1067.43, 09-Jul-2020
694,Revenue,CAHD,North - Community based support,Day Care / Social Activities,Camphill Communities Thornbury Limited,1188.18, 23-Jul-2020
695,Revenue,CAHD,North - Community based support,Other Small Contracts,Camphill Communities Thornbury Limited,666.54, 23-Jul-2020
696,Revenue,CAHD,North - Community based support,Supported Living,Camphill Communities Thornbury Limited,1072.26, 23-Jul-2020
697,Revenue,CAHD,North - Community based support,Day Care / Social Activities,Camphill Communities Thornbury Limited,1173.69, 23-Jul-2020
698,Revenue,CAHD,North - Community based support,Other Small Contracts,Camphill Communities Thornbury Limited,676.20, 23-Jul-2020
699,Revenue,CAHD,North - Community based support,Supported Living,Camphill Communities Thornbury Limited,1067.43, 23-Jul-2020
700,Revenue,CAHD,North - Community based support,Day Care / Social Activities,Camphill Communities Thornbury Limited,1014.30, 29-Jul-2020
701,Revenue,CAHD,North - Community based support,Other Small Contracts,Camphill Communities Thornbury Limited,695.52, 29-Jul-2020
702,Revenue,CAHD,North - Community based support,Supported Living,Camphill Communities Thornbury Limited,1081.92, 29-Jul-2020
703,Revenue,CAHD,North - S117,Permanent Residential,Canjayor,3937.76, 28-Jul-2020
704,Revenue,CAHD,CSC - Agency Fostering,Foster Parent Allowances,Capstone Foster Care (South West) Limited,1692.90, 14-Jul-2020
705,Revenue,CAHD,CSC - Agency Fostering,Foster Parent Allowances,Capstone Foster Care (South West) Limited,1559.10, 15-Jul-2020
706,Revenue,CAHD,CSC - Asylum Seekers - Unaccompanied,Foster Parent Allowances,Capstone Foster Care (South West) Limited,3405.66, 30-Jul-2020
707,Revenue,CAHD,CSC - Agency Fostering,Foster Parent Allowances,Capstone Foster Care (South West) Limited,3222.45, 30-Jul-2020
708,Revenue,CAHD,CSC - Agency Fostering,Foster Parent Allowances,Capstone Foster Care (South West) Limited,3498.66, 30-Jul-2020
709,Revenue,CAHD,CSC - Agency Fostering,Foster Parent Allowances,Capstone Foster Care (South West) Limited,3671.33, 30-Jul-2020
710,Revenue,CAHD,CSC - Agency Fostering,Foster Parent Allowances,Capstone Foster Care (South West) Limited,1692.90, 16-Jul-2020
711,Revenue,CAHD,CSC - Agency Fostering,Foster Parent Allowances,Capstone Foster Care (South West) Limited,1559.25, 16-Jul-2020
712,Revenue,CAHD,Central - Commissioned Services,Other Small Contracts,Care 1st Homecare,3012.65, 06-Jul-2020
713,Revenue,CAHD,Central - Commissioned Services,Other Small Contracts,Care 1st Homecare,3012.65, 15-Jul-2020
714,Revenue,CAHD,Central - Commissioned Services,Other Small Contracts,Care 1st Homecare,3012.65, 15-Jul-2020
715,Revenue,CAHD,Central - Commissioned Services,Other Small Contracts,Care 1st Homecare,2994.85, 22-Jul-2020
716,Revenue,CAHD,Central - Commissioned Services,Other Small Contracts,Care 1st Homecare,3012.65, 29-Jul-2020
717,Revenue,CAHD,North - Community based support,Supported Living,Care Horizons,5435.28, 28-Jul-2020
718,Revenue,CAHD,North - Community based support,Supported Living,Care Horizons,5435.28, 28-Jul-2020
719,Revenue,CAHD,Central - Commissioned Services,Other Small Contracts,Care Horizons Limited,236.64, 03-Jul-2020
720,Revenue,CAHD,South - Commissioned Services,Other Small Contracts,Care Horizons Limited,177.48, 03-Jul-2020
721,Revenue,CAHD,North - Community based support,Other Small Contracts,Care Horizons Limited,399.33, 03-Jul-2020
722,Revenue,CAHD,Younger MH non-res purchasing,Other Small Contracts,Care Horizons Limited,157.76, 03-Jul-2020
723,Revenue,CAHD,Central - Commissioned Services,Other Small Contracts,Care Horizons Limited,147.90, 07-Jul-2020
724,Revenue,CAHD,South - Commissioned Services,Other Small Contracts,Care Horizons Limited,138.04, 07-Jul-2020
725,Revenue,CAHD,North - Community based support,Other Small Contracts,Care Horizons Limited,497.93, 07-Jul-2020
726,Revenue,CAHD,Younger MH non-res purchasing,Other Small Contracts,Care Horizons Limited,78.88, 07-Jul-2020
727,Revenue,CAHD,18-25 Year Olds,Other Small Contracts,Care Horizons Limited,78.88, 10-Jul-2020
728,Revenue,CAHD,Central - Commissioned Services,Other Small Contracts,Care Horizons Limited,276.08, 10-Jul-2020
729,Revenue,CAHD,South - Commissioned Services,Other Small Contracts,Care Horizons Limited,138.04, 10-Jul-2020
730,Revenue,CAHD,North - Community based support,Other Small Contracts,Care Horizons Limited,566.95, 10-Jul-2020
731,Revenue,CAHD,Younger MH non-res purchasing,Other Small Contracts,Care Horizons Limited,157.76, 10-Jul-2020
732,Revenue,CAHD,18-25 Year Olds,Other Small Contracts,Care Horizons Limited,78.88, 22-Jul-2020
733,Revenue,CAHD,Central - Commissioned Services,Other Small Contracts,Care Horizons Limited,350.03, 22-Jul-2020
734,Revenue,CAHD,South - Commissioned Services,Other Small Contracts,Care Horizons Limited,98.60, 22-Jul-2020
735,Revenue,CAHD,North - Community based support,Day Care / Social Activities,Care Horizons Limited,409.19, 22-Jul-2020
736,Revenue,CAHD,North - Community based support,Other Small Contracts,Care Horizons Limited,660.62, 22-Jul-2020
737,Revenue,CAHD,Younger MH non-res purchasing,Other Small Contracts,Care Horizons Limited,157.76, 22-Jul-2020
738,Revenue,CAHD,18-25 Year Olds,Other Small Contracts,Care Horizons Limited,78.88, 23-Jul-2020
739,Revenue,CAHD,Central - Commissioned Services,Other Small Contracts,Care Horizons Limited,350.03, 23-Jul-2020
740,Revenue,CAHD,South - Commissioned Services,Other Small Contracts,Care Horizons Limited,98.60, 23-Jul-2020
741,Revenue,CAHD,North - Community based support,Day Care / Social Activities,Care Horizons Limited,409.19, 23-Jul-2020
742,Revenue,CAHD,North - Community based support,Other Small Contracts,Care Horizons Limited,650.76, 23-Jul-2020
743,Revenue,CAHD,Younger MH non-res purchasing,Other Small Contracts,Care Horizons Limited,157.76, 23-Jul-2020
744,Revenue,CAHD,Additional Payments to providers - COVID,Other Small Contracts,Care Horizons Limited,1750.69, 06-Jul-2020
745,Revenue,CAHD,Additional Payments to providers - COVID,Other Small Contracts,Care Horizons Limited,1894.49, 17-Jul-2020
746,Revenue,CAHD,SLA Grants - Support Serv,Grants to Voluntary Bodies,Carers Support Centre,12275.00, 01-Jul-2020
747,Revenue,CAHD,SLA Grants - Support Serv,Grants to Voluntary Bodies,Carers Support Centre,25275.00, 01-Jul-2020
748,Revenue,CAHD,Health Inequalities,Other Small Contracts,Carers Support Centre,60477.00, 01-Jul-2020
749,Revenue,CAHD,Supporting People Programme,Grants to Voluntary Bodies,Caring for Communities and People,12849.00, 03-Jul-2020
750,Revenue,CAHD,CSC - Vinney Green Secure Unit,R & M by Departments,Carlton Services UK Limited,1962.00, 06-Jul-2020
751,Revenue,CAHD,Social Lettings Agency,Rent,Individual,699.32, 28-Jul-2020
752,Revenue,CAHD,Social Lettings Agency,Fees - General,Individual,20.57, 28-Jul-2020
753,Revenue,CAHD,Schools Specific Grant Income,Other Public Bodies,Castle School Education Trust,630.00, 07-Jul-2020
754,Revenue,CAHD,Schools Specific Grant Income,Other Public Bodies,Castle School Education Trust,630.00, 07-Jul-2020
755,Revenue,CAHD,Statemented Support Academies,Other Public Bodies,Castle School Education Trust,530.55, 27-Jul-2020
756,Revenue,CAHD,Statemented Support Academies,Other Public Bodies,Castle School Education Trust,565.92, 27-Jul-2020
757,Revenue,CAHD,Statemented Support Academies,Other Public Bodies,Castle School Education Trust,778.14, 27-Jul-2020
758,Revenue,CAHD,Statemented Support Academies,Other Public Bodies,Castle School Education Trust,931.41, 27-Jul-2020
759,Revenue,CAHD,Statemented Support Academies,Other Public Bodies,Castle School Education Trust,542.34, 27-Jul-2020
760,Revenue,CAHD,Statemented Support Academies,Other Public Bodies,Castle School Education Trust,672.03, 27-Jul-2020
761,Revenue,CAHD,Statemented Support Academies,Other Public Bodies,Castle School Education Trust,577.71, 27-Jul-2020
762,Revenue,CAHD,Statemented Support Academies,Other Public Bodies,Castle School Education Trust,505.08, 27-Jul-2020
763,Revenue,CAHD,Statemented Support Academies,Other Public Bodies,Castle School Education Trust,860.67, 27-Jul-2020
764,Revenue,CAHD,Statemented Support Academies,Other Public Bodies,Castle School Education Trust,1461.96, 27-Jul-2020
765,Revenue,CAHD,Statemented Support Academies,Other Public Bodies,Castle School Education Trust,860.67, 27-Jul-2020
766,Revenue,CAHD,Statemented Support Academies,Other Public Bodies,Castle School Education Trust,1002.15, 27-Jul-2020
767,Revenue,CAHD,Statemented Support Academies,Other Public Bodies,Castle School Education Trust,613.08, 27-Jul-2020
768,Revenue,CAHD,Statemented Support Academies,Other Public Bodies,Castle School Education Trust,672.03, 27-Jul-2020
769,Revenue,CAHD,Statemented Support Academies,Other Public Bodies,Castle School Education Trust,1120.05, 27-Jul-2020
770,Revenue,CAHD,Statemented Support Academies,Other Public Bodies,Castle School Education Trust,636.66, 27-Jul-2020
771,Revenue,CAHD,Statemented Support Academies,Other Public Bodies,Castle School Education Trust,589.50, 27-Jul-2020
772,Revenue,CAHD,Statemented Support Academies,Other Public Bodies,Castle School Education Trust,589.08, 27-Jul-2020
773,Revenue,CAHD,Statemented Support Academies,Other Public Bodies,Castle School Education Trust,954.99, 27-Jul-2020
774,Revenue,CAHD,Statemented Support Academies,Other Public Bodies,Castle School Education Trust,577.71, 27-Jul-2020
775,Revenue,CAHD,Statemented Support Academies,Other Public Bodies,Castle School Education Trust,624.87, 27-Jul-2020
776,Revenue,CAHD,Statemented Support Academies,Other Public Bodies,Castle School Education Trust,825.30, 27-Jul-2020
777,Revenue,CAHD,Statemented Support Academies,Other Public Bodies,Castle School Education Trust,1190.79, 27-Jul-2020
778,Revenue,CAHD,Statemented Support Academies,Other Public Bodies,Castle School Education Trust,848.88, 27-Jul-2020
779,Revenue,CAHD,Statemented Support Academies,Other Public Bodies,Castle School Education Trust,1237.95, 27-Jul-2020
780,Revenue,CAHD,Statemented Support Academies,Other Public Bodies,Castle School Education Trust,1061.10, 27-Jul-2020
781,Revenue,CAHD,Statemented Support Academies,Other Public Bodies,Castle School Education Trust,518.76, 27-Jul-2020
782,Revenue,CAHD,Statemented Support Academies,Other Public Bodies,Castle School Education Trust,577.71, 27-Jul-2020
783,Revenue,CAHD,Statemented Support Academies,Other Public Bodies,Castle School Education Trust,1143.63, 27-Jul-2020
784,Revenue,CAHD,Statemented Support Academies,Other Public Bodies,Castle School Education Trust,1072.89, 27-Jul-2020
785,Revenue,CAHD,Statemented Support Academies,Other Public Bodies,Castle School Education Trust,754.25, 27-Jul-2020
786,Revenue,CAHD,Statemented Support Academies,Other Public Bodies,Castle School Education Trust,1485.54, 27-Jul-2020
787,Revenue,CAHD,Schools Specific Grant Income,Other Public Bodies,Castle School Education Trust,630.00, 07-Jul-2020
788,Revenue,CAHD,Schools Specific Grant Income,Other Public Bodies,Castle School Education Trust,630.00, 07-Jul-2020
789,Revenue,CAHD,Schools Specific Grant Income,Other Public Bodies,Castle School Education Trust,630.00, 07-Jul-2020
790,Revenue,CAHD,Statemented Support Academies,Other Public Bodies,Castle School Education Trust,888.75, 27-Jul-2020
791,Revenue,CAHD,Statemented Support Academies,Other Public Bodies,Castle School Education Trust,1322.75, 27-Jul-2020
792,Revenue,CAHD,Statemented Support Academies,Other Public Bodies,Castle School Education Trust,801.92, 27-Jul-2020
793,Revenue,CAHD,Statemented Support Academies,Other Public Bodies,Castle School Education Trust,943.17, 27-Jul-2020
794,Revenue,CAHD,Statemented Support Academies,Other Public Bodies,Castle School Education Trust,1267.50, 27-Jul-2020
795,Revenue,CAHD,Academy Resource Base Funding,Other Public Bodies,Castle School Education Trust,1702.96, 28-Jul-2020
796,Revenue,CAHD,Academy Resource Base Funding,Other Public Bodies,Castle School Education Trust,1702.96, 28-Jul-2020
797,Revenue,CAHD,Academy Resource Base Funding,Other Public Bodies,Castle School Education Trust,1702.96, 28-Jul-2020
798,Revenue,CAHD,Academy Resource Base Funding,Other Public Bodies,Castle School Education Trust,1702.96, 28-Jul-2020
799,Revenue,CAHD,Academy Resource Base Funding,Other Public Bodies,Castle School Education Trust,1702.96, 28-Jul-2020
800,Revenue,CAHD,Academy Resource Base Funding,Other Public Bodies,Castle School Education Trust,1702.96, 28-Jul-2020
801,Revenue,CAHD,Academy Resource Base Funding,Other Public Bodies,Castle School Education Trust,1702.96, 28-Jul-2020
802,Revenue,CAHD,Academy Resource Base Funding,Other Public Bodies,Castle School Education Trust,1702.96, 28-Jul-2020
803,Revenue,CAHD,Academy Resource Base Funding,Other Public Bodies,Castle School Education Trust,1702.96, 28-Jul-2020
804,Revenue,CAHD,Academy Resource Base Funding,Other Public Bodies,Castle School Education Trust,2189.53, 28-Jul-2020
805,Revenue,CAHD,Schools Block Growth Contingency,Other Public Bodies,Castle School Education Trust,33979.00, 14-Jul-2020
806,Revenue,CAHD,Statemented Support Academies,Other Public Bodies,Castle School Education Trust,672.03, 27-Jul-2020
807,Revenue,CAHD,Statemented Support Academies,Other Public Bodies,Castle School Education Trust,872.46, 27-Jul-2020
808,Revenue,CAHD,Statemented Support Academies,Other Public Bodies,Castle School Education Trust,848.88, 27-Jul-2020
809,Revenue,CAHD,Statemented Support Academies,Other Public Bodies,Castle School Education Trust,1556.28, 27-Jul-2020
810,Revenue,CAHD,Statemented Support Academies,Other Public Bodies,Castle School Education Trust,1025.73, 27-Jul-2020
811,Revenue,CAHD,Schools Specific Grant Income,Other Public Bodies,Castle School Education Trust,630.00, 07-Jul-2020
812,Revenue,CAHD,Schools Specific Grant Income,Other Public Bodies,Castle School Education Trust,630.00, 07-Jul-2020
813,Revenue,CAHD,Statemented Support Academies,Other Public Bodies,Castle School Education Trust,630.58, 27-Jul-2020
814,Revenue,CAHD,Statemented Support Academies,Other Public Bodies,Castle School Education Trust,778.14, 27-Jul-2020
815,Revenue,CAHD,Statemented Support Academies,Other Public Bodies,Castle School Education Trust,613.08, 27-Jul-2020
816,Revenue,CAHD,Schools Specific Grant Income,Other Public Bodies,Castle School Education Trust,630.00, 07-Jul-2020
817,Revenue,CAHD,Schools Specific Grant Income,Other Public Bodies,Castle School Education Trust,630.00, 07-Jul-2020
818,Revenue,CAHD,Schools Specific Grant Income,Other Public Bodies,Castle School Education Trust,630.00, 07-Jul-2020
819,Revenue,CAHD,Schools Specific Grant Income,Other Public Bodies,Castle School Education Trust,630.00, 07-Jul-2020
820,Revenue,CAHD,Schools Specific Grant Income,Other Public Bodies,Castle School Educational Turust,630.00, 07-Jul-2020
821,Revenue,CAHD,Schools Specific Grant Income,Other Public Bodies,Castle School Educational Turust,630.00, 07-Jul-2020
822,Revenue,CAHD,Statemented Support Academies,Other Public Bodies,Castle School Educational Turust,1148.20, 27-Jul-2020
823,Revenue,CAHD,Statemented Support Academies,Other Public Bodies,Castle School Educational Turust,714.08, 27-Jul-2020
824,Revenue,CAHD,Statemented Support Academies,Other Public Bodies,Castle School Educational Turust,1497.33, 27-Jul-2020
825,Revenue,CAHD,Schools Specific Grant Income,Other Public Bodies,Castle School Educational Turust,630.00, 07-Jul-2020
826,Revenue,CAHD,Schools Specific Grant Income,Other Public Bodies,Castle School Educational Turust,630.00, 07-Jul-2020
827,Revenue,CAHD,Social Lettings Agency,Rent,Individual,595.11, 01-Jul-2020
828,Revenue,CAHD,Social Lettings Agency,Fees - General,Individual,10.53, 01-Jul-2020
829,Revenue,CAHD,Social Lettings Agency,Rent,Individual,595.11, 31-Jul-2020
830,Revenue,CAHD,Social Lettings Agency,Fees - General,Individual,10.53, 31-Jul-2020
831,Revenue,CAHD,North - Community based support,Day Care / Social Activities,Causeway House,2176.64, 28-Jul-2020
832,Revenue,CAHD,Central - Commissioned Services,Day Care / Social Activities,Causeway House,1256.12, 28-Jul-2020
833,Revenue,CAHD,South - Commissioned Services,Day Care / Social Activities,Causeway House,5358.20, 28-Jul-2020
834,Revenue,CAHD,Central - Commissioned Services,Day Care / Social Activities,Causeway House,1447.08, 28-Jul-2020
835,Revenue,CAHD,18-25 Year Olds,Day Care / Social Activities,Causeway House,4502.92, 28-Jul-2020
836,Revenue,CAHD,Central - Commissioned Services,Day Care / Social Activities,Causeway House,3671.36, 28-Jul-2020
837,Revenue,CAHD,Central - Commissioned Services,Day Care / Social Activities,Causeway House,3969.44, 28-Jul-2020
838,Revenue,CAHD,Central - Commissioned Services,Day Care / Social Activities,Causeway House,2119.20, 28-Jul-2020
839,Revenue,CAHD,North - Community based support,Day Care / Social Activities,Causeway House,3290.72, 28-Jul-2020
840,Revenue,CAHD,North - Community based support,Day Care / Social Activities,Causeway House,4902.56, 28-Jul-2020
841,Revenue,CAHD,Central - Commissioned Services,Day Care / Social Activities,Causeway House,3725.16, 28-Jul-2020
842,Revenue,CAHD,North - Community based support,Day Care / Social Activities,Causeway House,3212.08, 28-Jul-2020
843,Revenue,CAHD,North - Community based support,Day Care / Social Activities,Causeway House,579.68, 28-Jul-2020
844,Revenue,CAHD,South - Commissioned Services,Permanent Residential,Challenge House,2834.44, 28-Jul-2020
845,Revenue,CAHD,South - Commissioned Services,Permanent Residential,Challenge House,2836.00, 28-Jul-2020
846,Revenue,CAHD,North - S117,Permanent Residential,Challenge House,2571.40, 28-Jul-2020
847,Revenue,CAHD,Central - Commissioned Services,Permanent Residential,Challenge House,2800.00, 28-Jul-2020
848,Revenue,CAHD,North - Community based support,Permanent Residential,Challenge House,2233.00, 28-Jul-2020
849,Revenue,CAHD,Central - Commissioned Services,Permanent Residential,Challenge House,2365.64, 28-Jul-2020
850,Revenue,CAHD,North - Community based support,Permanent Residential,Challenge House,2363.40, 28-Jul-2020
851,Revenue,CAHD,North - Community based support,Permanent Residential,Challenge House,2834.40, 28-Jul-2020
852,Revenue,CAHD,North - Community based support,Permanent Nursing,Challenge House,3205.48, 28-Jul-2020
853,Revenue,CAHD,North - S117,Permanent Nursing,Challenge House,2453.28, 28-Jul-2020
854,Revenue,CAHD,Central - Commissioned Services,Permanent Nursing,Challenge House,3129.36, 28-Jul-2020
855,Revenue,CAHD,North - Community based support,Permanent Nursing,Challenge House,2453.28, 28-Jul-2020
856,Revenue,CAHD,North - Community based support,Permanent Nursing,Challenge House,22438.36, 28-Jul-2020
857,Revenue,CAHD,North - Community based support,Permanent Nursing,Challenge House,3205.48, 28-Jul-2020
858,Revenue,CAHD,North - Community based support,Fees & Charges Income - General,Challenge House,2062.64, 28-Jul-2020
859,Revenue,CAHD,South Glos Users in South Glos Homes,Permanent Nursing,Challenge House,735.68, 28-Jul-2020
860,Revenue,CAHD,South Glos Users in South Glos Homes,Permanent Nursing,Challenge House,2859.20, 28-Jul-2020
861,Revenue,CAHD,South Glos Users in South Glos Homes,Permanent Nursing,Challenge House,735.68, 28-Jul-2020
862,Revenue,CAHD,South Glos Users in South Glos Homes,Permanent Nursing,Challenge House,4327.44, 28-Jul-2020
863,Revenue,CAHD,South - Commissioned Services,Permanent Nursing,Challenge House,2941.88, 28-Jul-2020
864,Revenue,CAHD,South Glos Users in South Glos Homes,Permanent Nursing,Challenge House,735.68, 28-Jul-2020
865,Revenue,CAHD,North - Community based support,Permanent Nursing,Challenge House,3401.80, 28-Jul-2020
866,Revenue,CAHD,South Glos Users in South Glos Homes,Permanent Nursing,Challenge House,735.68, 28-Jul-2020
867,Revenue,CAHD,North - Community based support,Permanent Nursing,Challenge House,3272.64, 28-Jul-2020
868,Revenue,CAHD,South Glos Users in South Glos Homes,Permanent Nursing,Challenge House,735.68, 28-Jul-2020
869,Revenue,CAHD,South Glos Users in South Glos Homes,Permanent Nursing,Challenge House,735.68, 28-Jul-2020
870,Revenue,CAHD,North - Community based support,Permanent Nursing,Challenge House,3405.60, 28-Jul-2020
871,Revenue,CAHD,South Glos Users in South Glos Homes,Permanent Nursing,Challenge House,735.68, 28-Jul-2020
872,Revenue,CAHD,South - Commissioned Services,Permanent Nursing,Challenge House,3060.00, 28-Jul-2020
873,Revenue,CAHD,South Glos Users in South Glos Homes,Permanent Nursing,Challenge House,735.68, 28-Jul-2020
874,Revenue,CAHD,South Glos Users in South Glos Homes,Permanent Nursing,Challenge House,4327.44, 28-Jul-2020
875,Revenue,CAHD,South - Commissioned Services,Permanent Residential,Challenge House,3060.00, 28-Jul-2020
876,Revenue,CAHD,South Glos Users in South Glos Homes,Permanent Nursing,Challenge House,735.68, 28-Jul-2020
877,Revenue,CAHD,South Glos Users in South Glos Homes,Permanent Nursing,Challenge House,735.68, 28-Jul-2020
878,Revenue,CAHD,South Glos Users in South Glos Homes,Permanent Nursing,Challenge House,4327.44, 28-Jul-2020
879,Revenue,CAHD,South Glos Users in South Glos Homes,Permanent Nursing,Challenge House,735.68, 28-Jul-2020
880,Revenue,CAHD,South Glos Users in South Glos Homes,Permanent Nursing,Challenge House,3580.44, 28-Jul-2020
881,Revenue,CAHD,South Glos Users in South Glos Homes,Permanent Nursing,Challenge House,735.68, 28-Jul-2020
882,Revenue,CAHD,South Glos Users in South Glos Homes,Permanent Nursing,Challenge House,4327.44, 28-Jul-2020
883,Revenue,CAHD,South Glos Users in South Glos Homes,Permanent Nursing,Challenge House,735.68, 28-Jul-2020
884,Revenue,CAHD,South Glos Users in South Glos Homes,Permanent Nursing,Challenge House,2884.96, 28-Jul-2020
885,Revenue,CAHD,South Glos Users in South Glos Homes,Permanent Nursing,Challenge House,1313.69, 28-Jul-2020
886,Revenue,CAHD,South Glos Users in South Glos Homes,Permanent Nursing,Challenge House,735.68, 28-Jul-2020
887,Revenue,CAHD,South Glos Users in South Glos Homes,Permanent Nursing,Challenge House,1983.41, 28-Jul-2020
888,Revenue,CAHD,South Glos Users in South Glos Homes,Permanent Nursing,Challenge House,735.68, 28-Jul-2020
889,Revenue,CAHD,North - Community based support,Permanent Nursing,Challenge House,2884.08, 28-Jul-2020
890,Revenue,CAHD,South Glos Users in South Glos Homes,Permanent Nursing,Challenge House,735.68, 28-Jul-2020
891,Revenue,CAHD,North - Community based support,Permanent Nursing,Challenge House,3243.60, 28-Jul-2020
892,Revenue,CAHD,South Glos Users in South Glos Homes,Permanent Nursing,Challenge House,1803.10, 28-Jul-2020
893,Revenue,CAHD,South Glos Users in South Glos Homes,Permanent Nursing,Challenge House,735.68, 28-Jul-2020
894,Revenue,CAHD,North - Community based support,Permanent Nursing,Challenge House,3405.60, 28-Jul-2020
895,Revenue,CAHD,South Glos Users in South Glos Homes,Permanent Nursing,Challenge House,735.68, 28-Jul-2020
896,Revenue,CAHD,North - Community based support,Permanent Residential,Challenge House,3121.20, 28-Jul-2020
897,Revenue,CAHD,South Glos Users in South Glos Homes,Permanent Nursing,Challenge House,735.68, 28-Jul-2020
898,Revenue,CAHD,North - Community based support,Permanent Nursing,Challenge House,2884.08, 28-Jul-2020
899,Revenue,CAHD,South Glos Users in South Glos Homes,Permanent Nursing,Challenge House,735.68, 28-Jul-2020
900,Revenue,CAHD,South Glos Users in South Glos Homes,Permanent Nursing,Challenge House,735.68, 28-Jul-2020
901,Revenue,CAHD,CSC - Vinney Green Secure Unit,"Provisions (Food, etc)",Charles Saunders Limited,659.07, 21-Jul-2020
902,Revenue,CAHD,CSC - Vinney Green Secure Unit,"Provisions (Food, etc)",Charles Saunders Limited,507.63, 24-Jul-2020
903,Revenue,CAHD,CSC - Vinney Green Secure Unit,"Provisions (Food, etc)",Charles Saunders Limited,127.28, 24-Jul-2020
904,Revenue,CAHD,Mental Capacity Act / DOLS,Legal Fees,Individual,500.00, 21-Jul-2020
905,Revenue,CAHD,Mental Capacity Act / DOLS,Legal Fees,Individual,500.00, 06-Jul-2020
906,Revenue,CAHD,Schools Block Growth Contingency,Other Public Bodies,Charlton Wood Primary Academy,20833.33, 14-Jul-2020
907,Revenue,CAHD,Statemented Support Academies,Other Public Bodies,Charlton Wood Primary Academy,702.17, 27-Jul-2020
908,Revenue,CAHD,CSC - Vinney Green Secure Unit,R & M by Departments,Cheltenham Mowers Limited,1183.33, 07-Jul-2020
909,Revenue,CAHD,South - Commissioned Services,Other Small Contracts,Cherish Able Care Limited,1062.53, 21-Jul-2020
910,Revenue,CAHD,Central - Commissioned Services,Other Small Contracts,Cherish Able Care Limited,1574.58, 02-Jul-2020
911,Revenue,CAHD,South - Commissioned Services,Other Small Contracts,Cherish Able Care Limited,6574.37, 02-Jul-2020
912,Revenue,CAHD,North - Community based support,Other Small Contracts,Cherish Able Care Limited,511.98, 02-Jul-2020
913,Revenue,CAHD,Central - Commissioned Services,Other Small Contracts,Cherish Able Care Limited,1555.26, 07-Jul-2020
914,Revenue,CAHD,South - Commissioned Services,Other Small Contracts,Cherish Able Care Limited,6704.78, 07-Jul-2020
915,Revenue,CAHD,North - Community based support,Other Small Contracts,Cherish Able Care Limited,516.81, 07-Jul-2020
916,Revenue,CAHD,Central - Commissioned Services,Other Small Contracts,Cherish Able Care Limited,1555.26, 13-Jul-2020
917,Revenue,CAHD,South - Commissioned Services,Other Small Contracts,Cherish Able Care Limited,6547.31, 13-Jul-2020
918,Revenue,CAHD,North - Community based support,Other Small Contracts,Cherish Able Care Limited,531.30, 13-Jul-2020
919,Revenue,CAHD,Central - Commissioned Services,Other Small Contracts,Cherish Able Care Limited,1555.26, 22-Jul-2020
920,Revenue,CAHD,South - Commissioned Services,Other Small Contracts,Cherish Able Care Limited,6521.96, 22-Jul-2020
921,Revenue,CAHD,North - Community based support,Other Small Contracts,Cherish Able Care Limited,676.20, 22-Jul-2020
922,Revenue,CAHD,Central - Commissioned Services,Other Small Contracts,Cherish Able Care Limited,1555.26, 29-Jul-2020
923,Revenue,CAHD,South - Commissioned Services,Other Small Contracts,Cherish Able Care Limited,5840.31, 29-Jul-2020
924,Revenue,CAHD,North - Community based support,Other Small Contracts,Cherish Able Care Limited,695.52, 29-Jul-2020
925,Revenue,CAHD,18-25 Year Olds,Other Small Contracts,Cherry Orchards,3236.10, 14-Jul-2020
926,Revenue,CAHD,South - Commissioned Services,Supported Living,Cherry Orchards,1313.76, 10-Jul-2020
927,Revenue,CAHD,18-25 Year Olds,Other Small Contracts,Cherry Orchards,1622.88, 10-Jul-2020
928,Revenue,CAHD,South - Commissioned Services,Other Small Contracts,Cherry Orchards,6491.52, 14-Jul-2020
929,Revenue,CAHD,18-25 Year Olds,Supported Living,Cherry Orchards,1715.64, 28-Jul-2020
930,Revenue,CAHD,South - Commissioned Services,Supported Living,Cherry Orchards,2085.84, 28-Jul-2020
931,Revenue,CAHD,18-25 Year Olds,Supported Living,Cherry Orchards,2030.52, 28-Jul-2020
932,Revenue,CAHD,North - Community based support,Supported Living,Cherry Orchards,1042.96, 28-Jul-2020
933,Revenue,CAHD,S28A cases,Permanent Residential,Chescombe Trust Ltd,9959.72, 28-Jul-2020
934,Revenue,CAHD,Early Years High Needs Support,Other Private Contractors,Chipping Sodbury Pre School,1904.30, 27-Jul-2020
935,Revenue,CAHD,Central - Commissioned Services,Other Small Contracts,Cintre,109.56, 02-Jul-2020
936,Revenue,CAHD,South - Commissioned Services,Other Small Contracts,Cintre,881.46, 02-Jul-2020
937,Revenue,CAHD,Central - Commissioned Services,Other Small Contracts,Cintre,109.56, 02-Jul-2020
938,Revenue,CAHD,South - Commissioned Services,Other Small Contracts,Cintre,846.60, 02-Jul-2020
939,Revenue,CAHD,Central - Commissioned Services,Other Small Contracts,Cintre,129.48, 10-Jul-2020
940,Revenue,CAHD,South - Commissioned Services,Other Small Contracts,Cintre,886.44, 10-Jul-2020
941,Revenue,CAHD,Central - Commissioned Services,Other Small Contracts,Cintre,219.12, 22-Jul-2020
942,Revenue,CAHD,South - Commissioned Services,Other Small Contracts,Cintre,976.08, 22-Jul-2020
943,Revenue,CAHD,Central - Commissioned Services,Other Small Contracts,Cintre,229.08, 29-Jul-2020
944,Revenue,CAHD,South - Commissioned Services,Other Small Contracts,Cintre,956.16, 29-Jul-2020
945,Revenue,CAHD,Additional Payments to providers - COVID,Other Small Contracts,Cintre,515.70, 06-Jul-2020
946,Revenue,CAHD,Information Systems - Software,Software Support & Maintenance,Civica UK Limited,2303.05, 24-Jul-2020
947,Revenue,CAHD,South - Commissioned Services,Permanent Residential,Clearwater Care,5280.28, 28-Jul-2020
948,Revenue,CAHD,South - Commissioned Services,Permanent Residential,Cleeve Lodge,3760.12, 28-Jul-2020
949,Revenue,CAHD,South - Commissioned Services,Permanent Residential,Cleeve Lodge,3760.12, 28-Jul-2020
950,Revenue,CAHD,South - Commissioned Services,Permanent Residential,Cleeve Lodge,1334.60, 28-Jul-2020
951,Revenue,CAHD,South - Commissioned Services,Permanent Residential,Cleeve Lodge,2980.12, 28-Jul-2020
952,Revenue,CAHD,South - Commissioned Services,Permanent Residential,Cleeve Lodge,4400.00, 28-Jul-2020
953,Revenue,CAHD,South - Commissioned Services,Permanent Residential,Cleeve Lodge,4000.00, 28-Jul-2020
954,Revenue,CAHD,South - Commissioned Services,Permanent Residential,Cleeve Lodge,4000.00, 28-Jul-2020
955,Revenue,CAHD,South - Commissioned Services,Permanent Residential,Cleeve Lodge,2950.88, 28-Jul-2020
956,Revenue,CAHD,North - Community based support,Permanent Nursing,Clevedon Court Nursing Home,3448.16, 28-Jul-2020
957,Revenue,CAHD,Sexual Health,Other Small Contracts,Close Farm Surgery,1127.00, 20-Jul-2020
958,Revenue,CAHD,Sexual Health,Other Small Contracts,Close Farm Surgery,598.78, 20-Jul-2020
959,Revenue,CAHD,Central - Commissioned Services,Other Small Contracts,Clover Health and Home Care Ltd,1476.18, 06-Jul-2020
960,Revenue,CAHD,Central - Commissioned Services,Other Small Contracts,Clover Health and Home Care Ltd,509.76, 14-Jul-2020
961,Revenue,CAHD,Central - Commissioned Services,Other Small Contracts,Clover Health and Home Care Ltd,509.76, 20-Jul-2020
962,Revenue,CAHD,Central - Commissioned Services,Other Small Contracts,Clover Health and Home Care Ltd,764.64, 23-Jul-2020
963,Revenue,CAHD,Central - Commissioned Services,Other Small Contracts,Clover Health and Home Care Ltd,838.98, 23-Jul-2020
964,Revenue,CAHD,Central - Commissioned Services,Other Small Contracts,Clover Health and Home Care Ltd,1847.88, 23-Jul-2020
965,Revenue,CAHD,Central - Commissioned Services,Other Small Contracts,Clover Health and Home Care Ltd,541.62, 31-Jul-2020
966,Revenue,CAHD,Health Inequalities,Other Small Contracts,Cohesian Consultancy,500.00, 01-Jul-2020
967,Revenue,CAHD,SLA Grants - Support Serv,Grants to Voluntary Bodies,Cohesian Consultancy,500.00, 01-Jul-2020
968,Revenue,CAHD,South - Commissioned Services,Permanent Residential,Collingwood Care Home,2882.76, 28-Jul-2020
969,Revenue,CAHD,North - Community based support,Permanent Residential,Collingwood Care Home,3000.00, 28-Jul-2020
970,Revenue,CAHD,South - Commissioned Services,Permanent Residential,Collingwood Care Home,2554.36, 28-Jul-2020
971,Revenue,CAHD,Early Years Development,Premises Hire,Commercial Transfer Limited,781.76, 24-Jul-2020
972,Revenue,CAHD,South - Commissioned Services,Permanent Residential,Community Theraputic Services,7893.40, 28-Jul-2020
973,Revenue,CAHD,Jointly Funded H&SC Packages,Permanent Residential,Community Theraputic Services,4875.84, 28-Jul-2020
974,Revenue,CAHD,North - Community based support,Permanent Residential,Community Theraputic Services,8119.76, 28-Jul-2020
975,Revenue,CAHD,Jointly Funded H&SC Packages,Permanent Residential,Community Theraputic Services,2027.52, 28-Jul-2020
976,Revenue,CAHD,Sexual Health,Other Small Contracts,Concord Medical Centre,1851.50, 20-Jul-2020
977,Revenue,CAHD,Sexual Health,Other Small Contracts,Concord Medical Centre,2064.72, 20-Jul-2020
978,Revenue,CAHD,Sexual Health,Other Small Contracts,Coniston Medical Practice,536.84, 20-Jul-2020
979,Revenue,CAHD,Bed and Breakfast,Bed & Breakfast,Connolly & Callaghan Limited,463.40, 16-Jul-2020
980,Revenue,CAHD,Bed and Breakfast,Bed & Breakfast,Connolly & Callaghan Limited,764.40, 16-Jul-2020
981,Revenue,CAHD,Bed and Breakfast,Bed & Breakfast,Connolly & Callaghan Limited,593.60, 16-Jul-2020
982,Revenue,CAHD,Bed and Breakfast,Bed & Breakfast,Connolly & Callaghan Limited,422.80, 09-Jul-2020
983,Revenue,CAHD,Bed and Breakfast,Bed & Breakfast,Connolly & Callaghan Limited,679.00, 16-Jul-2020
984,Revenue,CAHD,Bed and Breakfast,Bed & Breakfast,Connolly & Callaghan Limited,422.80, 16-Jul-2020
985,Revenue,CAHD,Bed and Breakfast,Bed & Breakfast,Connolly & Callaghan Limited,457.80, 16-Jul-2020
986,Revenue,CAHD,Bed and Breakfast,Bed & Breakfast,Connolly & Callaghan Limited,422.80, 15-Jul-2020
987,Revenue,CAHD,Bed and Breakfast,Bed & Breakfast,Connolly & Callaghan Limited,764.40, 15-Jul-2020
988,Revenue,CAHD,Bed and Breakfast,Bed & Breakfast,Connolly & Callaghan Limited,593.60, 15-Jul-2020
989,Revenue,CAHD,Bed and Breakfast,Bed & Breakfast,Connolly & Callaghan Limited,422.80, 14-Jul-2020
990,Revenue,CAHD,Bed and Breakfast,Bed & Breakfast,Connolly & Callaghan Limited,679.00, 15-Jul-2020
991,Revenue,CAHD,Bed and Breakfast,Bed & Breakfast,Connolly & Callaghan Limited,422.80, 15-Jul-2020
992,Revenue,CAHD,Bed and Breakfast,Bed & Breakfast,Connolly & Callaghan Limited,457.80, 15-Jul-2020
993,Revenue,CAHD,Bed and Breakfast,Bed & Breakfast,Connolly & Callaghan Limited,422.80, 20-Jul-2020
994,Revenue,CAHD,Bed and Breakfast,Bed & Breakfast,Connolly & Callaghan Limited,764.40, 20-Jul-2020
995,Revenue,CAHD,Bed and Breakfast,Bed & Breakfast,Connolly & Callaghan Limited,593.60, 20-Jul-2020
996,Revenue,CAHD,Bed and Breakfast,Bed & Breakfast,Connolly & Callaghan Limited,422.80, 20-Jul-2020
997,Revenue,CAHD,Bed and Breakfast,Bed & Breakfast,Connolly & Callaghan Limited,679.00, 20-Jul-2020
998,Revenue,CAHD,Bed and Breakfast,Bed & Breakfast,Connolly & Callaghan Limited,422.80, 22-Jul-2020
999,Revenue,CAHD,Bed and Breakfast,Bed & Breakfast,Connolly & Callaghan Limited,457.80, 20-Jul-2020
1000,Revenue,CAHD,Bed and Breakfast,Bed & Breakfast,Connolly & Callaghan Limited,422.80, 27-Jul-2020
1001,Revenue,CAHD,Bed and Breakfast,Bed & Breakfast,Connolly & Callaghan Limited,764.40, 27-Jul-2020
1002,Revenue,CAHD,Bed and Breakfast,Bed & Breakfast,Connolly & Callaghan Limited,593.60, 27-Jul-2020
1003,Revenue,CAHD,Bed and Breakfast,Bed & Breakfast,Connolly & Callaghan Limited,422.80, 30-Jul-2020
1004,Revenue,CAHD,Bed and Breakfast,Bed & Breakfast,Connolly & Callaghan Limited,422.80, 27-Jul-2020
1005,Revenue,CAHD,Bed and Breakfast,Bed & Breakfast,Connolly & Callaghan Limited,422.80, 27-Jul-2020
1006,Revenue,CAHD,Bed and Breakfast,Bed & Breakfast,Connolly & Callaghan Limited,457.80, 27-Jul-2020
1007,Revenue,CAHD,CSC - Vinney Green Secure Unit,Other Supplies & Services,Coram Voice,1948.50, 06-Jul-2020
1008,Revenue,CAHD,CSC - Allowances,Membership Fees,CoramBAAF Ltd t/a Coram Academy Ltd,1056.00, 29-Jul-2020
1009,Revenue,CAHD,CSC - Fostering Carer Support,Care Mgt/Asesmnt Staff Pay,Core Assets Expert Services Ltd T/A Carter Brown,1400.00, 24-Jul-2020
1010,Revenue,CAHD,Independent Special Placements - Pre 16,Other Private Contractors,Cotswold Chine School,2035.00, 31-Jul-2020
1011,Revenue,CAHD,Independent Special Placements - Pre 16,Other Private Contractors,Cotswold Chine School,9523.80, 31-Jul-2020
1012,Revenue,CAHD,Independent Special Placements - Pre 16,Other Private Contractors,Cotswold Chine School,25793.63, 31-Jul-2020
1013,Revenue,CAHD,Alexandra Way,Cleaning & Domestic Services,Countrywide Healthcare Supplies Ltd,419.37, 09-Jul-2020
1014,Revenue,CAHD,Alexandra Way,Cleaning & Domestic Services,Countrywide Healthcare Supplies Ltd,1363.23, 30-Jul-2020
1015,Revenue,CAHD,Sexual Health,Other Small Contracts,Courtside Surgery,2495.50, 20-Jul-2020
1016,Revenue,CAHD,Sexual Health,Other Small Contracts,Courtside Surgery,1672.44, 20-Jul-2020
1017,Revenue,CAHD,S28A cases,Permanent Residential,Creedy Court,10597.96, 28-Jul-2020
1018,Revenue,CAHD,S28A cases,Permanent Residential,Creedy Court,8904.92, 28-Jul-2020
1019,Revenue,CAHD,North - Community based support,Permanent Residential,Creedy Court,14054.00, 28-Jul-2020
1020,Revenue,CAHD,One You South Glos,Other Small Contracts,Creotec Limited,2800.00, 16-Jul-2020
1021,Revenue,CAHD,TSG Practice Placements,Training Expenses,D H I,1000.00, 08-Jul-2020
1022,Revenue,CAHD,South - Commissioned Services,Permanent Residential,Daneswood,12268.80, 28-Jul-2020
1023,Revenue,CAHD,South - Commissioned Services,Day Care / Social Activities,Daneswood,1441.60, 28-Jul-2020
1024,Revenue,CAHD,North - Community based support,Permanent Residential,Daneswood,13579.68, 28-Jul-2020
1025,Revenue,CAHD,North - S117,Permanent Nursing,Danshell Healthcare Group,10872.28, 28-Jul-2020
1026,Revenue,CAHD,Jointly Funded H&SC Packages,Permanent Nursing,Danshell Healthcare Group,1613.28, 28-Jul-2020
1027,Revenue,CAHD,Learning Difficulties PSL,Rent,Individual,2400.00, 22-Jul-2020
1028,Revenue,CAHD,North - Community based support,Day Care / Social Activities,Deafblind Uk,641.76, 22-Jul-2020
1029,Revenue,CAHD,South - Commissioned Services,Day Care / Social Activities,Deafblind Uk,1421.04, 09-Jul-2020
1030,Revenue,CAHD,North - Community based support,Day Care / Social Activities,Deafblind Uk,641.76, 23-Jul-2020
1031,Revenue,CAHD,North - Community based support,Permanent Nursing,Deerhurst Nursing Home,4400.00, 28-Jul-2020
1032,Revenue,CAHD,South Glos Users in South Glos Homes,Permanent Nursing,Deerhurst Nursing Home,735.68, 28-Jul-2020
1033,Revenue,CAHD,South - Commissioned Services,Permanent Nursing,Deerhurst Nursing Home,3881.40, 28-Jul-2020
1034,Revenue,CAHD,South Glos Users in South Glos Homes,Permanent Nursing,Deerhurst Nursing Home,735.68, 28-Jul-2020
1035,Revenue,CAHD,South Glos Users in South Glos Homes,Permanent Nursing,Deerhurst Nursing Home,735.68, 28-Jul-2020
1036,Revenue,CAHD,South Glos Users in South Glos Homes,Permanent Nursing,Deerhurst Nursing Home,515.17, 28-Jul-2020
1037,Revenue,CAHD,South - Commissioned Services,Permanent Nursing,Deerhurst Nursing Home,10842.86, 28-Jul-2020
1038,Revenue,CAHD,South - Commissioned Services,Permanent Nursing,Deerhurst Nursing Home,4400.00, 28-Jul-2020
1039,Revenue,CAHD,South Glos Users in South Glos Homes,Permanent Nursing,Deerhurst Nursing Home,721.24, 28-Jul-2020
1040,Revenue,CAHD,South Glos Users in South Glos Homes,Permanent Nursing,Deerhurst Nursing Home,735.68, 28-Jul-2020
1041,Revenue,CAHD,South - Commissioned Services,Day Care / Social Activities,Deerhurst Nursing Home,568.16, 28-Jul-2020
1042,Revenue,CAHD,South Glos Users in South Glos Homes,Permanent Nursing,Deerhurst Nursing Home,735.68, 28-Jul-2020
1043,Revenue,CAHD,South - Commissioned Services,Permanent Nursing,Deerhurst Nursing Home,4098.52, 28-Jul-2020
1044,Revenue,CAHD,South Glos Users in South Glos Homes,Permanent Nursing,Deerhurst Nursing Home,735.68, 28-Jul-2020
1045,Revenue,CAHD,South - Commissioned Services,Permanent Nursing,Deerhurst Nursing Home,4006.00, 28-Jul-2020
1046,Revenue,CAHD,South Glos Users in South Glos Homes,Permanent Nursing,Deerhurst Nursing Home,735.68, 28-Jul-2020
1047,Revenue,CAHD,North - Community based support,Permanent Nursing,Deerhurst Nursing Home,3891.20, 28-Jul-2020
1048,Revenue,CAHD,South - Commissioned Services,Permanent Nursing,Deerhurst Nursing Home,3965.12, 28-Jul-2020
1049,Revenue,CAHD,South Glos Users in South Glos Homes,Permanent Nursing,Deerhurst Nursing Home,735.68, 28-Jul-2020
1050,Revenue,CAHD,North - Community based support,Permanent Nursing,Deerhurst Nursing Home,10202.14, 28-Jul-2020
1051,Revenue,CAHD,North - Community based support,Permanent Nursing,Deerhurst Nursing Home,4140.00, 28-Jul-2020
1052,Revenue,CAHD,North - Community based support,Fees & Charges Income - General,Deerhurst Nursing Home,1413.27, 28-Jul-2020
1053,Revenue,CAHD,South - Commissioned Services,Permanent Nursing,Deerhurst Nursing Home,4129.40, 28-Jul-2020
1054,Revenue,CAHD,South - Commissioned Services,Day Care / Social Activities,Deerhurst Nursing Home,568.16, 28-Jul-2020
1055,Revenue,CAHD,South - Commissioned Services,Permanent Nursing,Deerhurst Nursing Home,4088.08, 28-Jul-2020
1056,Revenue,CAHD,South Glos Users in South Glos Homes,Permanent Nursing,Deerhurst Nursing Home,735.68, 28-Jul-2020
1057,Revenue,CAHD,South - bed purchasing and direct  payments,Permanent Nursing,Deerhurst Nursing Home,4084.08, 28-Jul-2020
1058,Revenue,CAHD,South Glos Users in South Glos Homes,Permanent Nursing,Deerhurst Nursing Home,735.68, 28-Jul-2020
1059,Revenue,CAHD,South Glos Users in South Glos Homes,Permanent Nursing,Deerhurst Nursing Home,735.68, 28-Jul-2020
1060,Revenue,CAHD,South Glos Users in South Glos Homes,Permanent Nursing,Deerhurst Nursing Home,735.68, 28-Jul-2020
1061,Revenue,CAHD,South - Commissioned Services,Permanent Nursing,Deerhurst Nursing Home,8642.86, 28-Jul-2020
1062,Revenue,CAHD,South - Commissioned Services,Permanent Nursing,Deerhurst Nursing Home,4400.00, 28-Jul-2020
1063,Revenue,CAHD,North - Community based support,Permanent Nursing,Deerhurst Nursing Home,4088.08, 28-Jul-2020
1064,Revenue,CAHD,South Glos Users in South Glos Homes,Permanent Nursing,Deerhurst Nursing Home,735.68, 28-Jul-2020
1065,Revenue,CAHD,South - Commissioned Services,Permanent Nursing,Deerhurst Nursing Home,4086.08, 28-Jul-2020
1066,Revenue,CAHD,South Glos Users in South Glos Homes,Permanent Nursing,Deerhurst Nursing Home,735.68, 28-Jul-2020
1067,Revenue,CAHD,South Glos Users in South Glos Homes,Permanent Nursing,Deerhurst Nursing Home,735.68, 28-Jul-2020
1068,Revenue,CAHD,South - Commissioned Services,Permanent Nursing,Deerhurst Nursing Home,3969.04, 28-Jul-2020
1069,Revenue,CAHD,South Glos Users in South Glos Homes,Permanent Nursing,Deerhurst Nursing Home,735.68, 28-Jul-2020
1070,Revenue,CAHD,South Glos Users in South Glos Homes,Permanent Nursing,Deerhurst Nursing Home,735.68, 28-Jul-2020
1071,Revenue,CAHD,South Glos Users in South Glos Homes,Permanent Nursing,Deerhurst Nursing Home,735.68, 28-Jul-2020
1072,Revenue,CAHD,South Glos Users in South Glos Homes,Permanent Nursing,Deerhurst Nursing Home,735.68, 28-Jul-2020
1073,Revenue,CAHD,South Glos Users in South Glos Homes,Permanent Nursing,Deerhurst Nursing Home,735.68, 28-Jul-2020
1074,Revenue,CAHD,South Glos Users in South Glos Homes,Permanent Nursing,Deerhurst Nursing Home,735.68, 28-Jul-2020
1075,Revenue,CAHD,South Glos Users in South Glos Homes,Permanent Nursing,Deerhurst Nursing Home,735.68, 28-Jul-2020
1076,Revenue,CAHD,South Glos Users in South Glos Homes,Permanent Nursing,Deerhurst Nursing Home,735.68, 28-Jul-2020
1077,Revenue,CAHD,South Glos Users in South Glos Homes,Permanent Nursing,Deerhurst Nursing Home,735.68, 28-Jul-2020
1078,Revenue,CAHD,South Glos Users in South Glos Homes,Permanent Nursing,Deerhurst Nursing Home,735.68, 28-Jul-2020
1079,Revenue,CAHD,North - Community based support,Permanent Nursing,Deerhurst Nursing Home,4006.00, 28-Jul-2020
1080,Revenue,CAHD,South Glos Users in South Glos Homes,Permanent Nursing,Deerhurst Nursing Home,735.68, 28-Jul-2020
1081,Revenue,CAHD,South - Commissioned Services,Permanent Nursing,Deerhurst Nursing Home,4085.36, 28-Jul-2020
1082,Revenue,CAHD,South Glos Users in South Glos Homes,Permanent Nursing,Deerhurst Nursing Home,735.68, 28-Jul-2020
1083,Revenue,CAHD,South Glos Users in South Glos Homes,Permanent Nursing,Deerhurst Nursing Home,735.68, 28-Jul-2020
1084,Revenue,CAHD,South Glos Users in South Glos Homes,Permanent Nursing,Deerhurst Nursing Home,735.68, 28-Jul-2020
1085,Revenue,CAHD,South - Commissioned Services,Permanent Nursing,Deerhurst Nursing Home,4006.00, 28-Jul-2020
1086,Revenue,CAHD,South Glos Users in South Glos Homes,Permanent Nursing,Deerhurst Nursing Home,735.68, 28-Jul-2020
1087,Revenue,CAHD,South Glos Users in South Glos Homes,Permanent Nursing,Deerhurst Nursing Home,735.68, 28-Jul-2020
1088,Revenue,CAHD,South - Commissioned Services,Permanent Residential,Deerhurst Nursing Home,5013.79, 28-Jul-2020
1089,Revenue,CAHD,South - Commissioned Services,Permanent Residential,Deerhurst Nursing Home,4129.00, 28-Jul-2020
1090,Revenue,CAHD,Central - Commissioned Services,Permanent Residential,Deerhurst Nursing Home,1424.08, 28-Jul-2020
1091,Revenue,CAHD,South Glos Users in South Glos Homes,Permanent Nursing,Deerhurst Nursing Home,3142.55, 28-Jul-2020
1092,Revenue,CAHD,South Glos Users in South Glos Homes,Permanent Nursing,Deerhurst Nursing Home,735.68, 28-Jul-2020
1093,Revenue,CAHD,South Glos Users in South Glos Homes,Permanent Nursing,Deerhurst Nursing Home,735.68, 28-Jul-2020
1094,Revenue,CAHD,South - Commissioned Services,Permanent Nursing,Deerhurst Nursing Home,4006.00, 28-Jul-2020
1095,Revenue,CAHD,South - Commissioned Services,Permanent Residential,Deerhurst Nursing Home,3891.20, 28-Jul-2020
1096,Revenue,CAHD,South Glos Users in South Glos Homes,Permanent Nursing,Deerhurst Nursing Home,735.68, 28-Jul-2020
1097,Revenue,CAHD,North - Community based support,Permanent Nursing,Deerhurst Nursing Home,3094.88, 28-Jul-2020
1098,Revenue,CAHD,South Glos Users in South Glos Homes,Permanent Nursing,Deerhurst Nursing Home,735.68, 28-Jul-2020
1099,Revenue,CAHD,South Glos Users in South Glos Homes,Permanent Nursing,Deerhurst Nursing Home,735.68, 28-Jul-2020
1100,Revenue,CAHD,South Glos Users in South Glos Homes,Permanent Nursing,Deerhurst Nursing Home,735.68, 28-Jul-2020
1101,Revenue,CAHD,South Glos Users in South Glos Homes,Permanent Nursing,Deerhurst Nursing Home,735.68, 28-Jul-2020
1102,Revenue,CAHD,South Glos Users in South Glos Homes,Permanent Nursing,Deerhurst Nursing Home,735.68, 28-Jul-2020
1103,Revenue,CAHD,Schools Specific Grant Income,Other Public Bodies,Dene Magna School,630.00, 07-Jul-2020
1104,Revenue,CAHD,South - Commissioned Services,Supported Living,Design House,2714.44, 28-Jul-2020
1105,Revenue,CAHD,South - Commissioned Services,Other Small Contracts,Design House,3124.28, 28-Jul-2020
1106,Revenue,CAHD,South - Commissioned Services,Supported Living,Design House,3195.40, 28-Jul-2020
1107,Revenue,CAHD,South - Commissioned Services,Supported Living,Design House,3053.16, 28-Jul-2020
1108,Revenue,CAHD,South - Commissioned Services,Day Care / Social Activities,Design House,526.72, 28-Jul-2020
1109,Revenue,CAHD,Central - Commissioned Services,Day Care / Social Activities,Design House,2991.44, 28-Jul-2020
1110,Revenue,CAHD,South - Commissioned Services,Day Care / Social Activities,Design House,1317.04, 28-Jul-2020
1111,Revenue,CAHD,South - Commissioned Services,Day Care / Social Activities,Design House,939.72, 28-Jul-2020
1112,Revenue,CAHD,South - Commissioned Services,Supported Living,Design House,2691.36, 28-Jul-2020
1113,Revenue,CAHD,South - Commissioned Services,Supported Living,Design House,2691.36, 28-Jul-2020
1114,Revenue,CAHD,South - Commissioned Services,Other Small Contracts,Design House,2192.32, 28-Jul-2020
1115,Revenue,CAHD,South - Commissioned Services,Day Care / Social Activities,Design House,526.72, 28-Jul-2020
1116,Revenue,CAHD,South - Commissioned Services,Supported Living,Design House,1934.44, 28-Jul-2020
1117,Revenue,CAHD,South - Commissioned Services,Other Small Contracts,Design House,2566.92, 28-Jul-2020
1118,Revenue,CAHD,South - Commissioned Services,Supported Living,Design House,4393.28, 28-Jul-2020
1119,Revenue,CAHD,North - Community based support,Supported Living,Design House,3115.32, 28-Jul-2020
1120,Revenue,CAHD,South - Commissioned Services,Day Care / Social Activities,Design House,1536.08, 28-Jul-2020
1121,Revenue,CAHD,South - Commissioned Services,Supported Living,Design House,2983.16, 28-Jul-2020
1122,Revenue,CAHD,South - Commissioned Services,Supported Living,Design House,2593.64, 28-Jul-2020
1123,Revenue,CAHD,South - Commissioned Services,Supported Living,Design House,2302.64, 28-Jul-2020
1124,Revenue,CAHD,South - Commissioned Services,Supported Living,Design House,2302.64, 28-Jul-2020
1125,Revenue,CAHD,Training - Adult Services,Training Expenses,Do The Write Thing,850.00, 09-Jul-2020
1126,Revenue,CAHD,Training Budget - Children`s Social Serv,Training Expenses,Do The Write Thing,850.00, 09-Jul-2020
1127,Revenue,CAHD,Family and Young People Support South,Legal Fees,Individual,1470.00, 02-Jul-2020
1128,Revenue,CAHD,Sexual Health,Other Small Contracts,Downend Health Group,2093.00, 20-Jul-2020
1129,Revenue,CAHD,Sexual Health,Other Small Contracts,Downend Health Group,2271.22, 20-Jul-2020
1130,Revenue,CAHD,Statemented Support Academies,Other Public Bodies,Downend School,978.57, 27-Jul-2020
1131,Revenue,CAHD,Statemented Support Academies,Other Public Bodies,Downend School,660.24, 27-Jul-2020
1132,Revenue,CAHD,Statemented Support Academies,Other Public Bodies,Downend School,1025.73, 27-Jul-2020
1133,Revenue,CAHD,Statemented Support Academies,Other Public Bodies,Downend School,1013.94, 27-Jul-2020
1134,Revenue,CAHD,Statemented Support Academies,Other Public Bodies,Downend School,801.72, 27-Jul-2020
1135,Revenue,CAHD,Statemented Support Academies,Other Public Bodies,Downend School,530.55, 27-Jul-2020
1136,Revenue,CAHD,Statemented Support Academies,Other Public Bodies,Downend School,1108.26, 27-Jul-2020
1137,Revenue,CAHD,Statemented Support Academies,Other Public Bodies,Downend School,554.13, 27-Jul-2020
1138,Revenue,CAHD,Statemented Support Academies,Other Public Bodies,Downend School,1438.38, 27-Jul-2020
1139,Revenue,CAHD,Statemented Support Academies,Other Public Bodies,Downend School,1709.55, 27-Jul-2020
1140,Revenue,CAHD,Statemented Support Academies,Other Public Bodies,Downend School,1544.49, 27-Jul-2020
1141,Revenue,CAHD,Schools Block Growth Contingency,Other Public Bodies,Downend School,54250.50, 14-Jul-2020
1142,Revenue,CAHD,Social Lettings Agency,Rent,Individual,595.11, 24-Jul-2020
1143,Revenue,CAHD,Social Lettings Agency,Fees - General,Individual,10.53, 24-Jul-2020
1144,Revenue,CAHD,CSC - Residential Placements,Permanent Residential,Durham County Council,20045.00, 07-Jul-2020
1145,Revenue,CAHD,North - Community based support,Permanent Residential,East Court,2763.56, 28-Jul-2020
1146,Revenue,CAHD,CSC - Residential Placements,Permanent Residential,East Sussex County Council,29633.29, 02-Jul-2020
1147,Revenue,CAHD,CSC - Residential Placements,Permanent Residential,East Sussex County Council,30535.00, 02-Jul-2020
1148,Revenue,CAHD,CSC - Residential Placements,Permanent Residential,East Sussex County Council,29650.00, 02-Jul-2020
1149,Revenue,CAHD,CSC - Residential Placements,Permanent Residential,East Sussex County Council,30635.00, 03-Jul-2020
1150,Revenue,CAHD,CSC - Residential Placements,Permanent Residential,East Sussex County Council,29650.00, 28-Jul-2020
1151,Revenue,CAHD,South - Commissioned Services,Respite Planned - Residential,Edgemont House Ltd,6994.29, 28-Jul-2020
1152,Revenue,CAHD,South - Commissioned Services,Respite Planned - Residential,Edgemont House Ltd,2628.57, 28-Jul-2020
1153,Revenue,CAHD,South - Commissioned Services,Permanent Residential,Edgemont House Ltd,3264.00, 28-Jul-2020
1154,Revenue,CAHD,South - bed purchasing and direct  payments,Permanent Residential,Edgemont House Ltd,3264.00, 28-Jul-2020
1155,Revenue,CAHD,South - Commissioned Services,Respite Emergency - Residential,Edgemont View Ltd,5250.00, 28-Jul-2020
1156,Revenue,CAHD,South - Commissioned Services,Permanent Nursing,Edgemont View Ltd,3655.68, 28-Jul-2020
1157,Revenue,CAHD,South Glos Users in South Glos Homes,Permanent Nursing,Edgemont View Ltd,735.68, 28-Jul-2020
1158,Revenue,CAHD,South Glos Users in South Glos Homes,Permanent Nursing,Edgemont View Ltd,592.45, 28-Jul-2020
1159,Revenue,CAHD,South Glos Users in South Glos Homes,Permanent Nursing,Edgemont View Ltd,735.68, 28-Jul-2020
1160,Revenue,CAHD,South Glos Users in South Glos Homes,Permanent Nursing,Edgemont View Ltd,735.68, 28-Jul-2020
1161,Revenue,CAHD,South Glos Users in South Glos Homes,Permanent Nursing,Edgemont View Ltd,1184.89, 28-Jul-2020
1162,Revenue,CAHD,South Glos Users in South Glos Homes,Permanent Nursing,Edgemont View Ltd,735.68, 28-Jul-2020
1163,Revenue,CAHD,South - Commissioned Services,Permanent Nursing,Edgemont View Ltd,3600.00, 28-Jul-2020
1164,Revenue,CAHD,South Glos Users in South Glos Homes,Permanent Nursing,Edgemont View Ltd,735.68, 28-Jul-2020
1165,Revenue,CAHD,Bed Purchasing - Southmead Hospital,Respite Emergency - Residential,Edgemont View Ltd,7000.00, 28-Jul-2020
1166,Revenue,CAHD,South Glos Users in South Glos Homes,Permanent Nursing,Edgemont View Ltd,1494.00, 28-Jul-2020
1167,Revenue,CAHD,South Glos Users in South Glos Homes,Permanent Nursing,Edgemont View Ltd,1777.34, 28-Jul-2020
1168,Revenue,CAHD,South - Commissioned Services,Permanent Nursing,Edgemont View Ltd,3125.00, 28-Jul-2020
1169,Revenue,CAHD,South Glos Users in South Glos Homes,Permanent Nursing,Edgemont View Ltd,735.68, 28-Jul-2020
1170,Revenue,CAHD,South - Commissioned Services,Permanent Nursing,Edgemont View Ltd,3655.68, 28-Jul-2020
1171,Revenue,CAHD,South Glos Users in South Glos Homes,Permanent Nursing,Edgemont View Ltd,735.68, 28-Jul-2020
1172,Revenue,CAHD,Planning and Partnerships Procurement,Other Supplies & Services,Eldercare,450.00, 15-Jul-2020
1173,Revenue,CAHD,Planning and Partnerships Procurement,Other Supplies & Services,Eldercare,2744.00, 15-Jul-2020
1174,Revenue,CAHD,Planning and Partnerships Procurement,Other Supplies & Services,Eldercare,2627.56, 15-Jul-2020
1175,Revenue,CAHD,Supporting People Programme,Grants to Voluntary Bodies,Elim Housing Association Limited,5362.00, 01-Jul-2020
1176,Revenue,CAHD,Supporting People Programme,Grants to Voluntary Bodies,Elim Housing Association Limited,5362.00, 31-Jul-2020
1177,Revenue,CAHD,Social Lettings Agency,Rent,Individual,1169.28, 03-Jul-2020
1178,Revenue,CAHD,Social Lettings Agency,Fees - General,Individual,15.12, 03-Jul-2020
1179,Revenue,CAHD,CSC - Legal Fees,Legal Fees,Individual,440.00, 27-Jul-2020
1180,Revenue,CAHD,Sexual Health,Other Small Contracts,Emersons Green Medical Centre,805.00, 20-Jul-2020
1181,Revenue,CAHD,Sexual Health,Other Small Contracts,Emersons Green Medical Centre,1383.36, 20-Jul-2020
1182,Revenue,CAHD,Special ISB,Other Public Bodies,Enable Trust,6794.56, 03-Jul-2020
1183,Revenue,CAHD,Special ISB,Other Public Bodies,Enable Trust,6575.36, 03-Jul-2020
1184,Revenue,CAHD,Special ISB,Other Public Bodies,Enable Trust,1540.83, 28-Jul-2020
1185,Revenue,CAHD,Special ISB,Other Public Bodies,Enable Trust,1540.83, 28-Jul-2020
1186,Revenue,CAHD,Special ISB,Other Public Bodies,Enable Trust,1175.88, 28-Jul-2020
1187,Revenue,CAHD,Special ISB,Other Public Bodies,Enable Trust,1175.88, 28-Jul-2020
1188,Revenue,CAHD,Special ISB,Other Public Bodies,Enable Trust,892.05, 28-Jul-2020
1189,Revenue,CAHD,Special ISB,Other Public Bodies,Enable Trust,1540.83, 28-Jul-2020
1190,Revenue,CAHD,Special ISB,Other Public Bodies,Enable Trust,1540.83, 28-Jul-2020
1191,Revenue,CAHD,Special ISB,Other Public Bodies,Enable Trust,1175.88, 28-Jul-2020
1192,Revenue,CAHD,Special ISB,Other Public Bodies,Enable Trust,1175.88, 28-Jul-2020
1193,Revenue,CAHD,Special ISB,Other Public Bodies,Enable Trust,1175.88, 28-Jul-2020
1194,Revenue,CAHD,Special ISB,Other Public Bodies,Enable Trust,1540.83, 28-Jul-2020
1195,Revenue,CAHD,Special ISB,Other Public Bodies,Enable Trust,892.05, 28-Jul-2020
1196,Revenue,CAHD,Special ISB,Other Public Bodies,Enable Trust,648.70, 28-Jul-2020
1197,Revenue,CAHD,Special ISB,Other Public Bodies,Enable Trust,892.05, 28-Jul-2020
1198,Revenue,CAHD,Special ISB,Other Public Bodies,Enable Trust,892.05, 28-Jul-2020
1199,Revenue,CAHD,Special ISB,Other Public Bodies,Enable Trust,1175.88, 28-Jul-2020
1200,Revenue,CAHD,Special ISB,Other Public Bodies,Enable Trust,1175.88, 28-Jul-2020
1201,Revenue,CAHD,Special ISB,Other Public Bodies,Enable Trust,1175.88, 28-Jul-2020
1202,Revenue,CAHD,Special ISB,Other Public Bodies,Enable Trust,892.05, 28-Jul-2020
1203,Revenue,CAHD,Special ISB,Other Public Bodies,Enable Trust,1175.88, 28-Jul-2020
1204,Revenue,CAHD,Special ISB,Other Public Bodies,Enable Trust,1175.88, 28-Jul-2020
1205,Revenue,CAHD,Special ISB,Other Public Bodies,Enable Trust,1540.83, 28-Jul-2020
1206,Revenue,CAHD,Special ISB,Other Public Bodies,Enable Trust,648.70, 28-Jul-2020
1207,Revenue,CAHD,Special ISB,Other Public Bodies,Enable Trust,1702.96, 28-Jul-2020
1208,Revenue,CAHD,Special ISB,Other Public Bodies,Enable Trust,1540.83, 28-Jul-2020
1209,Revenue,CAHD,Special ISB,Other Public Bodies,Enable Trust,1540.83, 28-Jul-2020
1210,Revenue,CAHD,Special ISB,Other Public Bodies,Enable Trust,1175.88, 28-Jul-2020
1211,Revenue,CAHD,Special ISB,Other Public Bodies,Enable Trust,1175.88, 28-Jul-2020
1212,Revenue,CAHD,Special ISB,Other Public Bodies,Enable Trust,892.05, 28-Jul-2020
1213,Revenue,CAHD,Special ISB,Other Public Bodies,Enable Trust,1175.88, 28-Jul-2020
1214,Revenue,CAHD,Special ISB,Other Public Bodies,Enable Trust,892.05, 28-Jul-2020
1215,Revenue,CAHD,Special ISB,Other Public Bodies,Enable Trust,2189.53, 28-Jul-2020
1216,Revenue,CAHD,Special ISB,Other Public Bodies,Enable Trust,1175.88, 28-Jul-2020
1217,Revenue,CAHD,Special ISB,Other Public Bodies,Enable Trust,1175.88, 28-Jul-2020
1218,Revenue,CAHD,Special ISB,Other Public Bodies,Enable Trust,1175.88, 28-Jul-2020
1219,Revenue,CAHD,Special ISB,Other Public Bodies,Enable Trust,1175.88, 28-Jul-2020
1220,Revenue,CAHD,Special ISB,Other Public Bodies,Enable Trust,1175.88, 28-Jul-2020
1221,Revenue,CAHD,Special ISB,Other Public Bodies,Enable Trust,2189.53, 28-Jul-2020
1222,Revenue,CAHD,Special ISB,Other Public Bodies,Enable Trust,1175.88, 28-Jul-2020
1223,Revenue,CAHD,Special ISB,Other Public Bodies,Enable Trust,1540.83, 28-Jul-2020
1224,Revenue,CAHD,Special ISB,Other Public Bodies,Enable Trust,892.05, 28-Jul-2020
1225,Revenue,CAHD,Special ISB,Other Public Bodies,Enable Trust,1540.83, 28-Jul-2020
1226,Revenue,CAHD,Special ISB,Other Public Bodies,Enable Trust,1175.88, 28-Jul-2020
1227,Revenue,CAHD,Special ISB,Other Public Bodies,Enable Trust,1540.83, 28-Jul-2020
1228,Revenue,CAHD,Special ISB,Other Public Bodies,Enable Trust,892.05, 28-Jul-2020
1229,Revenue,CAHD,Special ISB,Other Public Bodies,Enable Trust,1540.83, 28-Jul-2020
1230,Revenue,CAHD,Special ISB,Other Public Bodies,Enable Trust,1175.88, 28-Jul-2020
1231,Revenue,CAHD,Special ISB,Other Public Bodies,Enable Trust,1540.83, 28-Jul-2020
1232,Revenue,CAHD,Special ISB,Other Public Bodies,Enable Trust,1175.88, 28-Jul-2020
1233,Revenue,CAHD,Special ISB,Other Public Bodies,Enable Trust,1540.83, 28-Jul-2020
1234,Revenue,CAHD,Special ISB,Other Public Bodies,Enable Trust,1175.88, 28-Jul-2020
1235,Revenue,CAHD,Special ISB,Other Public Bodies,Enable Trust,892.05, 28-Jul-2020
1236,Revenue,CAHD,Special ISB,Other Public Bodies,Enable Trust,1175.88, 28-Jul-2020
1237,Revenue,CAHD,Special ISB,Other Public Bodies,Enable Trust,1175.88, 28-Jul-2020
1238,Revenue,CAHD,Special ISB,Other Public Bodies,Enable Trust,2189.53, 28-Jul-2020
1239,Revenue,CAHD,Special ISB,Other Public Bodies,Enable Trust,1540.83, 28-Jul-2020
1240,Revenue,CAHD,Special ISB,Other Public Bodies,Enable Trust,892.05, 28-Jul-2020
1241,Revenue,CAHD,Special ISB,Other Public Bodies,Enable Trust,892.05, 28-Jul-2020
1242,Revenue,CAHD,Special ISB,Other Public Bodies,Enable Trust,892.05, 28-Jul-2020
1243,Revenue,CAHD,Special ISB,Other Public Bodies,Enable Trust,1540.83, 28-Jul-2020
1244,Revenue,CAHD,Special ISB,Other Public Bodies,Enable Trust,1540.83, 28-Jul-2020
1245,Revenue,CAHD,Special ISB,Other Public Bodies,Enable Trust,1175.88, 28-Jul-2020
1246,Revenue,CAHD,Special ISB,Other Public Bodies,Enable Trust,1175.88, 28-Jul-2020
1247,Revenue,CAHD,Special ISB,Other Public Bodies,Enable Trust,1540.83, 28-Jul-2020
1248,Revenue,CAHD,Special ISB,Other Public Bodies,Enable Trust,1175.88, 28-Jul-2020
1249,Revenue,CAHD,Special ISB,Other Public Bodies,Enable Trust,1540.83, 28-Jul-2020
1250,Revenue,CAHD,Special ISB,Other Public Bodies,Enable Trust,1175.88, 28-Jul-2020
1251,Revenue,CAHD,Special ISB,Other Public Bodies,Enable Trust,1175.88, 28-Jul-2020
1252,Revenue,CAHD,Special ISB,Other Public Bodies,Enable Trust,1175.88, 28-Jul-2020
1253,Revenue,CAHD,Special ISB,Other Public Bodies,Enable Trust,1175.88, 28-Jul-2020
1254,Revenue,CAHD,Special ISB,Other Public Bodies,Enable Trust,2189.53, 28-Jul-2020
1255,Revenue,CAHD,Special ISB,Other Public Bodies,Enable Trust,1175.88, 28-Jul-2020
1256,Revenue,CAHD,Special ISB,Other Public Bodies,Enable Trust,1540.83, 28-Jul-2020
1257,Revenue,CAHD,Special ISB,Other Public Bodies,Enable Trust,2189.53, 28-Jul-2020
1258,Revenue,CAHD,Special ISB,Other Public Bodies,Enable Trust,2189.53, 28-Jul-2020
1259,Revenue,CAHD,Schools Specific Grant Income,Other Public Bodies,Enable Trust,630.00, 07-Jul-2020
1260,Revenue,CAHD,Special ISB,Other Public Bodies,Enable Trust,3057.55, 03-Jul-2020
1261,Revenue,CAHD,Special ISB,Other Public Bodies,Enable Trust,2958.91, 03-Jul-2020
1262,Revenue,CAHD,Special ISB,Other Public Bodies,Enable Trust,1175.88, 28-Jul-2020
1263,Revenue,CAHD,Special ISB,Other Public Bodies,Enable Trust,1702.96, 28-Jul-2020
1264,Revenue,CAHD,Special ISB,Other Public Bodies,Enable Trust,892.05, 28-Jul-2020
1265,Revenue,CAHD,Special ISB,Other Public Bodies,Enable Trust,1702.96, 28-Jul-2020
1266,Revenue,CAHD,Special ISB,Other Public Bodies,Enable Trust,1175.88, 28-Jul-2020
1267,Revenue,CAHD,Special ISB,Other Public Bodies,Enable Trust,2189.53, 28-Jul-2020
1268,Revenue,CAHD,Special ISB,Other Public Bodies,Enable Trust,2189.53, 28-Jul-2020
1269,Revenue,CAHD,Special ISB,Other Public Bodies,Enable Trust,1508.33, 28-Jul-2020
1270,Revenue,CAHD,Special ISB,Other Public Bodies,Enable Trust,892.05, 28-Jul-2020
1271,Revenue,CAHD,Special ISB,Other Public Bodies,Enable Trust,892.05, 28-Jul-2020
1272,Revenue,CAHD,Special ISB,Other Public Bodies,Enable Trust,1175.88, 28-Jul-2020
1273,Revenue,CAHD,Special ISB,Other Public Bodies,Enable Trust,2189.53, 28-Jul-2020
1274,Revenue,CAHD,Special ISB,Other Public Bodies,Enable Trust,2513.87, 28-Jul-2020
1275,Revenue,CAHD,Special ISB,Other Public Bodies,Enable Trust,892.05, 28-Jul-2020
1276,Revenue,CAHD,Special ISB,Other Public Bodies,Enable Trust,892.05, 28-Jul-2020
1277,Revenue,CAHD,Special ISB,Other Public Bodies,Enable Trust,1702.96, 28-Jul-2020
1278,Revenue,CAHD,Special ISB,Other Public Bodies,Enable Trust,1702.96, 28-Jul-2020
1279,Revenue,CAHD,Special ISB,Other Public Bodies,Enable Trust,1175.88, 28-Jul-2020
1280,Revenue,CAHD,Special ISB,Other Public Bodies,Enable Trust,1175.88, 28-Jul-2020
1281,Revenue,CAHD,Special ISB,Other Public Bodies,Enable Trust,1702.96, 28-Jul-2020
1282,Revenue,CAHD,Special ISB,Other Public Bodies,Enable Trust,1702.96, 28-Jul-2020
1283,Revenue,CAHD,Special ISB,Other Public Bodies,Enable Trust,1175.88, 28-Jul-2020
1284,Revenue,CAHD,Special ISB,Other Public Bodies,Enable Trust,1175.88, 28-Jul-2020
1285,Revenue,CAHD,Special ISB,Other Public Bodies,Enable Trust,892.05, 28-Jul-2020
1286,Revenue,CAHD,Special ISB,Other Public Bodies,Enable Trust,1702.96, 28-Jul-2020
1287,Revenue,CAHD,Special ISB,Other Public Bodies,Enable Trust,1175.88, 28-Jul-2020
1288,Revenue,CAHD,Special ISB,Other Public Bodies,Enable Trust,1175.88, 28-Jul-2020
1289,Revenue,CAHD,Special ISB,Other Public Bodies,Enable Trust,1175.88, 28-Jul-2020
1290,Revenue,CAHD,Special ISB,Other Public Bodies,Enable Trust,1702.96, 28-Jul-2020
1291,Revenue,CAHD,Special ISB,Other Public Bodies,Enable Trust,1702.96, 28-Jul-2020
1292,Revenue,CAHD,Special ISB,Other Public Bodies,Enable Trust,1175.88, 28-Jul-2020
1293,Revenue,CAHD,Special ISB,Other Public Bodies,Enable Trust,1702.96, 28-Jul-2020
1294,Revenue,CAHD,Special ISB,Other Public Bodies,Enable Trust,1175.88, 28-Jul-2020
1295,Revenue,CAHD,Special ISB,Other Public Bodies,Enable Trust,1175.88, 28-Jul-2020
1296,Revenue,CAHD,Special ISB,Other Public Bodies,Enable Trust,1175.88, 28-Jul-2020
1297,Revenue,CAHD,Special ISB,Other Public Bodies,Enable Trust,1175.88, 28-Jul-2020
1298,Revenue,CAHD,Special ISB,Other Public Bodies,Enable Trust,1175.88, 28-Jul-2020
1299,Revenue,CAHD,Special ISB,Other Public Bodies,Enable Trust,1175.88, 28-Jul-2020
1300,Revenue,CAHD,Special ISB,Other Public Bodies,Enable Trust,892.05, 28-Jul-2020
1301,Revenue,CAHD,Special ISB,Other Public Bodies,Enable Trust,1175.88, 28-Jul-2020
1302,Revenue,CAHD,Special ISB,Other Public Bodies,Enable Trust,1175.88, 28-Jul-2020
1303,Revenue,CAHD,Special ISB,Other Public Bodies,Enable Trust,2189.53, 28-Jul-2020
1304,Revenue,CAHD,Special ISB,Other Public Bodies,Enable Trust,1702.96, 28-Jul-2020
1305,Revenue,CAHD,Special ISB,Other Public Bodies,Enable Trust,1702.96, 28-Jul-2020
1306,Revenue,CAHD,Special ISB,Other Public Bodies,Enable Trust,892.05, 28-Jul-2020
1307,Revenue,CAHD,Special ISB,Other Public Bodies,Enable Trust,648.70, 28-Jul-2020
1308,Revenue,CAHD,Special ISB,Other Public Bodies,Enable Trust,1175.88, 28-Jul-2020
1309,Revenue,CAHD,Special ISB,Other Public Bodies,Enable Trust,892.05, 28-Jul-2020
1310,Revenue,CAHD,Special ISB,Other Public Bodies,Enable Trust,1175.88, 28-Jul-2020
1311,Revenue,CAHD,Special ISB,Other Public Bodies,Enable Trust,648.70, 28-Jul-2020
1312,Revenue,CAHD,Special ISB,Other Public Bodies,Enable Trust,1702.96, 28-Jul-2020
1313,Revenue,CAHD,Special ISB,Other Public Bodies,Enable Trust,1702.96, 28-Jul-2020
1314,Revenue,CAHD,Special ISB,Other Public Bodies,Enable Trust,1540.83, 28-Jul-2020
1315,Revenue,CAHD,Special ISB,Other Public Bodies,Enable Trust,892.05, 28-Jul-2020
1316,Revenue,CAHD,Special ISB,Other Public Bodies,Enable Trust,1702.96, 28-Jul-2020
1317,Revenue,CAHD,Special ISB,Other Public Bodies,Enable Trust,1175.88, 28-Jul-2020
1318,Revenue,CAHD,Special ISB,Other Public Bodies,Enable Trust,1175.88, 28-Jul-2020
1319,Revenue,CAHD,Special ISB,Other Public Bodies,Enable Trust,1175.88, 28-Jul-2020
1320,Revenue,CAHD,Special ISB,Other Public Bodies,Enable Trust,892.05, 28-Jul-2020
1321,Revenue,CAHD,Special ISB,Other Public Bodies,Enable Trust,892.05, 28-Jul-2020
1322,Revenue,CAHD,Special ISB,Other Public Bodies,Enable Trust,892.05, 28-Jul-2020
1323,Revenue,CAHD,Special ISB,Other Public Bodies,Enable Trust,1175.88, 28-Jul-2020
1324,Revenue,CAHD,Special ISB,Other Public Bodies,Enable Trust,892.05, 28-Jul-2020
1325,Revenue,CAHD,Special ISB,Other Public Bodies,Enable Trust,892.05, 28-Jul-2020
1326,Revenue,CAHD,Special ISB,Other Public Bodies,Enable Trust,892.05, 28-Jul-2020
1327,Revenue,CAHD,Special ISB,Other Public Bodies,Enable Trust,1175.88, 28-Jul-2020
1328,Revenue,CAHD,Special ISB,Other Public Bodies,Enable Trust,1702.96, 28-Jul-2020
1329,Revenue,CAHD,Special ISB,Other Public Bodies,Enable Trust,1702.96, 28-Jul-2020
1330,Revenue,CAHD,Special ISB,Other Public Bodies,Enable Trust,2189.53, 28-Jul-2020
1331,Revenue,CAHD,Special ISB,Other Public Bodies,Enable Trust,1175.88, 28-Jul-2020
1332,Revenue,CAHD,Special ISB,Other Public Bodies,Enable Trust,892.05, 28-Jul-2020
1333,Revenue,CAHD,Special ISB,Other Public Bodies,Enable Trust,892.05, 28-Jul-2020
1334,Revenue,CAHD,Special ISB,Other Public Bodies,Enable Trust,1175.88, 28-Jul-2020
1335,Revenue,CAHD,Special ISB,Other Public Bodies,Enable Trust,1175.88, 28-Jul-2020
1336,Revenue,CAHD,Special ISB,Other Public Bodies,Enable Trust,1175.88, 28-Jul-2020
1337,Revenue,CAHD,Special ISB,Other Public Bodies,Enable Trust,1702.96, 28-Jul-2020
1338,Revenue,CAHD,Special ISB,Other Public Bodies,Enable Trust,1702.96, 28-Jul-2020
1339,Revenue,CAHD,Special ISB,Other Public Bodies,Enable Trust,1175.88, 28-Jul-2020
1340,Revenue,CAHD,Special ISB,Other Public Bodies,Enable Trust,892.05, 28-Jul-2020
1341,Revenue,CAHD,Special ISB,Other Public Bodies,Enable Trust,892.05, 28-Jul-2020
1342,Revenue,CAHD,Special ISB,Other Public Bodies,Enable Trust,1702.96, 28-Jul-2020
1343,Revenue,CAHD,Special ISB,Other Public Bodies,Enable Trust,2189.53, 28-Jul-2020
1344,Revenue,CAHD,Special ISB,Other Public Bodies,Enable Trust,1175.88, 28-Jul-2020
1345,Revenue,CAHD,Special ISB,Other Public Bodies,Enable Trust,892.05, 28-Jul-2020
1346,Revenue,CAHD,Special ISB,Other Public Bodies,Enable Trust,2189.53, 28-Jul-2020
1347,Revenue,CAHD,Special ISB,Other Public Bodies,Enable Trust,1702.96, 28-Jul-2020
1348,Revenue,CAHD,Special ISB,Other Public Bodies,Enable Trust,1540.83, 28-Jul-2020
1349,Revenue,CAHD,Special ISB,Other Public Bodies,Enable Trust,648.70, 28-Jul-2020
1350,Revenue,CAHD,Special ISB,Other Public Bodies,Enable Trust,1175.88, 28-Jul-2020
1351,Revenue,CAHD,Special ISB,Other Public Bodies,Enable Trust,2189.53, 28-Jul-2020
1352,Revenue,CAHD,Special ISB,Other Public Bodies,Enable Trust,1175.88, 28-Jul-2020
1353,Revenue,CAHD,Special ISB,Other Public Bodies,Enable Trust,1702.96, 28-Jul-2020
1354,Revenue,CAHD,Special ISB,Other Public Bodies,Enable Trust,2189.53, 28-Jul-2020
1355,Revenue,CAHD,Special ISB,Other Public Bodies,Enable Trust,1021.76, 28-Jul-2020
1356,Revenue,CAHD,Special ISB,Other Public Bodies,Enable Trust,25000.00, 28-Jul-2020
1357,Revenue,CAHD,North - Community based support,Other Small Contracts,Epiphany In Care,3702.60, 09-Jul-2020
1358,Revenue,CAHD,Central - Commissioned Services,Other Small Contracts,Epiphany In Care,4719.42, 29-Jul-2020
1359,Revenue,CAHD,Central - Commissioned Services,Other Small Contracts,Epiphany In Care,697.90, 29-Jul-2020
1360,Revenue,CAHD,Central - Commissioned Services,Other Small Contracts,Epiphany In Care,1188.00, 15-Jul-2020
1361,Revenue,CAHD,Central - Commissioned Services,Other Small Contracts,Epiphany In Care,5076.00, 28-Jul-2020
1362,Revenue,CAHD,North - Community based support,Other Small Contracts,Epiphany In Care,1108.80, 30-Jul-2020
1363,Revenue,CAHD,Additional Payments to providers - COVID,Other Small Contracts,Epiphany In Care,1679.43, 07-Jul-2020
1364,Revenue,CAHD,Additional Payments to providers - COVID,Other Small Contracts,Epiphany In Care,1893.68, 07-Jul-2020
1365,Revenue,CAHD,Additional Payments to providers - COVID,Other Small Contracts,Epiphany In Care,1893.68, 07-Jul-2020
1366,Revenue,CAHD,North - S117,Permanent Residential,Evolve House,3276.80, 28-Jul-2020
1367,Revenue,CAHD,Placements OLA Special Schools and RB,Other L.A.'s - General,Excalibur Academies Trust T/A,2196.67, 28-Jul-2020
1368,Revenue,CAHD,Schools Specific Grant Income,Other Public Bodies,Excalibur Academies Trust T/A,630.00, 07-Jul-2020
1369,Revenue,CAHD,Social Lettings Agency,Prop.Serv. General Repairs,Express Property Services Limited,39.00, 13-Jul-2020
1370,Revenue,CAHD,Social Lettings Agency,Prop.Serv. General Repairs,Express Property Services Limited,85.00, 13-Jul-2020
1371,Revenue,CAHD,Learning Difficulties PSL,Prop.Serv. General Repairs,Express Property Services Limited,71.50, 13-Jul-2020
1372,Revenue,CAHD,Learning Difficulties PSL,Prop.Serv. General Repairs,Express Property Services Limited,95.00, 13-Jul-2020
1373,Revenue,CAHD,Learning Difficulties PSL,Prop.Serv. General Repairs,Express Property Services Limited,187.50, 13-Jul-2020
1374,Revenue,CAHD,Learning Difficulties PSL,Prop.Serv. General Repairs,Express Property Services Limited,125.00, 13-Jul-2020
1375,Revenue,CAHD,Homeless - Private Sector Leasing,Prop.Serv. General Repairs,Express Property Services Limited,240.00, 13-Jul-2020
1376,Revenue,CAHD,Social Lettings Agency,Prop.Serv. General Repairs,Express Property Services Limited,39.00, 17-Jul-2020
1377,Revenue,CAHD,Social Lettings Agency,Prop.Serv. General Repairs,Express Property Services Limited,165.50, 17-Jul-2020
1378,Revenue,CAHD,Social Lettings Agency,Prop.Serv. General Repairs,Express Property Services Limited,93.00, 17-Jul-2020
1379,Revenue,CAHD,Homeless - Private Sector Leasing,Prop.Serv. General Repairs,Express Property Services Limited,253.00, 17-Jul-2020
1380,Revenue,CAHD,Social Lettings Agency,Prop.Serv. General Repairs,Express Property Services Limited,39.00, 20-Jul-2020
1381,Revenue,CAHD,Social Lettings Agency,Prop.Serv. General Repairs,Express Property Services Limited,60.00, 20-Jul-2020
1382,Revenue,CAHD,Social Lettings Agency,Prop.Serv. General Repairs,Express Property Services Limited,112.58, 20-Jul-2020
1383,Revenue,CAHD,Social Lettings Agency,Prop.Serv. General Repairs,Express Property Services Limited,87.00, 20-Jul-2020
1384,Revenue,CAHD,Social Lettings Agency,Prop.Serv. General Repairs,Express Property Services Limited,95.00, 20-Jul-2020
1385,Revenue,CAHD,Social Lettings Agency,Prop.Serv. General Repairs,Express Property Services Limited,60.00, 20-Jul-2020
1386,Revenue,CAHD,Social Lettings Agency,Prop.Serv. General Repairs,Express Property Services Limited,208.25, 20-Jul-2020
1387,Revenue,CAHD,Social Lettings Agency,Prop.Serv. General Repairs,Express Property Services Limited,60.00, 20-Jul-2020
1388,Revenue,CAHD,Social Lettings Agency,Prop.Serv. General Repairs,Express Property Services Limited,370.33, 20-Jul-2020
1389,Revenue,CAHD,Social Lettings Agency,Prop.Serv. General Repairs,Express Property Services Limited,198.75, 20-Jul-2020
1390,Revenue,CAHD,Homeless - Private Sector Leasing,Prop.Serv. General Repairs,Express Property Services Limited,67.50, 20-Jul-2020
1391,Revenue,CAHD,Homeless - Private Sector Leasing,Prop.Serv. General Repairs,Express Property Services Limited,198.70, 20-Jul-2020
1392,Revenue,CAHD,Homeless - Private Sector Leasing,Prop.Serv. General Repairs,Express Property Services Limited,65.00, 20-Jul-2020
1393,Revenue,CAHD,Homeless - Private Sector Leasing,Prop.Serv. General Repairs,Express Property Services Limited,190.90, 20-Jul-2020
1394,Revenue,CAHD,Extra Care Housing,Private & Voluntary Home Care,Extra Care Charitable Trust,26966.00, 10-Jul-2020
1395,Revenue,CAHD,North - Community based support,Permanent Residential,Eyre Court,3719.16, 28-Jul-2020
1396,Revenue,CAHD,Covid � ASC - Infection Control,Grants to Voluntary Bodies,Eyre Court,4223.31, 02-Jul-2020
1397,Revenue,CAHD,North - Community based support,Permanent Residential,Eyre Court,5400.00, 28-Jul-2020
1398,Revenue,CAHD,Covid � ASC - Infection Control,Grants to Voluntary Bodies,Eyre Court,25390.35, 02-Jul-2020
1399,Revenue,CAHD,South - Commissioned Services,Permanent Nursing,Fairview Court,3886.76, 28-Jul-2020
1400,Revenue,CAHD,South Glos Users in South Glos Homes,Permanent Nursing,Fairview Court,735.68, 28-Jul-2020
1401,Revenue,CAHD,South Glos Users in South Glos Homes,Permanent Nursing,Fairview Court,735.68, 28-Jul-2020
1402,Revenue,CAHD,South Glos Users in South Glos Homes,Permanent Nursing,Fairview Court,735.68, 28-Jul-2020
1403,Revenue,CAHD,South Glos Users in South Glos Homes,Permanent Nursing,Fairview Court,1133.38, 28-Jul-2020
1404,Revenue,CAHD,South Glos Users in South Glos Homes,Permanent Nursing,Fairview Court,735.68, 28-Jul-2020
1405,Revenue,CAHD,South Glos Users in South Glos Homes,Permanent Nursing,Fairview Court,735.68, 28-Jul-2020
1406,Revenue,CAHD,South - Commissioned Services,Permanent Nursing,Fairview Court,3618.72, 28-Jul-2020
1407,Revenue,CAHD,South Glos Users in South Glos Homes,Permanent Nursing,Fairview Court,735.68, 28-Jul-2020
1408,Revenue,CAHD,South Glos Users in South Glos Homes,Permanent Nursing,Fairview Court,735.68, 28-Jul-2020
1409,Revenue,CAHD,South - S117,Permanent Nursing,Fairview Court,4257.32, 28-Jul-2020
1410,Revenue,CAHD,South Glos Users in South Glos Homes,Permanent Nursing,Fairview Court,735.68, 28-Jul-2020
1411,Revenue,CAHD,South Glos Users in South Glos Homes,Permanent Nursing,Fairview Court,3554.68, 28-Jul-2020
1412,Revenue,CAHD,South Glos Users in South Glos Homes,Permanent Nursing,Fairview Court,735.68, 28-Jul-2020
1413,Revenue,CAHD,South - Commissioned Services,Permanent Nursing,Fairview Court,3450.12, 28-Jul-2020
1414,Revenue,CAHD,South Glos Users in South Glos Homes,Permanent Nursing,Fairview Court,735.68, 28-Jul-2020
1415,Revenue,CAHD,South - bed purchasing and direct  payments,Permanent Nursing,Fairview Court,4078.24, 28-Jul-2020
1416,Revenue,CAHD,South Glos Users in South Glos Homes,Permanent Nursing,Fairview Court,735.68, 28-Jul-2020
1417,Revenue,CAHD,South Glos Users in South Glos Homes,Permanent Nursing,Fairview Court,735.68, 28-Jul-2020
1418,Revenue,CAHD,South Glos Users in South Glos Homes,Permanent Nursing,Fairview Court,1262.17, 28-Jul-2020
1419,Revenue,CAHD,South Glos Users in South Glos Homes,Permanent Nursing,Fairview Court,735.68, 28-Jul-2020
1420,Revenue,CAHD,South Glos Users in South Glos Homes,Permanent Nursing,Fairview Court,735.68, 28-Jul-2020
1421,Revenue,CAHD,South - Commissioned Services,Permanent Nursing,Fairview Court,4140.00, 28-Jul-2020
1422,Revenue,CAHD,South Glos Users in South Glos Homes,Permanent Nursing,Fairview Court,735.68, 28-Jul-2020
1423,Revenue,CAHD,South - Commissioned Services,Permanent Nursing,Fairview Court,3886.76, 28-Jul-2020
1424,Revenue,CAHD,South Glos Users in South Glos Homes,Permanent Nursing,Fairview Court,735.68, 28-Jul-2020
1425,Revenue,CAHD,South Glos Users in South Glos Homes,Permanent Nursing,Fairview Court,735.68, 28-Jul-2020
1426,Revenue,CAHD,South - Commissioned Services,Permanent Nursing,Fairview Court,12171.43, 28-Jul-2020
1427,Revenue,CAHD,South - Commissioned Services,Permanent Nursing,Fairview Court,4800.00, 28-Jul-2020
1428,Revenue,CAHD,South Glos Users in South Glos Homes,Permanent Nursing,Fairview Court,735.68, 28-Jul-2020
1429,Revenue,CAHD,South - Commissioned Services,Permanent Nursing,Fairview Court,4137.76, 28-Jul-2020
1430,Revenue,CAHD,South Glos Users in South Glos Homes,Permanent Nursing,Fairview Court,2706.25, 28-Jul-2020
1431,Revenue,CAHD,South Glos Users in South Glos Homes,Permanent Nursing,Fairview Court,735.68, 28-Jul-2020
1432,Revenue,CAHD,South Glos Users in South Glos Homes,Permanent Nursing,Fairview Court,592.45, 28-Jul-2020
1433,Revenue,CAHD,South Glos Users in South Glos Homes,Permanent Nursing,Fairview Court,735.68, 28-Jul-2020
1434,Revenue,CAHD,South Glos Users in South Glos Homes,Permanent Nursing,Fairview Court,735.68, 28-Jul-2020
1435,Revenue,CAHD,South - Commissioned Services,Permanent Residential,Fairview Court,4048.64, 28-Jul-2020
1436,Revenue,CAHD,South Glos Users in South Glos Homes,Permanent Nursing,Fairview Court,735.68, 28-Jul-2020
1437,Revenue,CAHD,South Glos Users in South Glos Homes,Permanent Nursing,Fairview Court,735.68, 28-Jul-2020
1438,Revenue,CAHD,South - Commissioned Services,Permanent Nursing,Fairview Court,11828.57, 28-Jul-2020
1439,Revenue,CAHD,South - Commissioned Services,Permanent Nursing,Fairview Court,4800.00, 28-Jul-2020
1440,Revenue,CAHD,South Glos Users in South Glos Homes,Permanent Nursing,Fairview Court,1812.93, 28-Jul-2020
1441,Revenue,CAHD,South Glos Users in South Glos Homes,Permanent Nursing,Fairview Court,735.68, 28-Jul-2020
1442,Revenue,CAHD,South Glos Users in South Glos Homes,Permanent Nursing,Fairview Court,735.68, 28-Jul-2020
1443,Revenue,CAHD,North - Community based support,Permanent Residential,Fairview Court,3321.44, 28-Jul-2020
1444,Revenue,CAHD,South - bed purchasing and direct  payments,Permanent Nursing,Fairview Court,4137.76, 28-Jul-2020
1445,Revenue,CAHD,South Glos Users in South Glos Homes,Permanent Nursing,Fairview Court,735.68, 28-Jul-2020
1446,Revenue,CAHD,South - Commissioned Services,Permanent Nursing,Fairview Court,4137.76, 28-Jul-2020
1447,Revenue,CAHD,South Glos Users in South Glos Homes,Permanent Nursing,Fairview Court,2884.96, 28-Jul-2020
1448,Revenue,CAHD,South Glos Users in South Glos Homes,Permanent Nursing,Fairview Court,735.68, 28-Jul-2020
1449,Revenue,CAHD,South Glos Users in South Glos Homes,Permanent Nursing,Fairview Court,735.68, 28-Jul-2020
1450,Revenue,CAHD,South Glos Users in South Glos Homes,Permanent Nursing,Fairview Court,735.68, 28-Jul-2020
1451,Revenue,CAHD,South Glos Users in South Glos Homes,Permanent Nursing,Fairview Court,1622.79, 28-Jul-2020
1452,Revenue,CAHD,South Glos Users in South Glos Homes,Permanent Nursing,Fairview Court,735.68, 28-Jul-2020
1453,Revenue,CAHD,South - Commissioned Services,Permanent Nursing,Fairview Court,3553.36, 28-Jul-2020
1454,Revenue,CAHD,South Glos Users in South Glos Homes,Permanent Nursing,Fairview Court,735.68, 28-Jul-2020
1455,Revenue,CAHD,North - Community based support,Permanent Nursing,Fairview Court,3886.76, 28-Jul-2020
1456,Revenue,CAHD,South Glos Users in South Glos Homes,Permanent Nursing,Fairview Court,735.68, 28-Jul-2020
1457,Revenue,CAHD,South Glos Users in South Glos Homes,Permanent Nursing,Fairview Court,735.68, 28-Jul-2020
1458,Revenue,CAHD,South - Commissioned Services,Permanent Nursing,Fairview Court,3192.96, 28-Jul-2020
1459,Revenue,CAHD,South Glos Users in South Glos Homes,Permanent Nursing,Fairview Court,735.68, 28-Jul-2020
1460,Revenue,CAHD,South - Commissioned Services,Permanent Nursing,Fairview Court,3618.72, 28-Jul-2020
1461,Revenue,CAHD,South Glos Users in South Glos Homes,Permanent Nursing,Fairview Court,735.68, 28-Jul-2020
1462,Revenue,CAHD,South - Commissioned Services,Permanent Nursing,Fairview Court,4028.00, 28-Jul-2020
1463,Revenue,CAHD,South Glos Users in South Glos Homes,Permanent Nursing,Fairview Court,735.68, 28-Jul-2020
1464,Revenue,CAHD,South - Commissioned Services,Permanent Nursing,Fairview Court,4137.76, 28-Jul-2020
1465,Revenue,CAHD,South Glos Users in South Glos Homes,Permanent Nursing,Fairview Court,735.68, 28-Jul-2020
1466,Revenue,CAHD,South - Commissioned Services,Permanent Residential,Fairview House,2349.60, 28-Jul-2020
1467,Revenue,CAHD,South - Commissioned Services,Permanent Residential,Fairview House,3400.00, 28-Jul-2020
1468,Revenue,CAHD,South - Commissioned Services,Permanent Residential,Fairview House,3400.00, 28-Jul-2020
1469,Revenue,CAHD,South Glos Users in South Glos Homes,Permanent Nursing,Fairview House,735.68, 28-Jul-2020
1470,Revenue,CAHD,South - Commissioned Services,Permanent Residential,Fairview House,3468.00, 28-Jul-2020
1471,Revenue,CAHD,South - Commissioned Services,Permanent Residential,Fairview House,10450.00, 28-Jul-2020
1472,Revenue,CAHD,South - Commissioned Services,Permanent Residential,Fairview House,3800.00, 28-Jul-2020
1473,Revenue,CAHD,North - Community based support,Permanent Residential,Faith House,3363.24, 28-Jul-2020
1474,Revenue,CAHD,Central - Commissioned Services,Permanent Residential,Faith House,4334.92, 28-Jul-2020
1475,Revenue,CAHD,North - Community based support,Permanent Residential,Faith House,2861.88, 28-Jul-2020
1476,Revenue,CAHD,North - Community based support,Permanent Residential,Faith House,3039.60, 28-Jul-2020
1477,Revenue,CAHD,South - Commissioned Services,Permanent Residential,Faith House,2958.00, 28-Jul-2020
1478,Revenue,CAHD,Central - Commissioned Services,Permanent Residential,Fieldview,5657.14, 28-Jul-2020
1479,Revenue,CAHD,Central - Commissioned Services,Permanent Residential,Fieldview,4950.00, 28-Jul-2020
1480,Revenue,CAHD,Central - Commissioned Services,Permanent Residential,Fieldview,3481.60, 28-Jul-2020
1481,Revenue,CAHD,South - Commissioned Services,Respite Planned - Residential,Fieldview,7600.00, 28-Jul-2020
1482,Revenue,CAHD,North - Community based support,Permanent Residential,Fieldview,3200.00, 28-Jul-2020
1483,Revenue,CAHD,South - Commissioned Services,Permanent Residential,Fieldview,3471.43, 28-Jul-2020
1484,Revenue,CAHD,Statemented Support Payments to OLAs,Other L.A.'s - General,Filton Avenue Primary School,1131.84, 24-Jul-2020
1485,Revenue,CAHD,Statemented Support Payments to OLAs,Other L.A.'s - General,Filton Avenue Primary School,1332.27, 24-Jul-2020
1486,Revenue,CAHD,South - Commissioned Services,Fees & Charges Income - General,First Floor  Lingfield House,2903.17, 28-Jul-2020
1487,Revenue,CAHD,Covid 19- Spend on behalf of NHS,Respite Planned - Nursing,First Floor  Lingfield House,950.00, 28-Jul-2020
1488,Revenue,CAHD,Covid 19- Spend on behalf of NHS,Respite Planned - Residential,First Floor  Lingfield House,10721.43, 28-Jul-2020
1489,Revenue,CAHD,South - Commissioned Services,Permanent Nursing,First Floor  Lingfield House,2554.36, 28-Jul-2020
1490,Revenue,CAHD,South Glos Users in South Glos Homes,Permanent Nursing,First Floor  Lingfield House,735.68, 28-Jul-2020
1491,Revenue,CAHD,Covid 19- Spend on behalf of NHS,Respite Planned - Nursing,First Floor  Lingfield House,6242.86, 28-Jul-2020
1492,Revenue,CAHD,South - Commissioned Services,Fees & Charges Income - General,First Floor  Lingfield House,2017.69, 28-Jul-2020
1493,Revenue,CAHD,South - Commissioned Services,Fees & Charges Income - General,First Floor  Lingfield House,1216.19, 28-Jul-2020
1494,Revenue,CAHD,Covid 19- Spend on behalf of NHS,Respite Planned - Nursing,First Floor  Lingfield House,3528.57, 28-Jul-2020
1495,Revenue,CAHD,South Glos Users in South Glos Homes,Permanent Nursing,First Floor  Lingfield House,735.68, 28-Jul-2020
1496,Revenue,CAHD,Covid 19- Spend on behalf of NHS,Respite Planned - Nursing,First Floor  Lingfield House,2578.57, 28-Jul-2020
1497,Revenue,CAHD,South - Commissioned Services,Respite Emergency - Residential,First Floor  Lingfield House,3240.00, 28-Jul-2020
1498,Revenue,CAHD,Covid 19- Spend on behalf of NHS,Respite Planned - Nursing,First Floor  Lingfield House,5835.71, 28-Jul-2020
1499,Revenue,CAHD,Covid 19- Spend on behalf of NHS,Respite Planned - Nursing,First Floor  Lingfield House,1628.57, 28-Jul-2020
1500,Revenue,CAHD,Covid 19- Spend on behalf of NHS,Respite Planned - Nursing,First Floor  Lingfield House,1764.29, 28-Jul-2020
1501,Revenue,CAHD,Covid 19- Spend on behalf of NHS,Respite Planned - Nursing,First Floor  Lingfield House,6514.29, 28-Jul-2020
1502,Revenue,CAHD,South - Commissioned Services,Permanent Residential,First Floor  Lingfield House,2349.68, 28-Jul-2020
1503,Revenue,CAHD,Covid 19- Spend on behalf of NHS,Respite Planned - Nursing,First Floor  Lingfield House,814.29, 28-Jul-2020
1504,Revenue,CAHD,North - Community based support,Permanent Nursing,First Floor  Lingfield House,2401.84, 28-Jul-2020
1505,Revenue,CAHD,North - Community based support,Permanent Residential,First Floor  Lingfield House,2174.20, 28-Jul-2020
1506,Revenue,CAHD,North - Community based support,Permanent Nursing,First Floor  Lingfield House,2657.80, 28-Jul-2020
1507,Revenue,CAHD,Early Years Inclusion Fund,Other Public Bodies,First Friends (Mangotsfield),600.00, 22-Jul-2020
1508,Revenue,CAHD,CSC - Agency Fostering,Foster Parent Allowances,Five Rivers Child Care Limited,1521.00, 20-Jul-2020
1509,Revenue,CAHD,CSC - Agency Fostering,Foster Parent Allowances,Five Rivers Child Care Limited,3627.00, 20-Jul-2020
1510,Revenue,CAHD,CSC - Agency Fostering,Foster Parent Allowances,Five Rivers Child Care Limited,3510.00, 20-Jul-2020
1511,Revenue,CAHD,CSC - Agency Fostering,Foster Parent Allowances,Five Rivers Child Care Limited,3627.00, 20-Jul-2020
1512,Revenue,CAHD,CSC - Agency Fostering,Foster Parent Allowances,Five Rivers Child Care Limited,3627.00, 30-Jul-2020
1513,Revenue,CAHD,CSC - Agency Fostering,Foster Parent Allowances,Five Rivers Child Care Limited,3510.00, 30-Jul-2020
1514,Revenue,CAHD,CSC - Agency Fostering,Foster Parent Allowances,Five Rivers Child Care Limited,3627.00, 20-Jul-2020
1515,Revenue,CAHD,CSC - Agency Fostering,Foster Parent Allowances,Five Rivers Child Care Limited,3627.00, 30-Jul-2020
1516,Revenue,CAHD,A & CL - Functional Skills 19/20,Computer Equipment - Purchase,Five Tech Limited,2220.00, 27-Jul-2020
1517,Revenue,CAHD,CSC - Agency Fostering,Foster Parent Allowances,Foster Care Associates Limited,4131.68, 06-Jul-2020
1518,Revenue,CAHD,CSC - Agency Fostering,Foster Parent Allowances,Foster Care Associates Limited,4080.00, 06-Jul-2020
1519,Revenue,CAHD,CSC - Agency Fostering,Foster Parent Allowances,Foster Care Associates Limited,4216.00, 06-Jul-2020
1520,Revenue,CAHD,CSC - Agency Fostering,Foster Parent Allowances,Fostering Matters Ltd,3407.10, 09-Jul-2020
1521,Revenue,CAHD,CSC - Agency Fostering,Foster Parent Allowances,Fostering Matters Ltd,3407.10, 09-Jul-2020
1522,Revenue,CAHD,South - Commissioned Services,Other Small Contracts,Fourways Care Limited,200.58, 06-Jul-2020
1523,Revenue,CAHD,North - Community based support,Other Small Contracts,Fourways Care Limited,10844.76, 06-Jul-2020
1524,Revenue,CAHD,South - Commissioned Services,Other Small Contracts,Fourways Care Limited,200.58, 17-Jul-2020
1525,Revenue,CAHD,North - Community based support,Other Small Contracts,Fourways Care Limited,10897.62, 17-Jul-2020
1526,Revenue,CAHD,South - Commissioned Services,Other Small Contracts,Fourways Care Limited,200.58, 22-Jul-2020
1527,Revenue,CAHD,North - Community based support,Other Small Contracts,Fourways Care Limited,10642.62, 22-Jul-2020
1528,Revenue,CAHD,Central - Commissioned Services,Other Small Contracts,Fourways Care Limited,114.00, 22-Jul-2020
1529,Revenue,CAHD,South - Commissioned Services,Other Small Contracts,Fourways Care Limited,200.58, 22-Jul-2020
1530,Revenue,CAHD,North - Community based support,Other Small Contracts,Fourways Care Limited,10111.68, 22-Jul-2020
1531,Revenue,CAHD,Additional Payments to providers - COVID,Other Small Contracts,Fourways Care Limited,1657.01, 06-Jul-2020
1532,Revenue,CAHD,Additional Payments to providers - COVID,Other Small Contracts,Fourways Care Limited,1754.69, 06-Jul-2020
1533,Revenue,CAHD,Additional Payments to providers - COVID,Other Small Contracts,Fourways Care Limited,1757.78, 17-Jul-2020
1534,Revenue,CAHD,Supporting People Programme,Grants to Voluntary Bodies,Freeways Trust Limited,1067.00, 01-Jul-2020
1535,Revenue,CAHD,Supporting People Programme,Grants to Voluntary Bodies,Freeways Trust Limited,1067.00, 31-Jul-2020
1536,Revenue,CAHD,Additional Payments to providers - COVID,Other Small Contracts,Freeways Trust Limited,618.64, 07-Jul-2020
1537,Revenue,CAHD,Central - Commissioned Services,Other Small Contracts,Freeways Trust Limited,707.04, 09-Jul-2020
1538,Revenue,CAHD,South - Commissioned Services,Day Care / Social Activities,Freeways Trust Limited,1060.56, 09-Jul-2020
1539,Revenue,CAHD,North - Community based support,Other Small Contracts,Freeways Trust Limited,510.64, 09-Jul-2020
1540,Revenue,CAHD,North - Community based support,Other Small Contracts,Freeways Trust Limited,864.16, 14-Jul-2020
1541,Revenue,CAHD,North - Community based support,Other Small Contracts,Freeways Trust Limited,864.16, 17-Jul-2020
1542,Revenue,CAHD,Central - Commissioned Services,Other Small Contracts,Freeways Trust Limited,746.32, 17-Jul-2020
1543,Revenue,CAHD,South - Commissioned Services,Day Care / Social Activities,Freeways Trust Limited,1060.56, 22-Jul-2020
1544,Revenue,CAHD,Central - Commissioned Services,Other Small Contracts,Freeways Trust Limited,707.04, 22-Jul-2020
1545,Revenue,CAHD,Central - Commissioned Services,Other Small Contracts,Freeways Trust Limited,785.60, 27-Jul-2020
1546,Revenue,CAHD,Central - Commissioned Services,Permanent Residential,Freeways Trust Limited,3968.00, 28-Jul-2020
1547,Revenue,CAHD,Central - Commissioned Services,Permanent Residential,Freeways Trust Limited,4006.56, 28-Jul-2020
1548,Revenue,CAHD,Central - Commissioned Services,Permanent Residential,Freeways Trust Limited,4462.28, 28-Jul-2020
1549,Revenue,CAHD,Central - Commissioned Services,Permanent Residential,Freeways Trust Limited,5152.32, 28-Jul-2020
1550,Revenue,CAHD,North - Community based support,Permanent Residential,Freeways Trust Limited,4009.36, 28-Jul-2020
1551,Revenue,CAHD,Central - Commissioned Services,Permanent Residential,Freeways Trust Limited,4006.56, 28-Jul-2020
1552,Revenue,CAHD,South - Commissioned Services,Permanent Residential,Freeways Trust Limited,4431.96, 28-Jul-2020
1553,Revenue,CAHD,Central - Commissioned Services,Permanent Residential,Freeways Trust Limited,4006.56, 28-Jul-2020
1554,Revenue,CAHD,Central - Commissioned Services,Permanent Residential,Freeways Trust Limited,5373.64, 28-Jul-2020
1555,Revenue,CAHD,North - Community based support,Permanent Residential,Freeways Trust Limited,4009.36, 28-Jul-2020
1556,Revenue,CAHD,Central - Commissioned Services,Permanent Residential,Freeways Trust Limited,5991.92, 28-Jul-2020
1557,Revenue,CAHD,North - Community based support,Supported Living,Freeways Trust Ltd,862.44, 28-Jul-2020
1558,Revenue,CAHD,S28A cases,Permanent Residential,Freeways Trust Ltd,3886.64, 28-Jul-2020
1559,Revenue,CAHD,North - Community based support,Permanent Residential,Freeways Trust Ltd,3763.40, 28-Jul-2020
1560,Revenue,CAHD,North - Community based support,Permanent Residential,Freeways Trust Ltd,3301.04, 28-Jul-2020
1561,Revenue,CAHD,North - Community based support,Permanent Residential,Freeways Trust Ltd,3381.20, 28-Jul-2020
1562,Revenue,CAHD,North - Community based support,Permanent Residential,Freeways Trust Ltd,3680.48, 28-Jul-2020
1563,Revenue,CAHD,Section 117 Placements MH Younger,Permanent Residential,Freeways Trust Ltd,3339.04, 28-Jul-2020
1564,Revenue,CAHD,Central - Commissioned Services,Day Care / Social Activities,Frenchay Beckspool Building,1933.52, 28-Jul-2020
1565,Revenue,CAHD,South - Commissioned Services,Day Care / Social Activities,Frenchay Beckspool Building,920.44, 28-Jul-2020
1566,Revenue,CAHD,South - Commissioned Services,Day Care / Social Activities,Frenchay Beckspool Building,652.88, 28-Jul-2020
1567,Revenue,CAHD,Pathway 3 - (Complex Beds),Permanent Nursing,Frenchay House,3409.61, 17-Jul-2020
1568,Revenue,CAHD,North - Community based support,Permanent Nursing,Frenchay Park Nursing Home,3400.00, 28-Jul-2020
1569,Revenue,CAHD,Sexual Health,Other Small Contracts,Frome Valley Medical Centre,1932.00, 20-Jul-2020
1570,Revenue,CAHD,Sexual Health,Other Small Contracts,Frome Valley Medical Centre,1218.18, 20-Jul-2020
1571,Revenue,CAHD,CSC - Through & Leaving Care Team,Agency Staff (Admin/Support Staff) Pay,Frontline Staffing Ltd,1731.23, 22-Jul-2020
1572,Revenue,CAHD,CSC - Social Work Team - CENTRAL,Agency Staff (Admin/Support Staff) Pay,Frontline Staffing Ltd,1029.38, 24-Jul-2020
1573,Revenue,CAHD,CSC - Through & Leaving Care Team,Agency Staff (Admin/Support Staff) Pay,Frontline Staffing Ltd,1871.60, 06-Jul-2020
1574,Revenue,CAHD,CSC - Through & Leaving Care Team,Agency Staff (Admin/Support Staff) Pay,Frontline Staffing Ltd,2526.68, 03-Jul-2020
1575,Revenue,CAHD,CSC - Through & Leaving Care Team,Agency Staff (Admin/Support Staff) Pay,Frontline Staffing Ltd,2386.29, 03-Jul-2020
1576,Revenue,CAHD,CSC - Social Work Team - CENTRAL,Agency Staff (Admin/Support Staff) Pay,Frontline Staffing Ltd,1771.00, 08-Jul-2020
1577,Revenue,CAHD,CSC - Through & Leaving Care Team,Agency Staff (Admin/Support Staff) Pay,Frontline Staffing Ltd,3176.81, 08-Jul-2020
1578,Revenue,CAHD,CSC - Social Work Team - CENTRAL,Agency Staff (Admin/Support Staff) Pay,Frontline Staffing Ltd,1762.82, 10-Jul-2020
1579,Revenue,CAHD,CSC - Social Work Team - CENTRAL,Agency Staff (Admin/Support Staff) Pay,Frontline Staffing Ltd,1750.90, 21-Jul-2020
1580,Revenue,CAHD,CSC - Through & Leaving Care Team,Agency Staff (Admin/Support Staff) Pay,Frontline Staffing Ltd,1169.75, 22-Jul-2020
1581,Revenue,CAHD,CSC - Through & Leaving Care Team,Agency Staff (Admin/Support Staff) Pay,Frontline Staffing Ltd,1871.60, 22-Jul-2020
1582,Revenue,CAHD,CSC - Through & Leaving Care Team,Agency Staff (Admin/Support Staff) Pay,Frontline Staffing Ltd,1871.60, 28-Jul-2020
1583,Revenue,CAHD,CSC - Social Work Team - CENTRAL,Agency Staff (Admin/Support Staff) Pay,Frontline Staffing Ltd,1801.42, 31-Jul-2020
1584,Revenue,CAHD,CSC - Asylum Seekers - Unaccompanied,Foster Parent Allowances,Fusion Fostering Ltd,3764.29, 17-Jul-2020
1585,Revenue,CAHD,CSC - Asylum Seekers - Unaccompanied,Foster Parent Allowances,Fusion Fostering Ltd,3405.57, 20-Jul-2020
1586,Revenue,CAHD,North - Community based support,Supported Living,Gladstone House,3237.64, 28-Jul-2020
1587,Revenue,CAHD,18-25 Year Olds,Supported Living,Gladstone House,3237.64, 28-Jul-2020
1588,Revenue,CAHD,South - Commissioned Services,Permanent Residential,Gladstone House,5999.84, 28-Jul-2020
1589,Revenue,CAHD,MH Purchasing - Younger,Permanent Residential,Gladstone House,3135.90, 28-Jul-2020
1590,Revenue,CAHD,Jointly Funded H&SC Packages,Permanent Residential,Gladstone House,783.98, 28-Jul-2020
1591,Revenue,CAHD,North - Community based support,Permanent Residential,Glan Y Felin,6803.40, 28-Jul-2020
1592,Revenue,CAHD,South - Commissioned Services,Permanent Residential,Glasallt Fawr,5550.16, 28-Jul-2020
1593,Revenue,CAHD,South - Commissioned Services,Permanent Residential,Glasallt Fawr,19425.56, 28-Jul-2020
1594,Revenue,CAHD,North - Community based support,Permanent Nursing,Glebe House Nursing Home,3737.44, 28-Jul-2020
1595,Revenue,CAHD,South Glos Users in South Glos Homes,Permanent Nursing,Glebe House Nursing Home,735.68, 28-Jul-2020
1596,Revenue,CAHD,North - Community based support,Permanent Nursing,Glebe House Nursing Home,4052.60, 28-Jul-2020
1597,Revenue,CAHD,South Glos Users in South Glos Homes,Permanent Nursing,Glebe House Nursing Home,735.68, 28-Jul-2020
1598,Revenue,CAHD,South Glos Users in South Glos Homes,Permanent Nursing,Glebe House Nursing Home,735.68, 28-Jul-2020
1599,Revenue,CAHD,South Glos Users in South Glos Homes,Permanent Nursing,Glebe House Nursing Home,735.68, 28-Jul-2020
1600,Revenue,CAHD,South Glos Users in South Glos Homes,Permanent Nursing,Glebe House Nursing Home,735.68, 28-Jul-2020
1601,Revenue,CAHD,North - Community based support,Permanent Nursing,Glebe House Nursing Home,3998.40, 28-Jul-2020
1602,Revenue,CAHD,South Glos Users in South Glos Homes,Permanent Nursing,Glebe House Nursing Home,735.68, 28-Jul-2020
1603,Revenue,CAHD,South Glos Users in South Glos Homes,Permanent Nursing,Glebe House Nursing Home,735.68, 28-Jul-2020
1604,Revenue,CAHD,North - Community based support,Permanent Residential,Glebe House Nursing Home,3910.52, 28-Jul-2020
1605,Revenue,CAHD,South Glos Users in South Glos Homes,Permanent Nursing,Glebe House Nursing Home,735.68, 28-Jul-2020
1606,Revenue,CAHD,South Glos Users in South Glos Homes,Permanent Nursing,Glebe House Nursing Home,735.68, 28-Jul-2020
1607,Revenue,CAHD,South Glos Users in South Glos Homes,Permanent Nursing,Glebe House Nursing Home,1184.89, 28-Jul-2020
1608,Revenue,CAHD,South Glos Users in South Glos Homes,Permanent Nursing,Glebe House Nursing Home,735.68, 28-Jul-2020
1609,Revenue,CAHD,North - Community based support,Permanent Nursing,Glebe House Nursing Home,4048.60, 28-Jul-2020
1610,Revenue,CAHD,South Glos Users in South Glos Homes,Permanent Nursing,Glebe House Nursing Home,735.68, 28-Jul-2020
1611,Revenue,CAHD,Central - Commissioned Services,Permanent Residential,Glebe House Nursing Home,3980.00, 28-Jul-2020
1612,Revenue,CAHD,South Glos Users in South Glos Homes,Permanent Nursing,Glebe House Nursing Home,735.68, 28-Jul-2020
1613,Revenue,CAHD,Central - Commissioned Services,Permanent Nursing,Glebe House Nursing Home,4120.00, 28-Jul-2020
1614,Revenue,CAHD,North - Community based support,Permanent Nursing,Glebe House Nursing Home,4080.00, 28-Jul-2020
1615,Revenue,CAHD,South Glos Users in South Glos Homes,Permanent Nursing,Glebe House Nursing Home,735.68, 28-Jul-2020
1616,Revenue,CAHD,South Glos Users in South Glos Homes,Permanent Nursing,Glebe House Nursing Home,735.68, 28-Jul-2020
1617,Revenue,CAHD,North - Community based support,Permanent Nursing,Glebe House Nursing Home,4039.36, 28-Jul-2020
1618,Revenue,CAHD,South Glos Users in South Glos Homes,Permanent Nursing,Glebe House Nursing Home,735.68, 28-Jul-2020
1619,Revenue,CAHD,North - Community based support,Permanent Nursing,Glebe House Nursing Home,4080.00, 28-Jul-2020
1620,Revenue,CAHD,South Glos Users in South Glos Homes,Permanent Nursing,Glebe House Nursing Home,735.68, 28-Jul-2020
1621,Revenue,CAHD,South Glos Users in South Glos Homes,Permanent Nursing,Glebe House Nursing Home,566.69, 28-Jul-2020
1622,Revenue,CAHD,South Glos Users in South Glos Homes,Permanent Nursing,Glebe House Nursing Home,747.00, 28-Jul-2020
1623,Revenue,CAHD,North - Community based support,Permanent Residential,Glebe House Nursing Home,5051.24, 28-Jul-2020
1624,Revenue,CAHD,South Glos Users in South Glos Homes,Permanent Nursing,Glebe House Nursing Home,735.68, 28-Jul-2020
1625,Revenue,CAHD,South Glos Users in South Glos Homes,Permanent Nursing,Glebe House Nursing Home,1365.20, 28-Jul-2020
1626,Revenue,CAHD,South Glos Users in South Glos Homes,Permanent Nursing,Glebe House Nursing Home,735.68, 28-Jul-2020
1627,Revenue,CAHD,South Glos Users in South Glos Homes,Permanent Nursing,Glebe House Nursing Home,735.68, 28-Jul-2020
1628,Revenue,CAHD,South Glos Users in South Glos Homes,Permanent Nursing,Glebe House Nursing Home,850.03, 28-Jul-2020
1629,Revenue,CAHD,North - Community based support,Permanent Nursing,Glebe House Nursing Home,3572.12, 28-Jul-2020
1630,Revenue,CAHD,South Glos Users in South Glos Homes,Permanent Nursing,Glebe House Nursing Home,735.68, 28-Jul-2020
1631,Revenue,CAHD,Central - Commissioned Services,Permanent Nursing,Glebe House Nursing Home,4400.00, 28-Jul-2020
1632,Revenue,CAHD,South Glos Users in South Glos Homes,Permanent Nursing,Glebe House Nursing Home,735.68, 28-Jul-2020
1633,Revenue,CAHD,Central - Commissioned Services,Permanent Nursing,Glenview Care Home,3224.00, 28-Jul-2020
1634,Revenue,CAHD,South - Commissioned Services,Permanent Nursing,Glenview Care Home,3220.00, 28-Jul-2020
1635,Revenue,CAHD,North - Community based support,Permanent Nursing,Glenview Care Home,3600.00, 28-Jul-2020
1636,Revenue,CAHD,North - Community based support,Respite Emergency - Residential,Glenview Care Home,1151.43, 28-Jul-2020
1637,Revenue,CAHD,North - Community based support,Respite Emergency - Residential,Glenview Care Home,921.14, 28-Jul-2020
1638,Revenue,CAHD,North - Community based support,Permanent Nursing,Glenview Care Home,3224.00, 28-Jul-2020
1639,Revenue,CAHD,North - Community based support,Respite Planned - Nursing,Glenview Care Home,1257.14, 28-Jul-2020
1640,Revenue,CAHD,North - Community based support,Permanent Nursing,Glenview Care Home,3224.00, 28-Jul-2020
1641,Revenue,CAHD,Central - Commissioned Services,Respite Planned - Nursing,Glenview Care Home,4836.00, 28-Jul-2020
1642,Revenue,CAHD,Schools Specific Grant Income,Other Public Bodies,Gordano School,630.00, 09-Jul-2020
1643,Revenue,CAHD,South - Commissioned Services,Permanent Residential,Gordena Care Home,4018.92, 28-Jul-2020
1644,Revenue,CAHD,South - Commissioned Services,Fees & Charges Income - General,Gordena Care Home,2391.05, 28-Jul-2020
1645,Revenue,CAHD,South - Commissioned Services,Permanent Residential,Gordena Care Home,2790.84, 28-Jul-2020
1646,Revenue,CAHD,South - Commissioned Services,Permanent Residential,Gordena Care Home,3973.32, 28-Jul-2020
1647,Revenue,CAHD,South - Commissioned Services,Permanent Residential,Gordena Care Home,3985.44, 28-Jul-2020
1648,Revenue,CAHD,CSC - Legal Fees,Legal Fees,Individual,800.00, 06-Jul-2020
1649,Revenue,CAHD,18-25 Year Olds,Supported Living,Granville House,1940.60, 28-Jul-2020
1650,Revenue,CAHD,South - Commissioned Services,Supported Living,Granville House,1941.20, 28-Jul-2020
1651,Revenue,CAHD,South - Commissioned Services,Supported Living,Granville House,1940.32, 28-Jul-2020
1652,Revenue,CAHD,CSC - Residential Placements,Permanent Residential,Greenfields Adolecent Development Limited,21035.71, 17-Jul-2020
1653,Revenue,CAHD,CSC - Residential Placements,Permanent Residential,Greenfields Adolecent Development Limited,19678.57, 24-Jul-2020
1654,Revenue,CAHD,CSC - Residential Placements,Permanent Residential,Greenfields Adolecent Development Limited,21035.71, 07-Jul-2020
1655,Revenue,CAHD,CSC - Care Leavers Independent Living,Independent Living,Greenfields Adolecent Development Limited,8035.71, 03-Jul-2020
1656,Revenue,CAHD,CSC - Residential Placements,Permanent Residential,Greenfields Adolecent Development Limited,25671.43, 14-Jul-2020
1657,Revenue,CAHD,CSC - Care Leavers Independent Living,Adults - Family Support,Greenfields Adolecent Development Limited,5785.71, 10-Jul-2020
1658,Revenue,CAHD,CSC - Care Leavers Independent Living,Independent Living,Greenfields Adolecent Development Limited,7285.71, 10-Jul-2020
1659,Revenue,CAHD,CSC - Care Leavers Independent Living,Independent Living,Greenfields Adolecent Development Limited,8303.57, 24-Jul-2020
1660,Revenue,CAHD,Statemented Support Academies,Other Public Bodies,Greenshaw Learning Trust T/A Woodlands Primary,774.50, 27-Jul-2020
1661,Revenue,CAHD,Academy Resource Base Funding,Other Public Bodies,Greenshaw Learning Trust T/A Woodlands Primary,1175.88, 28-Jul-2020
1662,Revenue,CAHD,Academy Resource Base Funding,Other Public Bodies,Greenshaw Learning Trust T/A Woodlands Primary,648.70, 28-Jul-2020
1663,Revenue,CAHD,Schools Specific Grant Income,Other Public Bodies,Greenshaw Learning Trust T/A Yate Academy,630.00, 07-Jul-2020
1664,Revenue,CAHD,Statemented Support Academies,Other Public Bodies,Greenshaw Learning Trust T/A Yate Academy,554.13, 27-Jul-2020
1665,Revenue,CAHD,Statemented Support Academies,Other Public Bodies,Greenshaw Learning Trust T/A Yate Academy,1072.89, 27-Jul-2020
1666,Revenue,CAHD,Statemented Support Academies,Other Public Bodies,Greenshaw Learning Trust T/A Yate Academy,707.40, 27-Jul-2020
1667,Revenue,CAHD,Statemented Support Academies,Other Public Bodies,Greenshaw Learning Trust T/A Yate Academy,1320.48, 27-Jul-2020
1668,Revenue,CAHD,Statemented Support Academies,Other Public Bodies,Greenshaw Learning Trust T/A Yate Academy,1320.48, 27-Jul-2020
1669,Revenue,CAHD,Statemented Support Academies,Other Public Bodies,Greenshaw Learning Trust T/A Yate Academy,1072.89, 27-Jul-2020
1670,Revenue,CAHD,Statemented Support Academies,Other Public Bodies,Greenshaw Learning Trust T/A Yate Academy,1072.89, 27-Jul-2020
1671,Revenue,CAHD,Statemented Support Academies,Other Public Bodies,Greenshaw Learning Trust T/A Yate Academy,837.09, 27-Jul-2020
1672,Revenue,CAHD,Statemented Support Academies,Other Public Bodies,Greenshaw Learning Trust T/A Yate Academy,801.72, 27-Jul-2020
1673,Revenue,CAHD,Statemented Support Academies,Other Public Bodies,Greenshaw Learning Trust T/A Yate Academy,742.77, 27-Jul-2020
1674,Revenue,CAHD,Statemented Support Academies,Other Public Bodies,Greenshaw Learning Trust T/A Yate Academy,778.14, 27-Jul-2020
1675,Revenue,CAHD,Statemented Support Academies,Other Public Bodies,Greenshaw Learning Trust T/A Yate Academy,541.58, 27-Jul-2020
1676,Revenue,CAHD,Statemented Support Academies,Other Public Bodies,Greenshaw Learning Trust T/A Yate Academy,860.67, 27-Jul-2020
1677,Revenue,CAHD,Statemented Support Academies,Other Public Bodies,Greenshaw Learning Trust T/A Yate Academy,624.87, 27-Jul-2020
1678,Revenue,CAHD,Statemented Support Academies,Other Public Bodies,Greenshaw Learning Trust T/A Yate Academy,624.87, 27-Jul-2020
1679,Revenue,CAHD,Academy Resource Base Funding,Other Public Bodies,Greenshaw Learning Trust T/A Yate Academy,1540.83, 28-Jul-2020
1680,Revenue,CAHD,Academy Resource Base Funding,Other Public Bodies,Greenshaw Learning Trust T/A Yate Academy,1013.75, 28-Jul-2020
1681,Revenue,CAHD,South - Commissioned Services,Permanent Residential,Gwendoline House,2522.88, 28-Jul-2020
1682,Revenue,CAHD,South - Commissioned Services,Respite Planned - Residential,Gwendoline House,2589.29, 28-Jul-2020
1683,Revenue,CAHD,South - Commissioned Services,Permanent Residential,Gwendoline House,2652.00, 28-Jul-2020
1684,Revenue,CAHD,North - Community based support,Other Small Contracts,H F T,818.88, 17-Jul-2020
1685,Revenue,CAHD,North - Community based support,Other Small Contracts,H F T,827.52, 17-Jul-2020
1686,Revenue,CAHD,North - Community based support,Other Small Contracts,H F T,827.52, 17-Jul-2020
1687,Revenue,CAHD,North - Community based support,Other Small Contracts,H F T,827.52, 31-Jul-2020
1688,Revenue,CAHD,Supporting People Programme,Grants to Voluntary Bodies,Habinteg Housing Association,694.00, 01-Jul-2020
1689,Revenue,CAHD,Supporting People Programme,Grants to Voluntary Bodies,Habinteg Housing Association,694.00, 31-Jul-2020
1690,Revenue,CAHD,CAHC - Complaints & Advocacy Service,Complaints External Expenses,Individual,906.25, 16-Jul-2020
1691,Revenue,CAHD,Social Lettings Agency,Rent,Individual,577.72, 27-Jul-2020
1692,Revenue,CAHD,Social Lettings Agency,Fees - General,Individual,13.13, 27-Jul-2020
1693,Revenue,CAHD,CSC - Corporate Parenting Manager,Agency Staff (Admin/Support Staff) Pay,Hampton`s Resourcing,2857.16, 06-Jul-2020
1694,Revenue,CAHD,CSC - Corporate Parenting Manager,Agency Staff (Admin/Support Staff) Pay,Hampton`s Resourcing,3571.45, 20-Jul-2020
1695,Revenue,CAHD,CSC - Corporate Parenting Manager,Agency Staff (Admin/Support Staff) Pay,Hampton`s Resourcing,3571.45, 06-Jul-2020
1696,Revenue,CAHD,CSC - Corporate Parenting Manager,Agency Staff (Admin/Support Staff) Pay,Hampton`s Resourcing,3571.45, 20-Jul-2020
1697,Revenue,CAHD,CSC - Through & Leaving Care Team,Agency Staff (Admin/Support Staff) Pay,Hampton`s Resourcing,1668.70, 31-Jul-2020
1698,Revenue,CAHD,CSC - Through & Leaving Care Team,Agency Staff (Admin/Support Staff) Pay,Hampton`s Resourcing,1668.70, 08-Jul-2020
1699,Revenue,CAHD,CSC - Corporate Parenting Manager,Agency Staff (Admin/Support Staff) Pay,Hampton`s Resourcing,3571.45, 08-Jul-2020
1700,Revenue,CAHD,CSC - Through & Leaving Care Team,Agency Staff (Admin/Support Staff) Pay,Hampton`s Resourcing,1668.70, 14-Jul-2020
1701,Revenue,CAHD,CSC - Corporate Parenting Manager,Agency Staff (Admin/Support Staff) Pay,Hampton`s Resourcing,2857.16, 06-Jul-2020
1702,Revenue,CAHD,CSC - Through & Leaving Care Team,Agency Staff (Admin/Support Staff) Pay,Hampton`s Resourcing,1668.70, 14-Jul-2020
1703,Revenue,CAHD,CSC - Corporate Parenting Manager,Agency Staff (Admin/Support Staff) Pay,Hampton`s Resourcing,3571.45, 14-Jul-2020
1704,Revenue,CAHD,CSC - Corporate Parenting Manager,Agency Staff (Admin/Support Staff) Pay,Hampton`s Resourcing,3571.45, 06-Jul-2020
1705,Revenue,CAHD,Sexual Health,Other Small Contracts,Hanham Health,563.50, 20-Jul-2020
1706,Revenue,CAHD,Sexual Health,Other Small Contracts,Hanham Health,1690.50, 20-Jul-2020
1707,Revenue,CAHD,Sexual Health,Other Small Contracts,Hanham Health,1259.50, 20-Jul-2020
1708,Revenue,CAHD,Home Care Monitoring (CM2000),Other Supplies & Services,HAS Technology Limited T/A CM2000,9647.97, 30-Jul-2020
1709,Revenue,CAHD,Home Care Monitoring (CM2000),Other Supplies & Services,HAS Technology Limited T/A CM2000,750.00, 22-Jul-2020
1710,Revenue,CAHD,North - Community based support,Permanent Nursing,Head Office,4554.08, 28-Jul-2020
1711,Revenue,CAHD,CSC - Residential Placements,Permanent Residential,Headway Adolescent Resources Limited,13600.00, 07-Jul-2020
1712,Revenue,CAHD,Additional Payments to providers - COVID,Other Small Contracts,Headway Bristol,1279.72, 06-Jul-2020
1713,Revenue,CAHD,Additional Payments to providers - COVID,Other Small Contracts,Headway Bristol,1262.80, 06-Jul-2020
1714,Revenue,CAHD,Central - Commissioned Services,Permanent Nursing,Healthcare Home Spring Limited,2445.96, 28-Jul-2020
1715,Revenue,CAHD,South Glos Users in South Glos Homes,Permanent Nursing,Healthcare Home Spring Limited,735.68, 28-Jul-2020
1716,Revenue,CAHD,Central - Commissioned Services,Permanent Nursing,Healthcare Home Spring Limited,2445.96, 28-Jul-2020
1717,Revenue,CAHD,South Glos Users in South Glos Homes,Permanent Nursing,Healthcare Home Spring Limited,735.68, 28-Jul-2020
1718,Revenue,CAHD,South Glos Users in South Glos Homes,Permanent Nursing,Healthcare Home Spring Limited,735.68, 28-Jul-2020
1719,Revenue,CAHD,Central - Commissioned Services,Permanent Residential,Healthcare Home Spring Limited,2274.92, 28-Jul-2020
1720,Revenue,CAHD,South Glos Users in South Glos Homes,Permanent Nursing,Healthcare Home Spring Limited,735.68, 28-Jul-2020
1721,Revenue,CAHD,South Glos Users in South Glos Homes,Permanent Nursing,Healthcare Home Spring Limited,735.68, 28-Jul-2020
1722,Revenue,CAHD,Central - Commissioned Services,Permanent Nursing,Healthcare Home Spring Limited,17647.28, 28-Jul-2020
1723,Revenue,CAHD,Central - Commissioned Services,Permanent Nursing,Healthcare Home Spring Limited,7061.72, 28-Jul-2020
1724,Revenue,CAHD,Central - Commissioned Services,Permanent Nursing,Healthcare Home Spring Limited,2521.04, 28-Jul-2020
1725,Revenue,CAHD,South Glos Users in South Glos Homes,Permanent Nursing,Healthcare Home Spring Limited,901.55, 28-Jul-2020
1726,Revenue,CAHD,South Glos Users in South Glos Homes,Permanent Nursing,Healthcare Home Spring Limited,735.68, 28-Jul-2020
1727,Revenue,CAHD,Central - Commissioned Services,Fees & Charges Income - General,Healthcare Home Spring Limited,969.48, 28-Jul-2020
1728,Revenue,CAHD,Central - Commissioned Services,Fees & Charges Income - General,Healthcare Home Spring Limited,1040.13, 28-Jul-2020
1729,Revenue,CAHD,Central - Commissioned Services,Fees & Charges Income - General,Healthcare Home Spring Limited,2504.54, 28-Jul-2020
1730,Revenue,CAHD,Central - Commissioned Services,Fees & Charges Income - General,Healthcare Home Spring Limited,2680.39, 28-Jul-2020
1731,Revenue,CAHD,South Glos Users in South Glos Homes,Permanent Nursing,Healthcare Home Spring Limited,1004.58, 28-Jul-2020
1732,Revenue,CAHD,South Glos Users in South Glos Homes,Permanent Nursing,Healthcare Home Spring Limited,735.68, 28-Jul-2020
1733,Revenue,CAHD,North - Community based support,Permanent Nursing,Healthcare Home Spring Limited,2445.96, 28-Jul-2020
1734,Revenue,CAHD,South Glos Users in South Glos Homes,Permanent Nursing,Healthcare Home Spring Limited,735.68, 28-Jul-2020
1735,Revenue,CAHD,Central - Commissioned Services,Permanent Nursing,Healthcare Home Spring Limited,2445.96, 28-Jul-2020
1736,Revenue,CAHD,South Glos Users in South Glos Homes,Permanent Nursing,Healthcare Home Spring Limited,735.68, 28-Jul-2020
1737,Revenue,CAHD,Central - Commissioned Services,Permanent Nursing,Healthcare Home Spring Limited,3060.24, 28-Jul-2020
1738,Revenue,CAHD,South Glos Users in South Glos Homes,Permanent Nursing,Healthcare Home Spring Limited,1777.34, 28-Jul-2020
1739,Revenue,CAHD,South Glos Users in South Glos Homes,Permanent Nursing,Healthcare Home Spring Limited,735.68, 28-Jul-2020
1740,Revenue,CAHD,Central - Commissioned Services,Permanent Nursing,Healthcare Home Spring Limited,2445.96, 28-Jul-2020
1741,Revenue,CAHD,South Glos Users in South Glos Homes,Permanent Nursing,Healthcare Home Spring Limited,735.68, 28-Jul-2020
1742,Revenue,CAHD,Central - Commissioned Services,Permanent Residential,Healthcare Home Spring Limited,2823.36, 28-Jul-2020
1743,Revenue,CAHD,North - Community based support,Permanent Nursing,Healthcare Home Spring Limited,2445.96, 28-Jul-2020
1744,Revenue,CAHD,South Glos Users in South Glos Homes,Permanent Nursing,Healthcare Home Spring Limited,735.68, 28-Jul-2020
1745,Revenue,CAHD,South Glos Users in South Glos Homes,Permanent Nursing,Healthcare Home Spring Limited,735.68, 28-Jul-2020
1746,Revenue,CAHD,Central - Commissioned Services,Permanent Nursing,Healthcare Home Spring Limited,2521.04, 28-Jul-2020
1747,Revenue,CAHD,South Glos Users in South Glos Homes,Permanent Nursing,Healthcare Home Spring Limited,735.68, 28-Jul-2020
1748,Revenue,CAHD,North - Community based support,Permanent Residential,Healthcare Home Spring Limited,2487.96, 28-Jul-2020
1749,Revenue,CAHD,South Glos Users in South Glos Homes,Permanent Nursing,Healthcare Home Spring Limited,735.68, 28-Jul-2020
1750,Revenue,CAHD,South Glos Users in South Glos Homes,Permanent Nursing,Healthcare Home Spring Limited,2472.82, 28-Jul-2020
1751,Revenue,CAHD,South Glos Users in South Glos Homes,Permanent Nursing,Healthcare Home Spring Limited,735.68, 28-Jul-2020
1752,Revenue,CAHD,South Glos Users in South Glos Homes,Permanent Nursing,Healthcare Home Spring Limited,890.23, 28-Jul-2020
1753,Revenue,CAHD,South Glos Users in South Glos Homes,Permanent Nursing,Healthcare Home Spring Limited,735.68, 28-Jul-2020
1754,Revenue,CAHD,Central - Bed Purchasing and Direct Payments,Permanent Nursing,Healthcare Home Spring Limited,2445.96, 28-Jul-2020
1755,Revenue,CAHD,Central - Commissioned Services,Permanent Residential,Healthcare Home Spring Limited,2823.36, 28-Jul-2020
1756,Revenue,CAHD,Central - Commissioned Services,Permanent Nursing,Healthcare Home Spring Limited,2445.96, 28-Jul-2020
1757,Revenue,CAHD,South Glos Users in South Glos Homes,Permanent Nursing,Healthcare Home Spring Limited,735.68, 28-Jul-2020
1758,Revenue,CAHD,South Glos Users in South Glos Homes,Permanent Nursing,Healthcare Home Spring Limited,735.68, 28-Jul-2020
1759,Revenue,CAHD,South Glos Users in South Glos Homes,Permanent Nursing,Healthcare Home Spring Limited,735.68, 28-Jul-2020
1760,Revenue,CAHD,South Glos Users in South Glos Homes,Permanent Nursing,Healthcare Home Spring Limited,735.68, 28-Jul-2020
1761,Revenue,CAHD,South Glos Users in South Glos Homes,Permanent Nursing,Healthcare Home Spring Limited,735.68, 28-Jul-2020
1762,Revenue,CAHD,South Glos Users in South Glos Homes,Permanent Nursing,Healthcare Home Spring Limited,735.68, 28-Jul-2020
1763,Revenue,CAHD,South Glos Users in South Glos Homes,Permanent Nursing,Healthcare Home Spring Limited,2730.41, 28-Jul-2020
1764,Revenue,CAHD,South Glos Users in South Glos Homes,Permanent Nursing,Healthcare Home Spring Limited,735.68, 28-Jul-2020
1765,Revenue,CAHD,South Glos Users in South Glos Homes,Permanent Nursing,Healthcare Home Spring Limited,735.68, 28-Jul-2020
1766,Revenue,CAHD,Central - Commissioned Services,Permanent Nursing,Healthcare Home Spring Limited,2445.96, 28-Jul-2020
1767,Revenue,CAHD,South Glos Users in South Glos Homes,Permanent Nursing,Healthcare Home Spring Limited,735.68, 28-Jul-2020
1768,Revenue,CAHD,Central - Commissioned Services,Permanent Nursing,Healthcare Home Spring Limited,2357.44, 28-Jul-2020
1769,Revenue,CAHD,South Glos Users in South Glos Homes,Permanent Nursing,Healthcare Home Spring Limited,735.68, 28-Jul-2020
1770,Revenue,CAHD,North - Community based support,Permanent Nursing,Healthcare Home Spring Limited,2485.88, 28-Jul-2020
1771,Revenue,CAHD,South Glos Users in South Glos Homes,Permanent Nursing,Healthcare Home Spring Limited,735.68, 28-Jul-2020
1772,Revenue,CAHD,Central - Commissioned Services,Permanent Nursing,Healthcare Home Spring Limited,2445.96, 28-Jul-2020
1773,Revenue,CAHD,South Glos Users in South Glos Homes,Permanent Nursing,Healthcare Home Spring Limited,735.68, 28-Jul-2020
1774,Revenue,CAHD,Central - Commissioned Services,Permanent Residential,Healthcare Home Spring Limited,2891.12, 28-Jul-2020
1775,Revenue,CAHD,North - Community based support,Permanent Nursing,Healthcare Home Spring Limited,2445.96, 28-Jul-2020
1776,Revenue,CAHD,South Glos Users in South Glos Homes,Permanent Nursing,Healthcare Home Spring Limited,735.68, 28-Jul-2020
1777,Revenue,CAHD,South Glos Users in South Glos Homes,Permanent Nursing,Healthcare Home Spring Limited,2390.96, 28-Jul-2020
1778,Revenue,CAHD,Central - Commissioned Services,Permanent Nursing,Healthcare Home Spring Limited,2445.96, 28-Jul-2020
1779,Revenue,CAHD,South Glos Users in South Glos Homes,Permanent Nursing,Healthcare Home Spring Limited,735.68, 28-Jul-2020
1780,Revenue,CAHD,South Glos Users in South Glos Homes,Permanent Nursing,Healthcare Home Spring Limited,592.45, 28-Jul-2020
1781,Revenue,CAHD,North - Community based support,Permanent Nursing,Healthcare Home Spring Limited,2445.96, 28-Jul-2020
1782,Revenue,CAHD,South Glos Users in South Glos Homes,Permanent Nursing,Healthcare Home Spring Limited,735.68, 28-Jul-2020
1783,Revenue,CAHD,Central - Commissioned Services,Permanent Residential,Healthcare Home Spring Limited,2768.00, 28-Jul-2020
1784,Revenue,CAHD,North - Community based support,Permanent Nursing,Healthcare Home Spring Limited,2403.72, 28-Jul-2020
1785,Revenue,CAHD,South Glos Users in South Glos Homes,Permanent Nursing,Healthcare Home Spring Limited,735.68, 28-Jul-2020
1786,Revenue,CAHD,North - Community based support,Permanent Nursing,Healthcare Home Spring Limited,2520.88, 28-Jul-2020
1787,Revenue,CAHD,South Glos Users in South Glos Homes,Permanent Nursing,Healthcare Home Spring Limited,735.68, 28-Jul-2020
1788,Revenue,CAHD,SLA Grants - Support Serv,Grants to Voluntary Bodies,Healthwatch North Somerset,56262.25, 01-Jul-2020
1789,Revenue,CAHD,Hospital Tuition,Other Private Contractors,Heath House School Priory,1400.00, 24-Jul-2020
1790,Revenue,CAHD,Central - Commissioned Services,Other Small Contracts,Helping Hands Homecare,666.84, 14-Jul-2020
